{"text_format":"1","workbook":"xlsx","n_sheets":38,"sheets":["START","Notes","Configuration","Data_Project","Data_Disciplines","Cover","Project","Structural","Mechanical","Electrical","Public Health","Architecture","Acoustics","Audio Visual","Aviation","Bridges","BPS","Retrofit","Civils","Cost Mgmt","Energy","Building Physics","Facades","FM","Fire","Geotechnics","Highways","Lighting","Logistics","Mgmt Consulting","Maritime","Masterplanning","Planning","Rail","Security","Tunnels","Water","Wind"],"not_rendered":{"charts":988,"images":3,"macros":1,"external_links":0,"defined_names":36,"comments":33,"pivot_tables":0},"unopened":[],"bounds":{"document_bytes":16777216,"sheet_cells":100000,"rows_first":2000,"rows_last":500,"rows_between":2000,"halvings":0,"cell_chars":16384,"cell_head_chars":4096},"cells_cut":0,"cells_raw":0,"read":"whole","date_system":"1900"}

{"sheet":"START","index":0,"n_rows":18,"n_cols":3,"rows_kept":18,"cut":false,"hidden":true,"merged":[[2,1,4,3]]}
[]
[]
[null,"(your company logo here)"]
[]
[]
[]
[]
[]
[null,null,"You must enable macros in order to access the BIM Maturity Measure"]
[]
[null,null,"Please click on 'Enable Content' above in order to do this"]
[]
[]
[null,"This files must be saved with the first six digits of the project's job number"]
[]
[null,"E.G."]
[]
[null,"Filename = ","\"LPQ909 - Meeting Centre BIM Maturity Measure\""]

{"sheet":"Notes","index":1,"n_rows":10,"n_cols":4,"rows_kept":10,"cut":false,"hidden":false,"merged":[[1,1,1,2],[7,1,7,2],[5,2,5,5],[3,2,3,7]]}
[]
[]
[null,null,"FOR FURTHER INFORMATION, VISIT:"]
[null,null,"http://www.arup.com/Services/Building_Modelling.aspx"]
[]
[null,null,"This work by Arup is a derivative of the BIM Project Execution Planning Guide by CIC Research Group, Department of Architectural Engineering, \nPennsylvania State University which, is licensed under a Creative Commons Attribution-Share Alike 3.0 United States License: \nhttp://creativecommons.org/licenses/by-sa/3.0/us/. \nCopyright © 2012. The Computer Integrated Construction Research Group, Pennsylvania State University."]
[]
[null,"Version History"]
[]
[null,"1.0.0","2014-12-02","Released on www.arup.com/Services/Building_Modelling.aspx "]

{"sheet":"Configuration","index":2,"n_rows":78,"n_cols":6,"rows_kept":78,"cut":false,"hidden":false,"merged":[[1,0,1,1],[2,2,2,3]]}
[]
["BIM Maturity Measure"]
["Brought to you by",null,"Set the number of characters for your job number formatting (e.g. LPQ909 = 6 characters):",null,6,"Vr = 1.0.0"]
[null,null,null,"Discipline Presets"]
[]
[null,"Buildings",null,"Infrastructure",null,"Consulting"]
[]
[]
[]
[]
[]
[]
[null,"Primary Discipines"]
[]
[1,"Structural"]
[2,"Mechanical"]
[3,"Electrical"]
[4,"Public Health"]
[]
[null,"Secondary Disiplines"]
[]
[null,"Row 1",null,"Row 2",null,"Row 3"]
[5,"Facades",12,null,19]
[6,"Geotechnics",13,null,20]
[7,"Lighting",14,null,21]
[8,null,15,null,22]
[9,null,16,null,23]
[10,null,17,null,24]
[11,null,18,null,25]
[]
[]
[null,"Please use this page to select the disciplines that you wish to measure using the BIM Maturity Measure"]
[]
[null,"These disciplines will then be displayed when you select 'GO TO COVER PAGE' above"]
[]
[null,"This work by Arup is a derivative of the BIM Project Execution Planning Guide by CIC Research Group, Department of Architectural Engineering,"]
[null,"Pennsylvania State University which, is licensed under a Creative Commons Attribution-Share Alike 3.0 United States License:"]
[null,"http://creativecommons.org/licenses/by-sa/3.0/us/"]
[null,"Copyright © 2012. The Computer Integrated Construction Research Group, Pennsylvania State University."]
[]
[]
[]
[]
[null,"Disciplines"]
[null,"Architecture"]
[null,"Acoustics"]
[null,"Audio Visual"]
[null,"Aviation"]
[null,"Bridges"]
[null,"BPS"]
[null,"Retrofit"]
[null,"Civils"]
[null,"Cost Mgmt"]
[null,"Energy"]
[null,"Building Physics"]
[null,"Electrical"]
[null,"Facades"]
[null,"FM"]
[null,"Fire"]
[null,"Geotechnics"]
[null,"Highways"]
[null,"Lighting"]
[null,"Logistics"]
[null,"Mgmt Consulting"]
[null,"Maritime"]
[null,"Masterplanning"]
[null,"Mechanical"]
[null,"Planning"]
[null,"Public Health"]
[null,"Rail"]
[null,"Security"]
[null,"Structural"]
[null,"Tunnels"]
[null,"Water"]
[null,"Wind"]
[]
[]
[null,{"$f":"COUNTA(B45:B75)","v":31}]

{"sheet":"Data_Project","index":3,"n_rows":14,"n_cols":358,"rows_kept":14,"cut":false,"hidden":true,"merged":[[0,293,0,305],[0,306,0,318],[0,319,0,331],[0,332,0,344],[0,345,0,357],[0,280,0,292],[0,137,0,149],[0,150,0,162],[0,163,0,175],[0,176,0,188],[0,189,0,201],[0,202,0,214],[0,215,0,227],[0,228,0,240],[0,241,0,253],[0,254,0,266],[0,267,0,279],[0,124,0,136],[0,0,0,12],[0,15,0,16],[0,17,0,19],[0,20,0,32],[0,33,0,45],[0,46,0,58],[0,59,0,71],[0,72,0,84],[0,85,0,97],[0,98,0,110],[0,111,0,123]]}
["Project Details",null,null,null,null,null,null,null,null,null,null,null,null,"DisciplinesScored",null,"Save Details",null,"ProjectTotals",null,null,"Project IM Scores",null,null,null,null,null,null,null,null,null,null,null,null,"Primary1",null,null,null,null,null,null,null,null,null,null,null,null,"Primary2",null,null,null,null,null,null,null,null,null,null,null,null,"Primary3",null,null,null,null,null,null,null,null,null,null,null,null,"Primary4",null,null,null,null,null,null,null,null,null,null,null,null,"Secondary1",null,null,null,null,null,null,null,null,null,null,null,null,"Secondary2",null,null,null,null,null,null,null,null,null,null,null,null,"Secondary3",null,null,null,null,null,null,null,null,null,null,null,null,"Secondary4",null,null,null,null,null,null,null,null,null,null,null,null,"Secondary5",null,null,null,null,null,null,null,null,null,null,null,null,"Secondary6",null,null,null,null,null,null,null,null,null,null,null,null,"Secondary7",null,null,null,null,null,null,null,null,null,null,null,null,"Secondary8",null,null,null,null,null,null,null,null,null,null,null,null,"Secondary9",null,null,null,null,null,null,null,null,null,null,null,null,"Secondary10",null,null,null,null,null,null,null,null,null,null,null,null,"Secondary11",null,null,null,null,null,null,null,null,null,null,null,null,"Secondary12",null,null,null,null,null,null,null,null,null,null,null,null,"Secondary13",null,null,null,null,null,null,null,null,null,null,null,null,"Secondary14",null,null,null,null,null,null,null,null,null,null,null,null,"Secondary15",null,null,null,null,null,null,null,null,null,null,null,null,"Secondary16",null,null,null,null,null,null,null,null,null,null,null,null,"Secondary17",null,null,null,null,null,null,null,null,null,null,null,null,"Secondary18",null,null,null,null,null,null,null,null,null,null,null,null,"Secondary19",null,null,null,null,null,null,null,null,null,null,null,null,"Secondary20",null,null,null,null,null,null,null,null,null,null,null,null,"Secondary21"]
["JobNo","Project Title","Group","Director","Manager","Project Type","Location","Client","Client Type","Architect","Start","Finish","ProjectStage","DisciplinesScored","CDE Used","LastSavedBy","LastSaved","Phase1","Primary","Primary+Secondary","IM_Disc","IM_Score","IM_EIRs","IM_BIM Data Review","IM_BEP","IM_PAS1192","IM_CDE","IM_Marketing Strategy","IM_VDRs","IM_Open Standards","IM_BIM Contract","IM_BIM Champion","IM_","P1_Disc","P1_Score","P1_3D Model","P1_Drawings","P1_LoD","P1_Reviews","P1_Data","P1_Visualisation","P1_4D (time)","P1_5D (cost)","P1_Analysis","P1_Contractor Use","P1_FM/OM Use","P2_Disc","P2_Score","P2_3D Model","P2_Drawings","P2_LoD","P2_Reviews","P2_Data","P2_Visualisation","P2_4D (time)","P2_5D (cost)","P2_Analysis","P2_Contractor Use","P2_FM/OM Use","P3_Disc","P3_Score","P3_3D Model","P3_Drawings","P3_LoD","P3_Reviews","P3_Data","P3_Visualisation","P3_4D (time)","P3_5D (cost)","P3_Analysis","P3_Contractor Use","P3_FM/OM Use","P4_Disc","P4_Score","P4_3D Model","P4_Drawings","P4_LoD","P4_Reviews","P4_Data","P4_Visualisation","P4_4D (time)","P4_5D (cost)","P4_Analysis","P4_Contractor Use","P4_FM/OM Use","S1_Disc","S1_Score","S1_3D Model","S1_Drawings","S1_LoD","S1_Reviews","S1_Data","S1_Visualisation","S1_4D (time)","S1_5D (cost)","S1_Analysis","S1_Contractor Use","S1_FM/OM Use","S2_Disc","S2_Score","S2_3D Model","S2_Drawings","S2_LoD","S2_Reviews","S2_Data","S2_Visualisation","S2_4D (time)","S2_5D (cost)","S2_Analysis","S2_Contractor Use","S2_FM/OM Use","S3_Disc","S3_Score","S3_3D Model","S3_Drawings","S3_LoD","S3_Reviews","S3_Data","S3_Visualisation","S3_4D (time)","S3_5D (cost)","S3_Analysis","S3_Contractor Use","S3_FM/OM Use","S4_Disc","S4_Score","S4_3D Model","S4_Drawings","S4_LoD","S4_Reviews","S4_Data","S4_Visualisation","S4_4D (time)","S4_5D (cost)","S4_Analysis","S4_Contractor Use","S4_FM/OM Use","S5_Disc","S5_Score","S5_3D Model","S5_Drawings","S5_LoD","S5_Reviews","S5_Data","S5_Visualisation","S5_4D (time)","S5_5D (cost)","S5_Analysis","S5_Contractor Use","S5_FM/OM Use","S6_Disc","S6_Score","S6_3D Model","S6_Drawings","S6_LoD","S6_Reviews","S6_Data","S6_Visualisation","S6_4D (time)","S6_5D (cost)","S6_Analysis","S6_Contractor Use","S6_FM/OM Use","S7_Disc","S7_Score","S7_3D Model","S7_Drawings","S7_LoD","S7_Reviews","S7_Data","S7_Visualisation","S7_4D (time)","S7_5D (cost)","S7_Analysis","S7_Contractor Use","S7_FM/OM Use","S8_Disc","S8_Score","S8_3D Model","S8_Drawings","S8_LoD","S8_Reviews","S8_Data","S8_Visualisation","S8_4D (time)","S8_5D (cost)","S8_Analysis","S8_Contractor Use","S8_FM/OM Use","S9_Disc","S9_Score","S9_3D Model","S9_Drawings","S9_LoD","S9_Reviews","S9_Data","S9_Visualisation","S9_4D (time)","S9_5D (cost)","S9_Analysis","S9_Contractor Use","S9_FM/OM Use","S10_Disc","S10_Score","S10_3D Model","S10_Drawings","S10_LoD","S10_Reviews","S10_Data","S10_Visualisation","S10_4D (time)","S10_5D (cost)","S10_Analysis","S10_Contractor Use","S10_FM/OM Use","S11_Disc","S11_Score","S11_3D Model","S11_Drawings","S11_LoD","S11_Reviews","S11_Data","S11_Visualisation","S11_4D (time)","S11_5D (cost)","S11_Analysis","S11_Contractor Use","S11_FM/OM Use","S12_Disc","S12_Score","S12_3D Model","S12_Drawings","S12_LoD","S12_Reviews","S12_Data","S12_Visualisation","S12_4D (time)","S12_5D (cost)","S12_Analysis","S12_Contractor Use","S12_FM/OM Use","S13_Disc","S13_Score","S13_3D Model","S13_Drawings","S13_LoD","S13_Reviews","S13_Data","S13_Visualisation","S13_4D (time)","S13_5D (cost)","S13_Analysis","S13_Contractor Use","S13_FM/OM Use","S14_Disc","S14_Score","S14_3D Model","S14_Drawings","S14_LoD","S14_Reviews","S14_Data","S14_Visualisation","S14_4D (time)","S14_5D (cost)","S14_Analysis","S14_Contractor Use","S14_FM/OM Use","S15_Disc","S15_Score","S15_3D Model","S15_Drawings","S15_LoD","S15_Reviews","S15_Data","S15_Visualisation","S15_4D (time)","S15_5D (cost)","S15_Analysis","S15_Contractor Use","S15_FM/OM Use","S16_Disc","S16_Score","S16_3D Model","S16_Drawings","S16_LoD","S16_Reviews","S16_Data","S16_Visualisation","S16_4D (time)","S16_5D (cost)","S16_Analysis","S16_Contractor Use","S16_FM/OM Use","S17_Disc","S17_Score","S17_3D Model","S17_Drawings","S17_LoD","S17_Reviews","S17_Data","S17_Visualisation","S17_4D (time)","S17_5D (cost)","S17_Analysis","S17_Contractor Use","S17_FM/OM Use","S18_Disc","S18_Score","S18_3D Model","S18_Drawings","S18_LoD","S18_Reviews","S18_Data","S18_Visualisation","S18_4D (time)","S18_5D (cost)","S18_Analysis","S18_Contractor Use","S18_FM/OM Use","S19_Disc","S19_Score","S19_3D Model","S19_Drawings","S19_LoD","S19_Reviews","S19_Data","S19_Visualisation","S19_4D (time)","S19_5D (cost)","S19_Analysis","S19_Contractor Use","S19_FM/OM Use","S20_Disc","S20_Score","S20_3D Model","S20_Drawings","S20_LoD","S20_Reviews","S20_Data","S20_Visualisation","S20_4D (time)","S20_5D (cost)","S20_Analysis","S20_Contractor Use","S20_FM/OM Use","S21_Disc","S21_Score","S21_3D Model","S21_Drawings","S21_LoD","S21_Reviews","S21_Data","S21_Visualisation","S21_4D (time)","S21_5D (cost)","S21_Analysis","S21_Contractor Use","S21_FM/OM Use"]
[{"$f":"Cover!$F$2","v":"Copy o"},{"$f":"Cover!$F$3","v":"Project XXXXXXXXXXX"},{"$f":"Cover!$D$14","v":"Structures London"},{"$f":"Cover!$D$15","v":"John Smith"},{"$f":"Cover!$D$16","v":"John Smith"},{"$f":"Cover!$D$18","v":"Office Building"},{"$f":"Cover!$D$19","v":"London"},{"$f":"Cover!$D$21","v":"BigDevelopments, Inc"},{"$f":"Cover!$D$22","v":"Contractor Client Sector"},{"$f":"Cover!$D$24","v":"Bold Architects, Inc"},{"$f":"Cover!$D$26","v":"2014-01-01"},{"$f":"Cover!$D$27","v":"2015-12-31"},{"$f":"Cover!$D$9","v":"Concept"},{"$f":"Cover!$D$10","v":""},{"$f":"Cover!$D$11","v":"Internal Network Folder – manual process"},{"$f":"Cover!$J$2","v":"jason.riseborough"},{"$f":"Cover!J3","v":"2014-12-05"},{"$f":"Cover!C7","v":0},{"$f":"Cover!D7","v":0},{"$f":"Cover!E7","v":"NA"},{"$f":"Cover!$D$32","v":"Project"},{"$f":"Cover!$D$33","v":0},{"$f":"Cover!$D42","v":0},{"$f":"Cover!$D43","v":0},{"$f":"Cover!$D44","v":0},{"$f":"Cover!$D45","v":0},{"$f":"Cover!$D46","v":0},{"$f":"Cover!$D47","v":0},{"$f":"Cover!$D48","v":0},{"$f":"Cover!$D49","v":0},{"$f":"Cover!$D50","v":0},{"$f":"Cover!$D51","v":0},{"$f":"Cover!$D52","v":0},{"$f":"Cover!G32","v":"Structural"},{"$f":"Cover!G33","v":0},{"$f":"Cover!G42","v":0},{"$f":"Cover!G43","v":0},{"$f":"Cover!G44","v":0},{"$f":"Cover!G45","v":0},{"$f":"Cover!G46","v":0},{"$f":"Cover!G47","v":0},{"$f":"Cover!G48","v":0},{"$f":"Cover!G49","v":0},{"$f":"Cover!G50","v":0},{"$f":"Cover!G51","v":0},{"$f":"Cover!G52","v":0},{"$f":"Cover!H32","v":"Mechanical"},{"$f":"Cover!H33","v":0},{"$f":"Cover!H42","v":0},{"$f":"Cover!H43","v":0},{"$f":"Cover!H44","v":0},{"$f":"Cover!H45","v":0},{"$f":"Cover!H46","v":0},{"$f":"Cover!H47","v":0},{"$f":"Cover!H48","v":0},{"$f":"Cover!H49","v":0},{"$f":"Cover!H50","v":0},{"$f":"Cover!H51","v":0},{"$f":"Cover!H52","v":0},{"$f":"Cover!I32","v":"Electrical"},{"$f":"Cover!I33","v":0},{"$f":"Cover!I42","v":0},{"$f":"Cover!I43","v":0},{"$f":"Cover!I44","v":0},{"$f":"Cover!I45","v":0},{"$f":"Cover!I46","v":0},{"$f":"Cover!I47","v":0},{"$f":"Cover!I48","v":0},{"$f":"Cover!I49","v":0},{"$f":"Cover!I50","v":0},{"$f":"Cover!I51","v":0},{"$f":"Cover!I52","v":0},{"$f":"Cover!J32","v":"Public Health"},{"$f":"Cover!J33","v":0},{"$f":"Cover!J42","v":0},{"$f":"Cover!J43","v":0},{"$f":"Cover!J44","v":0},{"$f":"Cover!J45","v":0},{"$f":"Cover!J46","v":0},{"$f":"Cover!J47","v":0},{"$f":"Cover!J48","v":0},{"$f":"Cover!J49","v":0},{"$f":"Cover!J50","v":0},{"$f":"Cover!J51","v":0},{"$f":"Cover!J52","v":0},{"$f":"Cover!D55","v":"Facades"},{"$f":"Cover!D56","v":0},{"$f":"Cover!D65","v":0},{"$f":"Cover!D66","v":0},{"$f":"Cover!D67","v":0},{"$f":"Cover!D68","v":0},{"$f":"Cover!D69","v":0},{"$f":"Cover!D70","v":0},{"$f":"Cover!D71","v":0},{"$f":"Cover!D72","v":0},{"$f":"Cover!D73","v":0},{"$f":"Cover!D74","v":0},{"$f":"Cover!D75","v":0},{"$f":"Cover!E55","v":"Geotechnics"},{"$f":"Cover!E56","v":0},{"$f":"Cover!E65","v":0},{"$f":"Cover!E66","v":0},{"$f":"Cover!E67","v":0},{"$f":"Cover!E68","v":0},{"$f":"Cover!E69","v":0},{"$f":"Cover!E70","v":0},{"$f":"Cover!E71","v":0},{"$f":"Cover!E72","v":0},{"$f":"Cover!E73","v":0},{"$f":"Cover!E74","v":0},{"$f":"Cover!E75","v":0},{"$f":"Cover!F55","v":"Lighting"},{"$f":"Cover!F56","v":0},{"$f":"Cover!F65","v":0},{"$f":"Cover!F66","v":0},{"$f":"Cover!F67","v":0},{"$f":"Cover!F68","v":0},{"$f":"Cover!F69","v":0},{"$f":"Cover!F70","v":0},{"$f":"Cover!F71","v":0},{"$f":"Cover!F72","v":0},{"$f":"Cover!F73","v":0},{"$f":"Cover!F74","v":0},{"$f":"Cover!F75","v":0},{"$f":"Cover!G55","v":""},{"$f":"Cover!G56","v":0},{"$f":"Cover!G65","v":""},{"$f":"Cover!G66","v":""},{"$f":"Cover!G67","v":""},{"$f":"Cover!G68","v":""},{"$f":"Cover!G69","v":""},{"$f":"Cover!G70","v":""},{"$f":"Cover!G71","v":""},{"$f":"Cover!G72","v":""},{"$f":"Cover!G73","v":""},{"$f":"Cover!G74","v":""},{"$f":"Cover!G75","v":""},{"$f":"Cover!H55","v":""},{"$f":"Cover!H56","v":0},{"$f":"Cover!H65","v":""},{"$f":"Cover!H66","v":""},{"$f":"Cover!H67","v":""},{"$f":"Cover!H68","v":""},{"$f":"Cover!H69","v":""},{"$f":"Cover!H70","v":""},{"$f":"Cover!H71","v":""},{"$f":"Cover!H72","v":""},{"$f":"Cover!H73","v":""},{"$f":"Cover!H74","v":""},{"$f":"Cover!H75","v":""},{"$f":"Cover!I55","v":""},{"$f":"Cover!I56","v":0},{"$f":"Cover!I65","v":""},{"$f":"Cover!I66","v":""},{"$f":"Cover!I67","v":""},{"$f":"Cover!I68","v":""},{"$f":"Cover!I69","v":""},{"$f":"Cover!I70","v":""},{"$f":"Cover!I71","v":""},{"$f":"Cover!I72","v":""},{"$f":"Cover!I73","v":""},{"$f":"Cover!I74","v":""},{"$f":"Cover!I75","v":""},{"$f":"Cover!J55","v":""},{"$f":"Cover!J56","v":0},{"$f":"Cover!J65","v":""},{"$f":"Cover!J66","v":""},{"$f":"Cover!J67","v":""},{"$f":"Cover!J68","v":""},{"$f":"Cover!J69","v":""},{"$f":"Cover!J70","v":""},{"$f":"Cover!J71","v":""},{"$f":"Cover!J72","v":""},{"$f":"Cover!J73","v":""},{"$f":"Cover!J74","v":""},{"$f":"Cover!J75","v":""},{"$f":"Cover!D78","v":""},{"$f":"Cover!D79","v":0},{"$f":"Cover!D88","v":""},{"$f":"Cover!D89","v":""},{"$f":"Cover!D90","v":""},{"$f":"Cover!D91","v":""},{"$f":"Cover!D92","v":""},{"$f":"Cover!D93","v":""},{"$f":"Cover!D94","v":""},{"$f":"Cover!D95","v":""},{"$f":"Cover!D96","v":""},{"$f":"Cover!D97","v":""},{"$f":"Cover!D98","v":""},{"$f":"Cover!E78","v":""},{"$f":"Cover!E79","v":0},{"$f":"Cover!E88","v":""},{"$f":"Cover!E89","v":""},{"$f":"Cover!E90","v":""},{"$f":"Cover!E91","v":""},{"$f":"Cover!E92","v":""},{"$f":"Cover!E93","v":""},{"$f":"Cover!E94","v":""},{"$f":"Cover!E95","v":""},{"$f":"Cover!E96","v":""},{"$f":"Cover!E97","v":""},{"$f":"Cover!E98","v":""},{"$f":"Cover!F78","v":""},{"$f":"Cover!F79","v":0},{"$f":"Cover!F88","v":""},{"$f":"Cover!F89","v":""},{"$f":"Cover!F90","v":""},{"$f":"Cover!F91","v":""},{"$f":"Cover!F92","v":""},{"$f":"Cover!F93","v":""},{"$f":"Cover!F94","v":""},{"$f":"Cover!F95","v":""},{"$f":"Cover!F96","v":""},{"$f":"Cover!F97","v":""},{"$f":"Cover!F98","v":""},{"$f":"Cover!G78","v":""},{"$f":"Cover!G79","v":0},{"$f":"Cover!G88","v":""},{"$f":"Cover!G89","v":""},{"$f":"Cover!G90","v":""},{"$f":"Cover!G91","v":""},{"$f":"Cover!G92","v":""},{"$f":"Cover!G93","v":""},{"$f":"Cover!G94","v":""},{"$f":"Cover!G95","v":""},{"$f":"Cover!G96","v":""},{"$f":"Cover!G97","v":""},{"$f":"Cover!G98","v":""},{"$f":"Cover!H78","v":""},{"$f":"Cover!H79","v":0},{"$f":"Cover!H88","v":""},{"$f":"Cover!H89","v":""},{"$f":"Cover!H90","v":""},{"$f":"Cover!H91","v":""},{"$f":"Cover!H92","v":""},{"$f":"Cover!H93","v":""},{"$f":"Cover!H94","v":""},{"$f":"Cover!H95","v":""},{"$f":"Cover!H96","v":""},{"$f":"Cover!H97","v":""},{"$f":"Cover!H98","v":""},{"$f":"Cover!I78","v":""},{"$f":"Cover!I79","v":0},{"$f":"Cover!I88","v":""},{"$f":"Cover!I89","v":""},{"$f":"Cover!I90","v":""},{"$f":"Cover!I91","v":""},{"$f":"Cover!I92","v":""},{"$f":"Cover!I93","v":""},{"$f":"Cover!I94","v":""},{"$f":"Cover!I95","v":""},{"$f":"Cover!I96","v":""},{"$f":"Cover!I97","v":""},{"$f":"Cover!I98","v":""},{"$f":"Cover!J78","v":""},{"$f":"Cover!J79","v":0},{"$f":"Cover!J88","v":""},{"$f":"Cover!J89","v":""},{"$f":"Cover!J90","v":""},{"$f":"Cover!J91","v":""},{"$f":"Cover!J92","v":""},{"$f":"Cover!J93","v":""},{"$f":"Cover!J94","v":""},{"$f":"Cover!J95","v":""},{"$f":"Cover!J96","v":""},{"$f":"Cover!J97","v":""},{"$f":"Cover!J98","v":""},{"$f":"Cover!D101","v":""},{"$f":"Cover!D102","v":0},{"$f":"Cover!D111","v":""},{"$f":"Cover!D112","v":""},{"$f":"Cover!D113","v":""},{"$f":"Cover!D114","v":""},{"$f":"Cover!D115","v":""},{"$f":"Cover!D116","v":""},{"$f":"Cover!D117","v":""},{"$f":"Cover!D118","v":""},{"$f":"Cover!D119","v":""},{"$f":"Cover!D120","v":""},{"$f":"Cover!D121","v":""},{"$f":"Cover!E101","v":""},{"$f":"Cover!E102","v":0},{"$f":"Cover!E111","v":""},{"$f":"Cover!E112","v":""},{"$f":"Cover!E113","v":""},{"$f":"Cover!E114","v":""},{"$f":"Cover!E115","v":""},{"$f":"Cover!E116","v":""},{"$f":"Cover!E117","v":""},{"$f":"Cover!E118","v":""},{"$f":"Cover!E119","v":""},{"$f":"Cover!E120","v":""},{"$f":"Cover!E121","v":""},{"$f":"Cover!F101","v":""},{"$f":"Cover!F102","v":0},{"$f":"Cover!F111","v":""},{"$f":"Cover!F112","v":""},{"$f":"Cover!F113","v":""},{"$f":"Cover!F114","v":""},{"$f":"Cover!F115","v":""},{"$f":"Cover!F116","v":""},{"$f":"Cover!F117","v":""},{"$f":"Cover!F118","v":""},{"$f":"Cover!F119","v":""},{"$f":"Cover!F120","v":""},{"$f":"Cover!F121","v":""},{"$f":"Cover!G101","v":""},{"$f":"Cover!G102","v":0},{"$f":"Cover!G111","v":""},{"$f":"Cover!G112","v":""},{"$f":"Cover!G113","v":""},{"$f":"Cover!G114","v":""},{"$f":"Cover!G115","v":""},{"$f":"Cover!G116","v":""},{"$f":"Cover!G117","v":""},{"$f":"Cover!G118","v":""},{"$f":"Cover!G119","v":""},{"$f":"Cover!G120","v":""},{"$f":"Cover!G121","v":""},{"$f":"Cover!H101","v":""},{"$f":"Cover!H102","v":0},{"$f":"Cover!H111","v":""},{"$f":"Cover!H112","v":""},{"$f":"Cover!H113","v":""},{"$f":"Cover!H114","v":""},{"$f":"Cover!H115","v":""},{"$f":"Cover!H116","v":""},{"$f":"Cover!H117","v":""},{"$f":"Cover!H118","v":""},{"$f":"Cover!H119","v":""},{"$f":"Cover!H120","v":""},{"$f":"Cover!H121","v":""},{"$f":"Cover!I101","v":""},{"$f":"Cover!I102","v":0},{"$f":"Cover!I111","v":""},{"$f":"Cover!I112","v":""},{"$f":"Cover!I113","v":""},{"$f":"Cover!I114","v":""},{"$f":"Cover!I115","v":""},{"$f":"Cover!I116","v":""},{"$f":"Cover!I117","v":""},{"$f":"Cover!I118","v":""},{"$f":"Cover!I119","v":""},{"$f":"Cover!I120","v":""},{"$f":"Cover!I121","v":""},{"$f":"Cover!J101","v":""},{"$f":"Cover!J102","v":0},{"$f":"Cover!J111","v":""},{"$f":"Cover!J112","v":""},{"$f":"Cover!J113","v":""},{"$f":"Cover!J114","v":""},{"$f":"Cover!J115","v":""},{"$f":"Cover!J116","v":""},{"$f":"Cover!J117","v":""},{"$f":"Cover!J118","v":""},{"$f":"Cover!J119","v":""},{"$f":"Cover!J120","v":""},{"$f":"Cover!J121","v":""}]
[]
[]
[null,null,null,null,null,null,null,null,null,null,null,null,null,null,null,null,null,null,null,null,null,null,null,null,null,null,null,null,null,null,null,null,null,null,null,null,null,null,null,null,null,null,null,null,null,null,null,null,null,null,null,null,null,null,null,null,null,null,null,null,null,null,null,null,null,null,null,null,null,null,null,null,null,null,null,null,null,null,null,null,null,null,null,null,null,null,null,null,null,null,null,null,null,null,null,null,null,null,null,null,null,null,null,null,null,null,null,null,null,null,null,null,null,null,null,null,null,null,null,null,null,null,null,null,null,null,null,null,null,null,null,null,null,null,null,null,null,null,null,null,null,null,null,null,null,null,null,null,null,null,null,null,null,null,null,null,null,null,null,null,null,null,null,null,null,null,null,null,null,null,null,null,null,null,null,null,null,null,null,null,null,null,null,null,null,null,null,null,null,null,null,null,null,null,null,null,null,null,null,null,null,null,null,null,null,null,null,null,null,null,null,null,null,null,null,null,null,null,null,null,null,null,null,null,null,null,null,null,null,null,null,null,null,null,null,null,null,null,null,null,null,null,null,null,null,null,null,null,null,null,null,null,null,null,null,null,null,null,null,null,null,null,null,null,null,null,null,{"$f":"Cover!D113","v":""}]
[null,null,null,null,null,null,null,null,null,null,null,null,null,null,null,null,null,null,null,null,null,null,null,null,null,null,null,null,null,null,null,null,null,null,null,null,null,null,null,null,null,null,null,null,null,null,null,null,null,null,null,null,null,null,null,null,null,null,null,null,null,null,null,null,null,null,null,null,null,null,null,null,null,null,null,null,null,null,null,null,null,null,null,null,null,null,null,null,null,null,null,null,null,null,null,null,null,null,null,null,null,null,null,null,null,null,null,null,null,null,null,null,null,null,null,null,null,null,null,null,null,null,null,null,null,null,null,null,null,null,null,null,null,null,null,null,null,null,null,null,null,null,null,null,null,null,null,null,null,null,null,null,null,null,null,null,null,null,null,null,null,null,null,null,null,null,null,null,null,null,null,null,null,null,null,null,null,null,null,null,null,null,null,null,null,null,null,null,null,null,null,null,null,null,null,null,null,null,null,null,null,null,null,null,null,null,null,null,null,null,null,null,null,null,null,null,null,null,null,null,null,null,null,null,null,null,null,null,null,null,null,null,null,null,null,null,null,null,null,null,null,null,null,null,null,null,null,null,null,null,null,null,null,null,null,null,null,null,null,null,null,null,null,null,null,null,null,{"$f":"Cover!D114","v":""}]
[null,null,null,null,null,null,null,null,null,null,null,null,null,null,null,null,null,null,null,null,null,null,null,null,null,null,null,null,null,null,null,null,null,null,null,null,null,null,null,null,null,null,null,null,null,null,null,null,null,null,null,null,null,null,null,null,null,null,null,null,null,null,null,null,null,null,null,null,null,null,null,null,null,null,null,null,null,null,null,null,null,null,null,null,null,null,null,null,null,null,null,null,null,null,null,null,null,null,null,null,null,null,null,null,null,null,null,null,null,null,null,null,null,null,null,null,null,null,null,null,null,null,null,null,null,null,null,null,null,null,null,null,null,null,null,null,null,null,null,null,null,null,null,null,null,null,null,null,null,null,null,null,null,null,null,null,null,null,null,null,null,null,null,null,null,null,null,null,null,null,null,null,null,null,null,null,null,null,null,null,null,null,null,null,null,null,null,null,null,null,null,null,null,null,null,null,null,null,null,null,null,null,null,null,null,null,null,null,null,null,null,null,null,null,null,null,null,null,null,null,null,null,null,null,null,null,null,null,null,null,null,null,null,null,null,null,null,null,null,null,null,null,null,null,null,null,null,null,null,null,null,null,null,null,null,null,null,null,null,null,null,null,null,null,null,null,null,{"$f":"Cover!D115","v":""}]
[null,null,null,null,null,null,null,null,null,null,null,null,null,null,null,null,null,null,null,null,null,null,null,null,null,null,null,null,null,null,null,null,null,null,null,null,null,null,null,null,null,null,null,null,null,null,null,null,null,null,null,null,null,null,null,null,null,null,null,null,null,null,null,null,null,null,null,null,null,null,null,null,null,null,null,null,null,null,null,null,null,null,null,null,null,null,null,null,null,null,null,null,null,null,null,null,null,null,null,null,null,null,null,null,null,null,null,null,null,null,null,null,null,null,null,null,null,null,null,null,null,null,null,null,null,null,null,null,null,null,null,null,null,null,null,null,null,null,null,null,null,null,null,null,null,null,null,null,null,null,null,null,null,null,null,null,null,null,null,null,null,null,null,null,null,null,null,null,null,null,null,null,null,null,null,null,null,null,null,null,null,null,null,null,null,null,null,null,null,null,null,null,null,null,null,null,null,null,null,null,null,null,null,null,null,null,null,null,null,null,null,null,null,null,null,null,null,null,null,null,null,null,null,null,null,null,null,null,null,null,null,null,null,null,null,null,null,null,null,null,null,null,null,null,null,null,null,null,null,null,null,null,null,null,null,null,null,null,null,null,null,null,null,null,null,null,null,{"$f":"Cover!D116","v":""}]
[null,null,null,null,null,null,null,null,null,null,null,null,null,null,null,null,null,null,null,null,null,null,null,null,null,null,null,null,null,null,null,null,null,null,null,null,null,null,null,null,null,null,null,null,null,null,null,null,null,null,null,null,null,null,null,null,null,null,null,null,null,null,null,null,null,null,null,null,null,null,null,null,null,null,null,null,null,null,null,null,null,null,null,null,null,null,null,null,null,null,null,null,null,null,null,null,null,null,null,null,null,null,null,null,null,null,null,null,null,null,null,null,null,null,null,null,null,null,null,null,null,null,null,null,null,null,null,null,null,null,null,null,null,null,null,null,null,null,null,null,null,null,null,null,null,null,null,null,null,null,null,null,null,null,null,null,null,null,null,null,null,null,null,null,null,null,null,null,null,null,null,null,null,null,null,null,null,null,null,null,null,null,null,null,null,null,null,null,null,null,null,null,null,null,null,null,null,null,null,null,null,null,null,null,null,null,null,null,null,null,null,null,null,null,null,null,null,null,null,null,null,null,null,null,null,null,null,null,null,null,null,null,null,null,null,null,null,null,null,null,null,null,null,null,null,null,null,null,null,null,null,null,null,null,null,null,null,null,null,null,null,null,null,null,null,null,null,{"$f":"Cover!D117","v":""}]
[null,null,null,null,null,null,null,null,null,null,null,null,null,null,null,null,null,null,null,null,null,null,null,null,null,null,null,null,null,null,null,null,null,null,null,null,null,null,null,null,null,null,null,null,null,null,null,null,null,null,null,null,null,null,null,null,null,null,null,null,null,null,null,null,null,null,null,null,null,null,null,null,null,null,null,null,null,null,null,null,null,null,null,null,null,null,null,null,null,null,null,null,null,null,null,null,null,null,null,null,null,null,null,null,null,null,null,null,null,null,null,null,null,null,null,null,null,null,null,null,null,null,null,null,null,null,null,null,null,null,null,null,null,null,null,null,null,null,null,null,null,null,null,null,null,null,null,null,null,null,null,null,null,null,null,null,null,null,null,null,null,null,null,null,null,null,null,null,null,null,null,null,null,null,null,null,null,null,null,null,null,null,null,null,null,null,null,null,null,null,null,null,null,null,null,null,null,null,null,null,null,null,null,null,null,null,null,null,null,null,null,null,null,null,null,null,null,null,null,null,null,null,null,null,null,null,null,null,null,null,null,null,null,null,null,null,null,null,null,null,null,null,null,null,null,null,null,null,null,null,null,null,null,null,null,null,null,null,null,null,null,null,null,null,null,null,null,{"$f":"Cover!D118","v":""}]
[null,null,null,null,null,null,null,null,null,null,null,null,null,null,null,null,null,null,null,null,null,null,null,null,null,null,null,null,null,null,null,null,null,null,null,null,null,null,null,null,null,null,null,null,null,null,null,null,null,null,null,null,null,null,null,null,null,null,null,null,null,null,null,null,null,null,null,null,null,null,null,null,null,null,null,null,null,null,null,null,null,null,null,null,null,null,null,null,null,null,null,null,null,null,null,null,null,null,null,null,null,null,null,null,null,null,null,null,null,null,null,null,null,null,null,null,null,null,null,null,null,null,null,null,null,null,null,null,null,null,null,null,null,null,null,null,null,null,null,null,null,null,null,null,null,null,null,null,null,null,null,null,null,null,null,null,null,null,null,null,null,null,null,null,null,null,null,null,null,null,null,null,null,null,null,null,null,null,null,null,null,null,null,null,null,null,null,null,null,null,null,null,null,null,null,null,null,null,null,null,null,null,null,null,null,null,null,null,null,null,null,null,null,null,null,null,null,null,null,null,null,null,null,null,null,null,null,null,null,null,null,null,null,null,null,null,null,null,null,null,null,null,null,null,null,null,null,null,null,null,null,null,null,null,null,null,null,null,null,null,null,null,null,null,null,null,null,{"$f":"Cover!D119","v":""}]
[null,null,null,null,null,null,null,null,null,null,null,null,null,null,null,null,null,null,null,null,null,null,null,null,null,null,null,null,null,null,null,null,null,null,null,null,null,null,null,null,null,null,null,null,null,null,null,null,null,null,null,null,null,null,null,null,null,null,null,null,null,null,null,null,null,null,null,null,null,null,null,null,null,null,null,null,null,null,null,null,null,null,null,null,null,null,null,null,null,null,null,null,null,null,null,null,null,null,null,null,null,null,null,null,null,null,null,null,null,null,null,null,null,null,null,null,null,null,null,null,null,null,null,null,null,null,null,null,null,null,null,null,null,null,null,null,null,null,null,null,null,null,null,null,null,null,null,null,null,null,null,null,null,null,null,null,null,null,null,null,null,null,null,null,null,null,null,null,null,null,null,null,null,null,null,null,null,null,null,null,null,null,null,null,null,null,null,null,null,null,null,null,null,null,null,null,null,null,null,null,null,null,null,null,null,null,null,null,null,null,null,null,null,null,null,null,null,null,null,null,null,null,null,null,null,null,null,null,null,null,null,null,null,null,null,null,null,null,null,null,null,null,null,null,null,null,null,null,null,null,null,null,null,null,null,null,null,null,null,null,null,null,null,null,null,null,null,{"$f":"Cover!D120","v":""}]
[null,null,null,null,null,null,null,null,null,null,null,null,null,null,null,null,null,null,null,null,null,null,null,null,null,null,null,null,null,null,null,null,null,null,null,null,null,null,null,null,null,null,null,null,null,null,null,null,null,null,null,null,null,null,null,null,null,null,null,null,null,null,null,null,null,null,null,null,null,null,null,null,null,null,null,null,null,null,null,null,null,null,null,null,null,null,null,null,null,null,null,null,null,null,null,null,null,null,null,null,null,null,null,null,null,null,null,null,null,null,null,null,null,null,null,null,null,null,null,null,null,null,null,null,null,null,null,null,null,null,null,null,null,null,null,null,null,null,null,null,null,null,null,null,null,null,null,null,null,null,null,null,null,null,null,null,null,null,null,null,null,null,null,null,null,null,null,null,null,null,null,null,null,null,null,null,null,null,null,null,null,null,null,null,null,null,null,null,null,null,null,null,null,null,null,null,null,null,null,null,null,null,null,null,null,null,null,null,null,null,null,null,null,null,null,null,null,null,null,null,null,null,null,null,null,null,null,null,null,null,null,null,null,null,null,null,null,null,null,null,null,null,null,null,null,null,null,null,null,null,null,null,null,null,null,null,null,null,null,null,null,null,null,null,null,null,null,{"$f":"Cover!D121","v":""}]

{"sheet":"Data_Disciplines","index":4,"n_rows":14,"n_cols":29,"rows_kept":14,"cut":false,"hidden":true,"merged":[]}
["JobNo","Last Saved","Discipline","IM","P1","P2","P3","P4","S1","S2","S3","S4","S5","S6","S7","S8","S9","S10","S11","S12","S13","S14","S15","S16","S17","S18","S19","S20","S21"]
[{"$f":"Cover!$F$2","v":"Copy o"},{"$f":"Cover!$J$3","v":"2014-12-05"},"Name",{"$f":"Cover!D32","v":"Project"},{"$f":"Cover!G32","v":"Structural"},{"$f":"Cover!H32","v":"Mechanical"},{"$f":"Cover!I32","v":"Electrical"},{"$f":"Cover!J32","v":"Public Health"},{"$f":"Cover!D55","v":"Facades"},{"$f":"Cover!E55","v":"Geotechnics"},{"$f":"Cover!F55","v":"Lighting"},{"$f":"Cover!G55","v":""},{"$f":"Cover!H55","v":""},{"$f":"Cover!I55","v":""},{"$f":"Cover!J55","v":""},{"$f":"Cover!D78","v":""},{"$f":"Cover!E78","v":""},{"$f":"Cover!F78","v":""},{"$f":"Cover!G78","v":""},{"$f":"Cover!H78","v":""},{"$f":"Cover!I78","v":""},{"$f":"Cover!J78","v":""},{"$f":"Cover!D101","v":""},{"$f":"Cover!E101","v":""},{"$f":"Cover!F101","v":""},{"$f":"Cover!G101","v":""},{"$f":"Cover!H101","v":""},{"$f":"Cover!I101","v":""},{"$f":"Cover!J101","v":""}]
[{"$f":"Cover!$F$2","v":"Copy o"},{"$f":"Cover!$J$3","v":"2014-12-05"},"Score",{"$f":"Cover!D33","v":0},{"$f":"Cover!G33","v":0},{"$f":"Cover!H33","v":0},{"$f":"Cover!I33","v":0},{"$f":"Cover!J33","v":0},{"$f":"Cover!D56","v":0},{"$f":"Cover!E56","v":0},{"$f":"Cover!F56","v":0},{"$f":"Cover!G56","v":0},{"$f":"Cover!H56","v":0},{"$f":"Cover!I56","v":0},{"$f":"Cover!J56","v":0},{"$f":"Cover!D79","v":0},{"$f":"Cover!E79","v":0},{"$f":"Cover!F79","v":0},{"$f":"Cover!G79","v":0},{"$f":"Cover!H79","v":0},{"$f":"Cover!I79","v":0},{"$f":"Cover!J79","v":0},{"$f":"Cover!D102","v":0},{"$f":"Cover!E102","v":0},{"$f":"Cover!F102","v":0},{"$f":"Cover!G102","v":0},{"$f":"Cover!H102","v":0},{"$f":"Cover!I102","v":0},{"$f":"Cover!J102","v":0}]
[{"$f":"Cover!$F$2","v":"Copy o"},{"$f":"Cover!$J$3","v":"2014-12-05"},1,{"$f":"Cover!D42","v":0},{"$f":"Cover!G42","v":0},{"$f":"Cover!H42","v":0},{"$f":"Cover!I42","v":0},{"$f":"Cover!J42","v":0},{"$f":"Cover!D65","v":0},{"$f":"Cover!E65","v":0},{"$f":"Cover!F65","v":0},{"$f":"Cover!G65","v":""},{"$f":"Cover!H65","v":""},{"$f":"Cover!I65","v":""},{"$f":"Cover!J65","v":""},{"$f":"Cover!D88","v":""},{"$f":"Cover!E88","v":""},{"$f":"Cover!F88","v":""},{"$f":"Cover!G88","v":""},{"$f":"Cover!H88","v":""},{"$f":"Cover!I88","v":""},{"$f":"Cover!J88","v":""},{"$f":"Cover!D111","v":""},{"$f":"Cover!E111","v":""},{"$f":"Cover!F111","v":""},{"$f":"Cover!G111","v":""},{"$f":"Cover!H111","v":""},{"$f":"Cover!I111","v":""},{"$f":"Cover!J111","v":""}]
[{"$f":"Cover!$F$2","v":"Copy o"},{"$f":"Cover!$J$3","v":"2014-12-05"},2,{"$f":"Cover!D43","v":0},{"$f":"Cover!G43","v":0},{"$f":"Cover!H43","v":0},{"$f":"Cover!I43","v":0},{"$f":"Cover!J43","v":0},{"$f":"Cover!D66","v":0},{"$f":"Cover!E66","v":0},{"$f":"Cover!F66","v":0},{"$f":"Cover!G66","v":""},{"$f":"Cover!H66","v":""},{"$f":"Cover!I66","v":""},{"$f":"Cover!J66","v":""},{"$f":"Cover!D89","v":""},{"$f":"Cover!E89","v":""},{"$f":"Cover!F89","v":""},{"$f":"Cover!G89","v":""},{"$f":"Cover!H89","v":""},{"$f":"Cover!I89","v":""},{"$f":"Cover!J89","v":""},{"$f":"Cover!D112","v":""},{"$f":"Cover!E112","v":""},{"$f":"Cover!F112","v":""},{"$f":"Cover!G112","v":""},{"$f":"Cover!H112","v":""},{"$f":"Cover!I112","v":""},{"$f":"Cover!J112","v":""}]
[{"$f":"Cover!$F$2","v":"Copy o"},{"$f":"Cover!$J$3","v":"2014-12-05"},3,{"$f":"Cover!D44","v":0},{"$f":"Cover!G44","v":0},{"$f":"Cover!H44","v":0},{"$f":"Cover!I44","v":0},{"$f":"Cover!J44","v":0},{"$f":"Cover!D67","v":0},{"$f":"Cover!E67","v":0},{"$f":"Cover!F67","v":0},{"$f":"Cover!G67","v":""},{"$f":"Cover!H67","v":""},{"$f":"Cover!I67","v":""},{"$f":"Cover!J67","v":""},{"$f":"Cover!D90","v":""},{"$f":"Cover!E90","v":""},{"$f":"Cover!F90","v":""},{"$f":"Cover!G90","v":""},{"$f":"Cover!H90","v":""},{"$f":"Cover!I90","v":""},{"$f":"Cover!J90","v":""},{"$f":"Cover!D113","v":""},{"$f":"Cover!E113","v":""},{"$f":"Cover!F113","v":""},{"$f":"Cover!G113","v":""},{"$f":"Cover!H113","v":""},{"$f":"Cover!I113","v":""},{"$f":"Cover!J113","v":""}]
[{"$f":"Cover!$F$2","v":"Copy o"},{"$f":"Cover!$J$3","v":"2014-12-05"},4,{"$f":"Cover!D45","v":0},{"$f":"Cover!G45","v":0},{"$f":"Cover!H45","v":0},{"$f":"Cover!I45","v":0},{"$f":"Cover!J45","v":0},{"$f":"Cover!D68","v":0},{"$f":"Cover!E68","v":0},{"$f":"Cover!F68","v":0},{"$f":"Cover!G68","v":""},{"$f":"Cover!H68","v":""},{"$f":"Cover!I68","v":""},{"$f":"Cover!J68","v":""},{"$f":"Cover!D91","v":""},{"$f":"Cover!E91","v":""},{"$f":"Cover!F91","v":""},{"$f":"Cover!G91","v":""},{"$f":"Cover!H91","v":""},{"$f":"Cover!I91","v":""},{"$f":"Cover!J91","v":""},{"$f":"Cover!D114","v":""},{"$f":"Cover!E114","v":""},{"$f":"Cover!F114","v":""},{"$f":"Cover!G114","v":""},{"$f":"Cover!H114","v":""},{"$f":"Cover!I114","v":""},{"$f":"Cover!J114","v":""}]
[{"$f":"Cover!$F$2","v":"Copy o"},{"$f":"Cover!$J$3","v":"2014-12-05"},5,{"$f":"Cover!D46","v":0},{"$f":"Cover!G46","v":0},{"$f":"Cover!H46","v":0},{"$f":"Cover!I46","v":0},{"$f":"Cover!J46","v":0},{"$f":"Cover!D69","v":0},{"$f":"Cover!E69","v":0},{"$f":"Cover!F69","v":0},{"$f":"Cover!G69","v":""},{"$f":"Cover!H69","v":""},{"$f":"Cover!I69","v":""},{"$f":"Cover!J69","v":""},{"$f":"Cover!D92","v":""},{"$f":"Cover!E92","v":""},{"$f":"Cover!F92","v":""},{"$f":"Cover!G92","v":""},{"$f":"Cover!H92","v":""},{"$f":"Cover!I92","v":""},{"$f":"Cover!J92","v":""},{"$f":"Cover!D115","v":""},{"$f":"Cover!E115","v":""},{"$f":"Cover!F115","v":""},{"$f":"Cover!G115","v":""},{"$f":"Cover!H115","v":""},{"$f":"Cover!I115","v":""},{"$f":"Cover!J115","v":""}]
[{"$f":"Cover!$F$2","v":"Copy o"},{"$f":"Cover!$J$3","v":"2014-12-05"},6,{"$f":"Cover!D47","v":0},{"$f":"Cover!G47","v":0},{"$f":"Cover!H47","v":0},{"$f":"Cover!I47","v":0},{"$f":"Cover!J47","v":0},{"$f":"Cover!D70","v":0},{"$f":"Cover!E70","v":0},{"$f":"Cover!F70","v":0},{"$f":"Cover!G70","v":""},{"$f":"Cover!H70","v":""},{"$f":"Cover!I70","v":""},{"$f":"Cover!J70","v":""},{"$f":"Cover!D93","v":""},{"$f":"Cover!E93","v":""},{"$f":"Cover!F93","v":""},{"$f":"Cover!G93","v":""},{"$f":"Cover!H93","v":""},{"$f":"Cover!I93","v":""},{"$f":"Cover!J93","v":""},{"$f":"Cover!D116","v":""},{"$f":"Cover!E116","v":""},{"$f":"Cover!F116","v":""},{"$f":"Cover!G116","v":""},{"$f":"Cover!H116","v":""},{"$f":"Cover!I116","v":""},{"$f":"Cover!J116","v":""}]
[{"$f":"Cover!$F$2","v":"Copy o"},{"$f":"Cover!$J$3","v":"2014-12-05"},7,{"$f":"Cover!D48","v":0},{"$f":"Cover!G48","v":0},{"$f":"Cover!H48","v":0},{"$f":"Cover!I48","v":0},{"$f":"Cover!J48","v":0},{"$f":"Cover!D71","v":0},{"$f":"Cover!E71","v":0},{"$f":"Cover!F71","v":0},{"$f":"Cover!G71","v":""},{"$f":"Cover!H71","v":""},{"$f":"Cover!I71","v":""},{"$f":"Cover!J71","v":""},{"$f":"Cover!D94","v":""},{"$f":"Cover!E94","v":""},{"$f":"Cover!F94","v":""},{"$f":"Cover!G94","v":""},{"$f":"Cover!H94","v":""},{"$f":"Cover!I94","v":""},{"$f":"Cover!J94","v":""},{"$f":"Cover!D117","v":""},{"$f":"Cover!E117","v":""},{"$f":"Cover!F117","v":""},{"$f":"Cover!G117","v":""},{"$f":"Cover!H117","v":""},{"$f":"Cover!I117","v":""},{"$f":"Cover!J117","v":""}]
[{"$f":"Cover!$F$2","v":"Copy o"},{"$f":"Cover!$J$3","v":"2014-12-05"},8,{"$f":"Cover!D49","v":0},{"$f":"Cover!G49","v":0},{"$f":"Cover!H49","v":0},{"$f":"Cover!I49","v":0},{"$f":"Cover!J49","v":0},{"$f":"Cover!D72","v":0},{"$f":"Cover!E72","v":0},{"$f":"Cover!F72","v":0},{"$f":"Cover!G72","v":""},{"$f":"Cover!H72","v":""},{"$f":"Cover!I72","v":""},{"$f":"Cover!J72","v":""},{"$f":"Cover!D95","v":""},{"$f":"Cover!E95","v":""},{"$f":"Cover!F95","v":""},{"$f":"Cover!G95","v":""},{"$f":"Cover!H95","v":""},{"$f":"Cover!I95","v":""},{"$f":"Cover!J95","v":""},{"$f":"Cover!D118","v":""},{"$f":"Cover!E118","v":""},{"$f":"Cover!F118","v":""},{"$f":"Cover!G118","v":""},{"$f":"Cover!H118","v":""},{"$f":"Cover!I118","v":""},{"$f":"Cover!J118","v":""}]
[{"$f":"Cover!$F$2","v":"Copy o"},{"$f":"Cover!$J$3","v":"2014-12-05"},9,{"$f":"Cover!D50","v":0},{"$f":"Cover!G50","v":0},{"$f":"Cover!H50","v":0},{"$f":"Cover!I50","v":0},{"$f":"Cover!J50","v":0},{"$f":"Cover!D73","v":0},{"$f":"Cover!E73","v":0},{"$f":"Cover!F73","v":0},{"$f":"Cover!G73","v":""},{"$f":"Cover!H73","v":""},{"$f":"Cover!I73","v":""},{"$f":"Cover!J73","v":""},{"$f":"Cover!D96","v":""},{"$f":"Cover!E96","v":""},{"$f":"Cover!F96","v":""},{"$f":"Cover!G96","v":""},{"$f":"Cover!H96","v":""},{"$f":"Cover!I96","v":""},{"$f":"Cover!J96","v":""},{"$f":"Cover!D119","v":""},{"$f":"Cover!E119","v":""},{"$f":"Cover!F119","v":""},{"$f":"Cover!G119","v":""},{"$f":"Cover!H119","v":""},{"$f":"Cover!I119","v":""},{"$f":"Cover!J119","v":""}]
[{"$f":"Cover!$F$2","v":"Copy o"},{"$f":"Cover!$J$3","v":"2014-12-05"},10,{"$f":"Cover!D51","v":0},{"$f":"Cover!G51","v":0},{"$f":"Cover!H51","v":0},{"$f":"Cover!I51","v":0},{"$f":"Cover!J51","v":0},{"$f":"Cover!D74","v":0},{"$f":"Cover!E74","v":0},{"$f":"Cover!F74","v":0},{"$f":"Cover!G74","v":""},{"$f":"Cover!H74","v":""},{"$f":"Cover!I74","v":""},{"$f":"Cover!J74","v":""},{"$f":"Cover!D97","v":""},{"$f":"Cover!E97","v":""},{"$f":"Cover!F97","v":""},{"$f":"Cover!G97","v":""},{"$f":"Cover!H97","v":""},{"$f":"Cover!I97","v":""},{"$f":"Cover!J97","v":""},{"$f":"Cover!D120","v":""},{"$f":"Cover!E120","v":""},{"$f":"Cover!F120","v":""},{"$f":"Cover!G120","v":""},{"$f":"Cover!H120","v":""},{"$f":"Cover!I120","v":""},{"$f":"Cover!J120","v":""}]
[{"$f":"Cover!$F$2","v":"Copy o"},{"$f":"Cover!$J$3","v":"2014-12-05"},11,{"$f":"Cover!D52","v":0},{"$f":"Cover!G52","v":0},{"$f":"Cover!H52","v":0},{"$f":"Cover!I52","v":0},{"$f":"Cover!J52","v":0},{"$f":"Cover!D75","v":0},{"$f":"Cover!E75","v":0},{"$f":"Cover!F75","v":0},{"$f":"Cover!G75","v":""},{"$f":"Cover!H75","v":""},{"$f":"Cover!I75","v":""},{"$f":"Cover!J75","v":""},{"$f":"Cover!D98","v":""},{"$f":"Cover!E98","v":""},{"$f":"Cover!F98","v":""},{"$f":"Cover!G98","v":""},{"$f":"Cover!H98","v":""},{"$f":"Cover!I98","v":""},{"$f":"Cover!J98","v":""},{"$f":"Cover!D121","v":""},{"$f":"Cover!E121","v":""},{"$f":"Cover!F121","v":""},{"$f":"Cover!G121","v":""},{"$f":"Cover!H121","v":""},{"$f":"Cover!I121","v":""},{"$f":"Cover!J121","v":""}]

{"sheet":"Cover","index":5,"n_rows":121,"n_cols":23,"rows_kept":121,"cut":false,"hidden":true,"merged":[[1,2,1,3],[2,5,2,7],[26,3,26,4],[23,3,23,4],[10,3,10,4],[8,3,8,4],[17,3,17,4],[18,3,18,4],[20,3,20,4],[21,3,21,4],[25,3,25,4],[9,3,9,5],[11,2,11,3],[13,3,13,4],[14,3,14,4],[15,3,15,4]]}
[]
[null,null,"BIM MATURITY MEASURE",null,"Job No.:",{"$f":"TRIM(MID(CELL(\"Filename\",D1),1+SEARCH(\"[\",CELL(\"Filename\",D1),1),Configuration!$E$3))","v":"Copy o"},null,null,"Last Saved By:","jason.riseborough"]
[null,null,"(your company logo here)",null,"Project:","Project XXXXXXXXXXX",null,null,"Last Saved:","2014-12-05"]
[]
[]
[null,null,null,"Primary\nScore","Primary + Secondary"]
[null,null,null,{"$f":"IFERROR(SUM(D33:J33)/(N33),0)","v":0},{"$f":"IF(SUM(D56:J56,D79:J79,D102:J102)=0,\"NA\",SUM(D33:J33,D56:J56,D79:J79,D102:J102)/(N33+N56+N79+N102))","v":"NA"}]
[]
[null,null,"Project Stage:","Concept"]
[null,null,"Disciplines Scored:",{"$f":"IF(G33>0,LEFT(G32,3),\"\")&IF(H33>0,\",\"&LEFT(H32,3),\"\")&IF(I33>0,\",\"&LEFT(I32,3),\"\")&IF(J33>0,\",\"&LEFT(J32,3),\"\")&IF(D56>0,\",\"&LEFT(D55,3),\"\")&IF(E56>0,\",\"&LEFT(E55,3),\"\")&IF(F56>0,\",\"&LEFT(F55,3),\"\")&IF(G56>0,\",\"&LEFT(G55,3),\"\")&IF(H56>0,\",\"&LEFT(H55,3),\"\")&IF(I56>0,\",\"&LEFT(I55,3),\"\")&IF(J56>0,\",\"&LEFT(J55,3),\"\")&IF(D79>0,\",\"&LEFT(D78,3),\"\")&IF(E79>0,\",\"&LEFT(E78,3),\"\")&IF(F79>0,\",\"&LEFT(F78,3),\"\")&IF(G79>0,\",\"&LEFT(G78,3),\"\")&IF(H79>0,\",\"&LEFT(H78,3),\"\")&IF(I79>0,\",\"&LEFT(I78,3),\"\")&IF(J79>0,\",\"&LEFT(J78,3),\"\")&IF(D102>0,\",\"&LEFT(D101,3),\"\")&IF(E102>0,\",\"&LEFT(E101,3),\"\")&IF(F102>0,\",\"&LEFT(F101,3),\"\")&IF(G102>0,\",\"&LEFT(G101,3),\"\")&IF(H102>0,\",\"&LEFT(H101,3),\"\")&IF(I102>0,\",\"&LEFT(I101,3),\"\")&IF(J102>0,\",\"&LEFT(J101,3),\"\")","v":""},null,null,null,null,null,null,null,null,null,"Discipline letters",4]
[null,null,"CDE:","Internal Network Folder – manual process"]
[null,null,"Project Information"]
[null,null,null,null,null,null,null,null,null,null,null,null,null,null,"Group"]
[null,null,"Company Sub-Group","Structures London",null,null,null,null,null,null,null,null,null,null,"Director"]
[null,null,"Project Director","John Smith",null,null,null,null,null,null,null,null,null,"Concept","Manager"]
[null,null,"Project Manager","John Smith",null,null,null,null,null,null,null,null,null,"Scheme"]
[null,null,null,null,null,null,null,null,null,null,null,null,null,"Detailed Design","Project Type"]
[null,null,"Project Type","Office Building",null,null,null,null,null,null,null,null,null,"Tender","Location"]
[null,null,"Location","London",null,null,null,null,null,null,null,null,null,"Construction"]
[null,null,null,null,null,null,null,null,null,null,null,null,null,"Handover","Client"]
[null,null,"Client","BigDevelopments, Inc",null,null,null,null,null,null,null,null,null,"As-Built","Client Type"]
[null,null,"Client Type","Contractor Client Sector"]
[null,null,null,null,null,null,null,null,null,null,null,null,null,null,"Architect"]
[null,null,"Architect","Bold Architects, Inc"]
[null,null,null,null,null,null,null,null,null,null,null,null,null,null,"Start"]
[null,null,"Project Start","2014-01-01",null,null,null,null,null,null,null,null,null,null,"Finish"]
[null,null,"Project Finish","2015-12-31"]
[]
[]
[]
[]
[null,null,null,"Project",null,null,{"$f":"IF(ISBLANK(Configuration!B15),\"\",Configuration!B15)","v":"Structural"},{"$f":"IF(ISBLANK(Configuration!B16),\"\",Configuration!B16)","v":"Mechanical"},{"$f":"IF(ISBLANK(Configuration!B17),\"\",Configuration!B17)","v":"Electrical"},{"$f":"IF(ISBLANK(Configuration!B18),\"\",Configuration!B18)","v":"Public Health"}]
[null,null,null,{"$f":"IF(ISERROR(INDIRECT(\"'\"&D32&\"'!M5\")),0,INDIRECT(\"'\"&D32&\"'!M5\"))","v":0},null,null,{"$f":"IF(ISERROR(INDIRECT(\"'\"&G32&\"'!M5\")),0,INDIRECT(\"'\"&G32&\"'!M5\"))","v":0},{"$f":"IF(ISERROR(INDIRECT(\"'\"&H32&\"'!M5\")),0,INDIRECT(\"'\"&H32&\"'!M5\"))","v":0},{"$f":"IF(ISERROR(INDIRECT(\"'\"&I32&\"'!M5\")),0,INDIRECT(\"'\"&I32&\"'!M5\"))","v":0},{"$f":"IF(ISERROR(INDIRECT(\"'\"&J32&\"'!M5\")),0,INDIRECT(\"'\"&J32&\"'!M5\"))","v":0},null,null,null,{"$f":"COUNTIF(D33:J33,\">0\")","v":0}]
[]
[]
[]
[]
[]
[null,null,null,null,null,null,null,null,null,null,null,null,null,null,null,null,0.75]
[]
[null,null,null,null,null,null,null,null,null,null,null,null,null,null,null,null,{"$f":"$Q$39","v":0.75},null,null,{"$f":"$Q$39","v":0.75},0.75,0.75,0.75]
[null,1,"EIRs",{"$f":"Project!L8","v":0},null,"3D Model",{"$f":"IF(ISERROR(INDIRECT(\"'\"&G$32&\"'!L8\")),\"\",INDIRECT(\"'\"&G$32&\"'!L8\"))","v":0},{"$f":"IF(ISERROR(INDIRECT(\"'\"&H$32&\"'!L8\")),\"\",INDIRECT(\"'\"&H$32&\"'!L8\"))","v":0},0,0,null,null,null,null,null,null,{"$f":"IF(D42=0,Q$41+D42,D42)","v":0.75},null,null,{"$f":"IF(G42=0,T$41+G42,G42)","v":0.75},{"$f":"IF(H42=0,U$41+H42,H42)","v":0.75},{"$f":"IF(I42=0,V$41+I42,I42)","v":0.75},{"$f":"IF(J42=0,W$41+J42,J42)","v":0.75}]
[null,2,"BIM Data Review",{"$f":"Project!L9","v":0},null,"Drawings",{"$f":"IF(ISERROR(INDIRECT(\"'\"&G$32&\"'!L9\")),\"\",INDIRECT(\"'\"&G$32&\"'!L9\"))","v":0},{"$f":"IF(ISERROR(INDIRECT(\"'\"&H$32&\"'!L9\")),\"\",INDIRECT(\"'\"&H$32&\"'!L9\"))","v":0},0,0,null,null,null,null,null,null,0.75,null,null,{"$f":"IF(G43=0,T$41+G43,G43)","v":0.75},0.75,0.75,0.75]
[null,3,"BEP",{"$f":"Project!L10","v":0},null,"LoD",{"$f":"IF(ISERROR(INDIRECT(\"'\"&G$32&\"'!L10\")),\"\",INDIRECT(\"'\"&G$32&\"'!L10\"))","v":0},{"$f":"IF(ISERROR(INDIRECT(\"'\"&H$32&\"'!L10\")),\"\",INDIRECT(\"'\"&H$32&\"'!L10\"))","v":0},0,0,null,null,null,null,null,null,0.75,null,null,0.75,0.75,0.75,0.75]
[null,4,"Procurement",{"$f":"Project!L11","v":0},null,"Reviews",{"$f":"IF(ISERROR(INDIRECT(\"'\"&G$32&\"'!L11\")),\"\",INDIRECT(\"'\"&G$32&\"'!L11\"))","v":0},{"$f":"IF(ISERROR(INDIRECT(\"'\"&H$32&\"'!L11\")),\"\",INDIRECT(\"'\"&H$32&\"'!L11\"))","v":0},0,0,null,null,null,null,null,null,0.75,null,null,0.75,0.75,0.75,0.75]
[null,5,"CDE",{"$f":"Project!L12","v":0},null,"Data",{"$f":"IF(ISERROR(INDIRECT(\"'\"&G$32&\"'!L17\")),\"\",INDIRECT(\"'\"&G$32&\"'!L17\"))","v":0},{"$f":"IF(ISERROR(INDIRECT(\"'\"&H$32&\"'!L17\")),\"\",INDIRECT(\"'\"&H$32&\"'!L17\"))","v":0},0,0,null,null,null,null,null,null,0.75,null,null,0.75,0.75,0.75,0.75]
[null,6,"Version, Status",{"$f":"Project!L13","v":0},null,"Visualisation",{"$f":"IF(ISERROR(INDIRECT(\"'\"&G$32&\"'!L18\")),\"\",INDIRECT(\"'\"&G$32&\"'!L18\"))","v":0},{"$f":"IF(ISERROR(INDIRECT(\"'\"&H$32&\"'!L18\")),\"\",INDIRECT(\"'\"&H$32&\"'!L18\"))","v":0},0,0,null,null,null,null,null,null,0.75,null,null,0.75,0.75,0.75,0.75]
[null,7,"Marketing Strategy",{"$f":"Project!L14","v":0},null,"4D (time)",{"$f":"IF(ISERROR(INDIRECT(\"'\"&G$32&\"'!L19\")),\"\",INDIRECT(\"'\"&G$32&\"'!L19\"))","v":0},{"$f":"IF(ISERROR(INDIRECT(\"'\"&H$32&\"'!L19\")),\"\",INDIRECT(\"'\"&H$32&\"'!L19\"))","v":0},0,0,null,null,null,null,null,null,0.75,null,null,0.75,{"$f":"IF(H48=0,U$41+H48,H48)","v":0.75},0.75,0.75]
[null,8,"VDRs",{"$f":"Project!L15","v":0},null,"5D (cost)",{"$f":"IF(ISERROR(INDIRECT(\"'\"&G$32&\"'!L20\")),\"\",INDIRECT(\"'\"&G$32&\"'!L20\"))","v":0},{"$f":"IF(ISERROR(INDIRECT(\"'\"&H$32&\"'!L20\")),\"\",INDIRECT(\"'\"&H$32&\"'!L20\"))","v":0},0,0,null,null,null,null,null,null,0.75,null,null,0.75,0.75,0.75,0.75]
[null,9,"Open Standards",{"$f":"Project!L16","v":0},null,"Analysis",{"$f":"IF(ISERROR(INDIRECT(\"'\"&G$32&\"'!L21\")),\"\",INDIRECT(\"'\"&G$32&\"'!L21\"))","v":0},{"$f":"IF(ISERROR(INDIRECT(\"'\"&H$32&\"'!L21\")),\"\",INDIRECT(\"'\"&H$32&\"'!L21\"))","v":0},0,0,null,null,null,null,null,null,0.75,null,null,0.75,0.75,0.75,0.75]
[null,10,"BIM Contract",{"$f":"Project!L17","v":0},null,"Contractor Use",{"$f":"IF(ISERROR(INDIRECT(\"'\"&G$32&\"'!L22\")),\"\",INDIRECT(\"'\"&G$32&\"'!L22\"))","v":0},{"$f":"IF(ISERROR(INDIRECT(\"'\"&H$32&\"'!L22\")),\"\",INDIRECT(\"'\"&H$32&\"'!L22\"))","v":0},0,0,null,null,null,null,null,null,0.75,null,null,0.75,0.75,0.75,0.75]
[null,11,"BIM Champion",{"$f":"Project!L18","v":0},null,"FM/OM Use",{"$f":"IF(ISERROR(INDIRECT(\"'\"&G$32&\"'!L23\")),\"\",INDIRECT(\"'\"&G$32&\"'!L23\"))","v":0},{"$f":"IF(ISERROR(INDIRECT(\"'\"&H$32&\"'!L23\")),\"\",INDIRECT(\"'\"&H$32&\"'!L23\"))","v":0},0,0,null,null,null,null,null,null,0.75,null,null,0.75,0.75,0.75,0.75]
[]
[]
[null,null,null,{"$f":"IF(ISBLANK(Configuration!$B23),\"NOT USED\",Configuration!$B23)","v":"Facades"},{"$f":"IF(ISBLANK(Configuration!$B24),\"\",Configuration!$B24)","v":"Geotechnics"},{"$f":"IF(ISBLANK(Configuration!B25),\"\",Configuration!B25)","v":"Lighting"},{"$f":"IF(ISBLANK(Configuration!B26),\"\",Configuration!B26)","v":""},{"$f":"IF(ISBLANK(Configuration!B27),\"\",Configuration!B27)","v":""},{"$f":"IF(ISBLANK(Configuration!B28),\"\",Configuration!B28)","v":""},{"$f":"IF(ISBLANK(Configuration!B29),\"\",Configuration!B29)","v":""}]
[null,null,null,{"$f":"IF(ISERROR(INDIRECT(\"'\"&D55&\"'!M5\")),0,INDIRECT(\"'\"&D55&\"'!M5\"))","v":0},{"$f":"IF(ISERROR(INDIRECT(\"'\"&E55&\"'!M5\")),0,INDIRECT(\"'\"&E55&\"'!M5\"))","v":0},0,0,0,0,0,null,null,null,{"$f":"COUNTIF(D56:J56,\">0\")","v":0}]
[]
[]
[]
[]
[]
[]
[]
[null,null,null,null,null,null,null,null,null,null,null,null,null,null,null,null,{"$f":"$Q$39","v":0.75},{"$f":"$Q$39","v":0.75},0.75,0.75,0.75,0.75,0.75]
[null,1,"3D Model",{"$f":"IF(ISERROR(INDIRECT(\"'\"&D$55&\"'!L8\")),\"\",INDIRECT(\"'\"&D$55&\"'!L8\"))","v":0},{"$f":"IF(ISERROR(INDIRECT(\"'\"&E$55&\"'!L8\")),\"\",INDIRECT(\"'\"&E$55&\"'!L8\"))","v":0},0,"","","","",null,null,null,null,null,null,{"$f":"IF(D65=0,Q$64+D65,D65)","v":0.75},{"$f":"IF(E65=0,R$64+E65,E65)","v":0.75},0.75,"","","",""]
[null,2,"Drawings",{"$f":"IF(ISERROR(INDIRECT(\"'\"&D$55&\"'!L9\")),\"\",INDIRECT(\"'\"&D$55&\"'!L9\"))","v":0},{"$f":"IF(ISERROR(INDIRECT(\"'\"&E$55&\"'!L9\")),\"\",INDIRECT(\"'\"&E$55&\"'!L9\"))","v":0},0,"","","","",null,null,null,null,null,null,0.75,0.75,0.75,"","","",""]
[null,3,"LoD",{"$f":"IF(ISERROR(INDIRECT(\"'\"&D$55&\"'!L10\")),\"\",INDIRECT(\"'\"&D$55&\"'!L10\"))","v":0},{"$f":"IF(ISERROR(INDIRECT(\"'\"&E$55&\"'!L10\")),\"\",INDIRECT(\"'\"&E$55&\"'!L10\"))","v":0},0,"","","","",null,null,null,null,null,null,0.75,0.75,0.75,"","","",""]
[null,4,"Reviews",{"$f":"IF(ISERROR(INDIRECT(\"'\"&D$55&\"'!L11\")),\"\",INDIRECT(\"'\"&D$55&\"'!L11\"))","v":0},{"$f":"IF(ISERROR(INDIRECT(\"'\"&E$55&\"'!L11\")),\"\",INDIRECT(\"'\"&E$55&\"'!L11\"))","v":0},0,"","","","",null,null,null,null,null,null,0.75,0.75,0.75,"","","",""]
[null,5,"Data",{"$f":"IF(ISERROR(INDIRECT(\"'\"&D$55&\"'!L17\")),\"\",INDIRECT(\"'\"&D$55&\"'!L17\"))","v":0},{"$f":"IF(ISERROR(INDIRECT(\"'\"&E$55&\"'!L17\")),\"\",INDIRECT(\"'\"&E$55&\"'!L17\"))","v":0},0,"","","","",null,null,null,null,null,null,0.75,0.75,0.75,"","","",""]
[null,6,"Visualisation",{"$f":"IF(ISERROR(INDIRECT(\"'\"&D$55&\"'!L18\")),\"\",INDIRECT(\"'\"&D$55&\"'!L18\"))","v":0},{"$f":"IF(ISERROR(INDIRECT(\"'\"&E$55&\"'!L18\")),\"\",INDIRECT(\"'\"&E$55&\"'!L18\"))","v":0},0,"","","","",null,null,null,null,null,null,0.75,0.75,0.75,"","","",""]
[null,7,"4D",{"$f":"IF(ISERROR(INDIRECT(\"'\"&D$55&\"'!L19\")),\"\",INDIRECT(\"'\"&D$55&\"'!L19\"))","v":0},{"$f":"IF(ISERROR(INDIRECT(\"'\"&E$55&\"'!L19\")),\"\",INDIRECT(\"'\"&E$55&\"'!L19\"))","v":0},0,"","","","",null,null,null,null,null,null,0.75,0.75,0.75,"","","",""]
[null,8,"5D",{"$f":"IF(ISERROR(INDIRECT(\"'\"&D$55&\"'!L20\")),\"\",INDIRECT(\"'\"&D$55&\"'!L20\"))","v":0},{"$f":"IF(ISERROR(INDIRECT(\"'\"&E$55&\"'!L20\")),\"\",INDIRECT(\"'\"&E$55&\"'!L20\"))","v":0},0,"","","","",null,null,null,null,null,null,0.75,0.75,0.75,"","","",""]
[null,9,"Analysis",{"$f":"IF(ISERROR(INDIRECT(\"'\"&D$55&\"'!L21\")),\"\",INDIRECT(\"'\"&D$55&\"'!L21\"))","v":0},{"$f":"IF(ISERROR(INDIRECT(\"'\"&E$55&\"'!L21\")),\"\",INDIRECT(\"'\"&E$55&\"'!L21\"))","v":0},0,"","","","",null,null,null,null,null,null,0.75,0.75,0.75,"","","",""]
[null,10,"Contractor Use",{"$f":"IF(ISERROR(INDIRECT(\"'\"&D$55&\"'!L22\")),\"\",INDIRECT(\"'\"&D$55&\"'!L22\"))","v":0},{"$f":"IF(ISERROR(INDIRECT(\"'\"&E$55&\"'!L22\")),\"\",INDIRECT(\"'\"&E$55&\"'!L22\"))","v":0},0,"","","","",null,null,null,null,null,null,0.75,0.75,0.75,"","","",""]
[null,11,"FM/OM Use",{"$f":"IF(ISERROR(INDIRECT(\"'\"&D$55&\"'!L23\")),\"\",INDIRECT(\"'\"&D$55&\"'!L23\"))","v":0},{"$f":"IF(ISERROR(INDIRECT(\"'\"&E$55&\"'!L23\")),\"\",INDIRECT(\"'\"&E$55&\"'!L23\"))","v":0},0,"","","","",null,null,null,null,null,null,0.75,0.75,0.75,"","","",""]
[]
[]
[null,null,null,{"$f":"IF(ISBLANK(Configuration!$D23),\"\",Configuration!$D23)","v":""},{"$f":"IF(ISBLANK(Configuration!$D24),\"\",Configuration!$D24)","v":""},{"$f":"IF(ISBLANK(Configuration!$D25),\"\",Configuration!$D25)","v":""},{"$f":"IF(ISBLANK(Configuration!$D26),\"\",Configuration!$D26)","v":""},{"$f":"IF(ISBLANK(Configuration!$D27),\"\",Configuration!$D27)","v":""},{"$f":"IF(ISBLANK(Configuration!$D28),\"\",Configuration!$D28)","v":""},{"$f":"IF(ISBLANK(Configuration!$D29),\"\",Configuration!$D29)","v":""}]
[null,null,null,{"$f":"IF(ISERROR(INDIRECT(\"'\"&D78&\"'!M5\")),0,INDIRECT(\"'\"&D78&\"'!M5\"))","v":0},0,0,0,{"$f":"IF(ISERROR(INDIRECT(\"'\"&H78&\"'!M5\")),0,INDIRECT(\"'\"&H78&\"'!M5\"))","v":0},0,0,null,null,null,{"$f":"COUNTIF(D79:J79,\">0\")","v":0}]
[]
[]
[]
[]
[]
[]
[]
[null,null,null,null,null,null,null,null,null,null,null,null,null,null,null,null,{"$f":"$Q$39","v":0.75},{"$f":"$Q$39","v":0.75},0.75,0.75,0.75,0.75,0.75]
[null,1,"3D Model",{"$f":"IF(ISERROR(INDIRECT(\"'\"&D$78&\"'!L8\")),\"\",INDIRECT(\"'\"&D$78&\"'!L8\"))","v":""},{"$f":"IF(ISERROR(INDIRECT(\"'\"&E$78&\"'!L8\")),\"\",INDIRECT(\"'\"&E$78&\"'!L8\"))","v":""},"","","","","",null,null,null,null,null,null,{"$f":"IF(D88=0,Q$87+D88,D88)","v":""},{"$f":"IF(E88=0,R$87+E88,E88)","v":""},"","","","",""]
[null,2,"Drawings",{"$f":"IF(ISERROR(INDIRECT(\"'\"&D$78&\"'!L9\")),\"\",INDIRECT(\"'\"&D$78&\"'!L9\"))","v":""},{"$f":"IF(ISERROR(INDIRECT(\"'\"&E$78&\"'!L9\")),\"\",INDIRECT(\"'\"&E$78&\"'!L9\"))","v":""},"","","","","",null,null,null,null,null,null,"","","","","","",""]
[null,3,"LoD",{"$f":"IF(ISERROR(INDIRECT(\"'\"&D$78&\"'!L10\")),\"\",INDIRECT(\"'\"&D$78&\"'!L10\"))","v":""},{"$f":"IF(ISERROR(INDIRECT(\"'\"&E$78&\"'!L10\")),\"\",INDIRECT(\"'\"&E$78&\"'!L10\"))","v":""},"","","","","",null,null,null,null,null,null,"","","","","","",""]
[null,4,"Reviews",{"$f":"IF(ISERROR(INDIRECT(\"'\"&D$78&\"'!L11\")),\"\",INDIRECT(\"'\"&D$78&\"'!L11\"))","v":""},{"$f":"IF(ISERROR(INDIRECT(\"'\"&E$78&\"'!L11\")),\"\",INDIRECT(\"'\"&E$78&\"'!L11\"))","v":""},"","","","","",null,null,null,null,null,null,"","","","","","",""]
[null,5,"Data",{"$f":"IF(ISERROR(INDIRECT(\"'\"&D$78&\"'!L17\")),\"\",INDIRECT(\"'\"&D$78&\"'!L17\"))","v":""},{"$f":"IF(ISERROR(INDIRECT(\"'\"&E$78&\"'!L17\")),\"\",INDIRECT(\"'\"&E$78&\"'!L17\"))","v":""},"","","","","",null,null,null,null,null,null,"","","","","","",""]
[null,6,"Visualisation",{"$f":"IF(ISERROR(INDIRECT(\"'\"&D$78&\"'!L18\")),\"\",INDIRECT(\"'\"&D$78&\"'!L18\"))","v":""},{"$f":"IF(ISERROR(INDIRECT(\"'\"&E$78&\"'!L18\")),\"\",INDIRECT(\"'\"&E$78&\"'!L18\"))","v":""},"","","","","",null,null,null,null,null,null,"","","","","","",""]
[null,7,"4D",{"$f":"IF(ISERROR(INDIRECT(\"'\"&D$78&\"'!L19\")),\"\",INDIRECT(\"'\"&D$78&\"'!L19\"))","v":""},{"$f":"IF(ISERROR(INDIRECT(\"'\"&E$78&\"'!L19\")),\"\",INDIRECT(\"'\"&E$78&\"'!L19\"))","v":""},"","","","","",null,null,null,null,null,null,"","","","","","",""]
[null,8,"5D",{"$f":"IF(ISERROR(INDIRECT(\"'\"&D$78&\"'!L20\")),\"\",INDIRECT(\"'\"&D$78&\"'!L20\"))","v":""},{"$f":"IF(ISERROR(INDIRECT(\"'\"&E$78&\"'!L20\")),\"\",INDIRECT(\"'\"&E$78&\"'!L20\"))","v":""},"","","","","",null,null,null,null,null,null,"","","","","","",""]
[null,9,"Analysis",{"$f":"IF(ISERROR(INDIRECT(\"'\"&D$78&\"'!L21\")),\"\",INDIRECT(\"'\"&D$78&\"'!L21\"))","v":""},{"$f":"IF(ISERROR(INDIRECT(\"'\"&E$78&\"'!L21\")),\"\",INDIRECT(\"'\"&E$78&\"'!L21\"))","v":""},"","","","","",null,null,null,null,null,null,"","","","","","",""]
[null,10,"Contractor Use",{"$f":"IF(ISERROR(INDIRECT(\"'\"&D$78&\"'!L22\")),\"\",INDIRECT(\"'\"&D$78&\"'!L22\"))","v":""},{"$f":"IF(ISERROR(INDIRECT(\"'\"&E$78&\"'!L22\")),\"\",INDIRECT(\"'\"&E$78&\"'!L22\"))","v":""},"","","","","",null,null,null,null,null,null,"","","","","","",""]
[null,11,"FM/OM Use",{"$f":"IF(ISERROR(INDIRECT(\"'\"&D$78&\"'!L23\")),\"\",INDIRECT(\"'\"&D$78&\"'!L23\"))","v":""},{"$f":"IF(ISERROR(INDIRECT(\"'\"&E$78&\"'!L23\")),\"\",INDIRECT(\"'\"&E$78&\"'!L23\"))","v":""},"","","","","",null,null,null,null,null,null,"","","","","","",""]
[]
[]
[null,null,null,{"$f":"IF(ISBLANK(Configuration!$F23),\"\",Configuration!$F23)","v":""},{"$f":"IF(ISBLANK(Configuration!$F24),\"\",Configuration!$F24)","v":""},{"$f":"IF(ISBLANK(Configuration!$F25),\"\",Configuration!$F25)","v":""},{"$f":"IF(ISBLANK(Configuration!$F26),\"\",Configuration!$F26)","v":""},{"$f":"IF(ISBLANK(Configuration!$F27),\"\",Configuration!$F27)","v":""},{"$f":"IF(ISBLANK(Configuration!$F28),\"\",Configuration!$F28)","v":""},{"$f":"IF(ISBLANK(Configuration!$F29),\"\",Configuration!$F29)","v":""}]
[null,null,null,{"$f":"IF(ISERROR(INDIRECT(\"'\"&D101&\"'!M5\")),0,INDIRECT(\"'\"&D101&\"'!M5\"))","v":0},{"$f":"IF(ISERROR(INDIRECT(\"'\"&E101&\"'!M5\")),0,INDIRECT(\"'\"&E101&\"'!M5\"))","v":0},0,0,0,0,0,null,null,null,{"$f":"COUNTIF(D102:J102,\">0\")","v":0}]
[]
[]
[]
[]
[]
[]
[]
[null,null,null,null,null,null,null,null,null,null,null,null,null,null,null,null,{"$f":"$Q$39","v":0.75},{"$f":"$Q$39","v":0.75},0.75,0.75,0.75,0.75,0.75]
[null,1,"3D Model",{"$f":"IF(ISERROR(INDIRECT(\"'\"&D$101&\"'!L8\")),\"\",INDIRECT(\"'\"&D$101&\"'!L8\"))","v":""},{"$f":"IF(ISERROR(INDIRECT(\"'\"&E$101&\"'!L8\")),\"\",INDIRECT(\"'\"&E$101&\"'!L8\"))","v":""},"","","","","",null,null,null,null,null,null,{"$f":"IF(D111=0,Q$110+D111,D111)","v":""},{"$f":"IF(E111=0,R$110+E111,E111)","v":""},"","","","",""]
[null,2,"Drawings",{"$f":"IF(ISERROR(INDIRECT(\"'\"&D$101&\"'!L9\")),\"\",INDIRECT(\"'\"&D$101&\"'!L9\"))","v":""},{"$f":"IF(ISERROR(INDIRECT(\"'\"&E$101&\"'!L9\")),\"\",INDIRECT(\"'\"&E$101&\"'!L9\"))","v":""},"","","","","",null,null,null,null,null,null,"","","","","","",""]
[null,3,"LoD",{"$f":"IF(ISERROR(INDIRECT(\"'\"&D$101&\"'!L10\")),\"\",INDIRECT(\"'\"&D$101&\"'!L10\"))","v":""},{"$f":"IF(ISERROR(INDIRECT(\"'\"&E$101&\"'!L10\")),\"\",INDIRECT(\"'\"&E$101&\"'!L10\"))","v":""},"","","","","",null,null,null,null,null,null,"","","","","","",""]
[null,4,"Reviews",{"$f":"IF(ISERROR(INDIRECT(\"'\"&D$101&\"'!L11\")),\"\",INDIRECT(\"'\"&D$101&\"'!L11\"))","v":""},{"$f":"IF(ISERROR(INDIRECT(\"'\"&E$101&\"'!L11\")),\"\",INDIRECT(\"'\"&E$101&\"'!L11\"))","v":""},"","","","","",null,null,null,null,null,null,"","","","","","",""]
[null,5,"Data",{"$f":"IF(ISERROR(INDIRECT(\"'\"&D$101&\"'!L17\")),\"\",INDIRECT(\"'\"&D$101&\"'!L17\"))","v":""},{"$f":"IF(ISERROR(INDIRECT(\"'\"&E$101&\"'!L17\")),\"\",INDIRECT(\"'\"&E$101&\"'!L17\"))","v":""},"","","","","",null,null,null,null,null,null,"","","","","","",""]
[null,6,"Visualisation",{"$f":"IF(ISERROR(INDIRECT(\"'\"&D$101&\"'!L18\")),\"\",INDIRECT(\"'\"&D$101&\"'!L18\"))","v":""},{"$f":"IF(ISERROR(INDIRECT(\"'\"&E$101&\"'!L18\")),\"\",INDIRECT(\"'\"&E$101&\"'!L18\"))","v":""},"","","","","",null,null,null,null,null,null,"","","","","","",""]
[null,7,"4D",{"$f":"IF(ISERROR(INDIRECT(\"'\"&D$101&\"'!L19\")),\"\",INDIRECT(\"'\"&D$101&\"'!L19\"))","v":""},{"$f":"IF(ISERROR(INDIRECT(\"'\"&E$101&\"'!L19\")),\"\",INDIRECT(\"'\"&E$101&\"'!L19\"))","v":""},"","","","","",null,null,null,null,null,null,"","","","","","",""]
[null,8,"5D",{"$f":"IF(ISERROR(INDIRECT(\"'\"&D$101&\"'!L20\")),\"\",INDIRECT(\"'\"&D$101&\"'!L20\"))","v":""},{"$f":"IF(ISERROR(INDIRECT(\"'\"&E$101&\"'!L20\")),\"\",INDIRECT(\"'\"&E$101&\"'!L20\"))","v":""},"","","","","",null,null,null,null,null,null,"","","","","","",""]
[null,9,"Analysis",{"$f":"IF(ISERROR(INDIRECT(\"'\"&D$101&\"'!L21\")),\"\",INDIRECT(\"'\"&D$101&\"'!L21\"))","v":""},{"$f":"IF(ISERROR(INDIRECT(\"'\"&E$101&\"'!L21\")),\"\",INDIRECT(\"'\"&E$101&\"'!L21\"))","v":""},"","","","","",null,null,null,null,null,null,"","","","","","",""]
[null,10,"Contractor Use",{"$f":"IF(ISERROR(INDIRECT(\"'\"&D$101&\"'!L22\")),\"\",INDIRECT(\"'\"&D$101&\"'!L22\"))","v":""},{"$f":"IF(ISERROR(INDIRECT(\"'\"&E$101&\"'!L22\")),\"\",INDIRECT(\"'\"&E$101&\"'!L22\"))","v":""},"","","","","",null,null,null,null,null,null,"","","","","","",""]
[null,11,"FM/OM Use",{"$f":"IF(ISERROR(INDIRECT(\"'\"&D$101&\"'!L23\")),\"\",INDIRECT(\"'\"&D$101&\"'!L23\"))","v":""},{"$f":"IF(ISERROR(INDIRECT(\"'\"&E$101&\"'!L23\")),\"\",INDIRECT(\"'\"&E$101&\"'!L23\"))","v":""},"","","","","",null,null,null,null,null,null,"","","","","","",""]

{"sheet":"Project","index":6,"n_rows":29,"n_cols":31,"rows_kept":29,"cut":false,"hidden":true,"merged":[[18,2,18,8]]}
[]
[null,"(your company logo here)",{"$f":"JobNumber","v":"Copy o"},{"$f":"IF(JOB_TITLE=\"\", \"Please return to 'Cover' to enter project name\", JOB_TITLE)","v":"Project XXXXXXXXXXX"}]
[]
[]
[null,null,null,{"$f":"CONCATENATE(RIGHT(CELL(\"Filename\",D1),LEN(CELL(\"Filename\",D1))-SEARCH(\"]\",CELL(\"Filename\",D1),1))&\" BIM Maturity\")","v":"Project BIM Maturity"},null,null,null,null,null,null,null,{"$f":"AVERAGE(L8:L18)","v":0},{"$f":"(SUM(L8:L18)/(5*SUM(M8:M18)))","v":0},null,null,null,null,null,"SUGGESTED TARGETS"]
[]
[null,null,"The Project Overview:\nMission, Vision, Goals, and Objectives, along with management support, and BIM Champions.","0\nNon-Existent","1\nInitial","2\nManaged","3\nDefined","4\nMeasured","5\nOptimizing","Target Level","Current Level","Adjusted Score","Weighting",null,null,null,0.75,null,"UK Government Level 1","UK Government Level 2","Concept","Scheme","Detailed Design","Tender","Construction","Handover","As-Built","Custom",null,null,"What CDE?\nSelect one."]
[null,"Employers Information Requirements (EIRs)","Understand the Client's needs and end-uses for a BIM, and ensure they drive this.","No known BIM-specific Employers Information Requirements","EIRs discussed with Client but not resolved",null,"Complete EIRs received and comments returned","Complete EIRs received & implemented before Contractor procurement","Complete EIRs received and reviewed regularly.",4,0,{"$f":"K8*M8","v":0},0.8,{"$f":"IF(OFFSET(D8,0,K8)=\"\",\"Score Not Allowed - Try Again!\",\"\")","v":""},null,{"$f":"IF(J8=0,$Q$7+J8,J8)","v":4},{"$f":"IF(K8=0,$Q$7+K8,K8)","v":0.75},null,5,null,null,null,null,null,null,null,null,null,null,null,"Projectwise"]
[null,"BIM Design Data Review","Pre-Bid and Post-Award reviews are recommended, to ensure we're focusing on the Client's needs.","No Design Data Review, pre or post award","Post-award BIM Design Data review held",null,"Pre- and Post-award BIM Design Data Review held",null,"BIM Design Data Review minutes regularly reviewed against BEP",3,0,0,0.9,"",null,{"$f":"IF(J9=0,$Q$7+J9,J9)","v":3},{"$f":"IF(K9=0,$Q$7+K9,K9)","v":0.75},null,3,null,null,null,null,null,null,null,null,null,null,null,"Sharepoint"]
[null,"BIM Execution Plan (BEP)","Project uses a BIM Execution Plan (BEP) to formalise goals and to specify information exchanges","No BIM Execution Plan",null,"Company BEP exists, for internal use only, by core Skills","Company BEP issued to, and used by whole Design Team","Project BEP exists for all parties, and based on EIRs","Project BEP made contract document, based on EIRs",2,0,0,0.9,"",null,2,0.75,null,2,null,null,null,null,null,null,null,null,null,null,null,"BIM360 (&Other Autodesk)"]
[null,"Project Procurement Route","Consideration of BIM during procurement discussions with Contractors","No consideration of BIM during procurement","Discussion with a Contractor of implementation of an industry BIM standard",null,"Design team implementation of Industry-wide BIM standard","Client imposed Implementation of recognised BIM standard","Contractor buy-in, including information manager, BEP and data drops",4,0,0,0.8,"",null,4,0.75,null,5,null,null,null,null,null,null,null,null,null,null,null,"GTeam"]
[{"$f":"Cover!D11","v":"Internal Network Folder – manual process"},"Common Data Environment (CDE)","A Common Data Environment (CDE) is used to facilitate sharing of BIMs","Legacy network setup; AMS-organised folder structure ","Document management system with agreed file naming convention ",null,"Internal company team using recognised CDE. Common BIM standards adhered to","Wider Design team implementation, including single server CDE","Client, Designers, Contractors using a single server CDE",3,0,0,1,"",null,3,{"$f":"IF(K12=0,$Q$7+K12,K12)","v":0.75},null,3,null,null,null,null,null,null,null,null,null,null,null,"Artra"]
[null,"Document/Model Referencing, Version Control and Status","Good practice on any project, but paramount when sharing models, where the recipient needs to know what's changed and what it can be relied upon.","None Considered","Discipline level file naming, version control and status","Company team file naming, version control and status","Company team file naming, version control and status compliant with recognised BIM standards","Project wide file naming, version control and status","Project wide file naming, version control and status compliant with recognised BIM standards",4,0,{"$f":"K13*M13","v":0},1,{"$f":"IF(OFFSET(D13,0,K13)=\"\",\"Score Not Allowed - Try Again!\",\"\")","v":""},null,{"$f":"IF(J13=0,$Q$7+J13,J13)","v":4},{"$f":"IF(K13=0,$Q$7+K13,K13)","v":0.75},null,3,null,null,null,null,null,null,null,null,null,null,null,"Docia"]
[null,"Marketing Strategy","BIM-specific Case Studies to showcase and share the key points","Project Sheet exists, but no BIM credentials","BIM-specific Project Sheet exists","BIM-specific Project Sheet exists, and actively marketed for own Group",null,"BIM-specific Project Sheet exists, and actively marketed for Region","Case Study exists on Company website, and used in Global external marketing.",5,0,0,0.6,"",null,5,{"$f":"IF(K14=0,$Q$7+K14,K14)","v":0.75},null,5,null,null,null,null,null,null,null,null,null,null,null,"Aconex"]
[null,"Virtual Design Reviews (VDR)","Conduct Virtual Design Reviews prior to issuing Model, for both Coordination and QA verifcation of deliverables","None","Single Discipline Model reviews held. No formal process","Internal multi-discipline Virtual Model Reviews regularly held. Formal process","Internal multi-discipline reviews at regular intervals and reviews with architect","Multi-Discipline VDRs conducted at all stages with design team, client and contractor ","Full QA checking and verification of model prior to issue in addition to reviews",2,0,0,1,"",null,2,0.75,null,2,null,null,null,null,null,null,null,null,null,null,null,"4Projects"]
[null,"Open Standard deliverables","Deliverables verified by open standard specifications, eg IFC, COBie","None",null,"Model exported to proprietary software (eg Navisworks, Solibri, GIS viewer)",null,"Successful export/re-import of IFC / COBie verified at each Issue","Successful import of IFC / COBie into any package verified at each issue",4,0,0,0.9,"",null,4,0.75,null,4,null,null,null,null,null,null,null,null,null,null,null,"Asite"]
[null,"BIM Contract","All parties should sign up to a project BIM contract, that allows for the sharing of models in a collaborative way.","None, or poorly-defined BIM agreement in consultant appointment",null,"Bespoke BIM contract signed by Company; other parties' contracts unknown",null,"All design parties signed up to an Industry-standard BIM contract","All parties, including Contractors, signed up to an Industry-standard BIM contract",4,0,0,0.9,"",null,4,0.75,null,5,null,null,null,null,null,null,null,null,null,null,null,"Conject"]
[null,"BIM Champion","A BIM Champion  guides teams to improve their processes by ensuring implementation of BIM, and managing resistance to change.","No BIM Champion on this project","BIM Champion identified but limited time committed to BIM initiative","BIM Champion with adequate time commitment on this project",null,"Leadership Level BIM  Champion with limited time commitment on this project","Leadership level BIM Champion working closely with BIM Taskforce champion",4,0,0,1,"",null,4,0.75,null,2,null,null,null,null,null,null,null,null,null,null,null,"Business Collaborator"]
[null,null,null,null,null,null,null,null,null,null,null,null,null,null,null,null,null,null,null,null,null,null,null,null,null,null,null,null,null,null,"Internal Network Folder – manual process"]
[null,null,null,null,null,null,null,null,null,null,null,null,null,null,null,null,null,null,null,null,null,null,null,null,null,null,null,null,null,null,"Other"]
[]
[]
[null,null,null,null,null,null,null,null,null,null,"Scores"]
[null,null,null,null,null,null,null,null,null,null,0]
[null,null,null,null,null,null,null,null,null,null,1]
[null,null,null,null,null,null,null,null,null,null,2]
[null,null,null,null,null,null,null,null,null,null,3]
[null,null,null,null,null,null,null,null,null,null,4]
[null,null,null,null,null,null,null,null,null,null,5]

{"sheet":"Structural","index":7,"n_rows":33,"n_cols":17,"rows_kept":33,"cut":false,"hidden":true,"merged":[[11,1,15,1]]}
[]
[null,"(your company logo here)",{"$f":"JobNumber","v":"Copy o"},{"$f":"JOB_TITLE","v":"Project XXXXXXXXXXX"}]
[]
[]
[null,null,null,{"$f":"CONCATENATE(RIGHT(CELL(\"Filename\",D1),LEN(CELL(\"Filename\",D1))-SEARCH(\"]\",CELL(\"Filename\",D1),1))&\" BIM Maturity\")","v":"Structural BIM Maturity"},null,null,null,null,null,null,null,{"$f":"AVERAGE(L8:L11,L17:L23)","v":0},{"$f":"(SUM(L8:L11,L17:L23)/(5*SUM(M8:M23)))","v":0}]
[]
[null,null,"the Mission, Vision, Goals, and Objectives, along with management support, BIM Champions.","0\nNon-Existent","1\nInitial","2\nManaged","3\nDefined","4\nMeasured","5\nOptimizing","Target Level","Current Level","Adjusted Score","Weighting",null,null,null,0.75]
["EASY WINS","3D Coordination","Model used to inform coordination across disciplines, and during Construction","None considered",null,"Majority of Project 3D, adhoc 3D coordination","Majority of Project 3D, 3D coordination reviews held regularly & recorded",null,"Whole project 3D, all components modelled & coordinated between disciplines",5,0,{"$f":"K8*M8","v":0},0.9,null,{"$f":"IF(OFFSET(D8,0,K8)=\"\",\"Score Not Allowed - Try Again!\",\"\")","v":""},{"$f":"IF(J8=0,$Q$7+J8,J8)","v":5},{"$f":"IF(K8=0,$Q$7+K8,K8)","v":0.75}]
[null,"Drawings","BIMs should be linked to documentation, including drawings","Model not Linked to Drawings","Model partially Linked to Drawings (some 2D)","Model used for some GAs, Sections, etc","Model Used for majority of GAs, Sections etc","Model used for all GAs, Sections, etc","Models used for all GAs, Sections and Schedules",5,0,0,0.9,null,"",{"$f":"IF(J9=0,$Q$7+J9,J9)","v":5},0.75]
[null,"Level of Development","LOD represents how developed elements within a model are.  This also conveys to others, via a BEP, what it can be used for.","No LODs considered",null,"Consistent LODs for some similar elements, but other elements over/under modelled",null,"Consistent LODs for most similar elements, aligned with BIM Execution Plan","All elements in model comply with stated LODs in BEP",4,0,0,1,null,"",4,0.75]
[null,"Discipline Model Reviews","A significant step-change is required in verification and reviewing of models, as they become standard deliverables.","No checking of models","Self-checking of models by technicians only","Engineer checking of parts of models","Engineer-led reviewing of whole of models","Full checking and QA verification of models","Full QA cross checking of model and any documentation including verfication signoff",4,0,0,1,null,"",4,0.75]
[null,"Discipline Specific Target & Current Level to be\nfilledin for all lines\nLine below provides average of section","Framing Schedules linked to model",null,"Internal","Deliverable",null,null,null,2,null,{"$f":"IF(K12=\"\",\"\",K12)","v":""},null,null,null,{"$f":"IF(J17=0,$Q$7+J17,J17)","v":3},{"$f":"IF(K17=0,$Q$7+K17,K17)","v":0.75}]
[null,null,"Foundation Schedules linked to model",null,null,null,null,"Internal","Deliverable",4,null,"",null,null,null,{"$f":"IF(J18=0,$Q$7+J18,J18)","v":2},0.75]
[null,null,"Material Grades linked to model",null,null,null,"Internal","Deliverable",null,3,null,"",null,null,null,1,0.75]
[null,null,"To be determined",null,null,null,null,null,null,null,null,"",null,null,null,1,0.75]
[null,null,"To be determined",null,null,null,null,null,null,null,null,"",null,null,null,4,0.75]
[null,"Embedded Data, Schedules and Specifications","The 'I' in BIM, the ability to embed all relevant data into the model, to extract and use for all design and documentation aspects.",null,null,null,"Expand node on the left to fill in Embedded Data, Schedules and Specifications section",null,null,{"$f":"IF(ISERROR(AVERAGE(J12:J16)),0,AVERAGE(J12:J16))","v":3},{"$f":"IF(ISERROR(AVERAGE(K12:K16)),0,AVERAGE(K12:K16))","v":0},{"$f":"IF(ISERROR(AVERAGE(L12:L16)),0,AVERAGE(L12:L16))","v":0},1,null,null,3,0.75]
[null,"Visualisation","To assist with Coordination and Client/Contractor understanding of the model.","None considered","Basic screenshots taken from Model for reports etc","Model used to inform Design team through basic visualisations.","Model used to inform Design team through 3D walkthroughs.","Model used to inform Client through 3D presentations","Advanced photorealistic renderings/animations taken from Model",2,0,{"$f":"K18*M18","v":0},0.7,null,"",3,0.75]
[null,"4D (Construction Sequencing)","Construction Sequencing, or analysis from the model","None considered","Model used for simplified phasing using hide/show only","Design Model used for sequencing by internal project team only",null,"Majority of Design Model used or evolved by Contractor to inform 4D","Design model used by internal project team to inform Contractor/Client",1,0,0,0.7,null,""]
[null,"5D (Quantity and Cost)","The ability to extract cost and quantity information is truly collaborative.","Model not suitable for costing","Model used for some internal quantity information/checking","Schedules produced from Model, and Model informally shared with QS with caveat",null,"Model formally issued to QS and cross-checked by internal project team","Cost optimisation by linking cost data directly to the model",1,0,0,0.7,null,""]
[null,"Links to Engineering Analysis Tools","An essential efficiency gain","None considered",null,"One way export to or from Analysis & Design Tools",null,"Whole model linked bi-directionally to Analysis & Design Tools","Full round-tripping between Model and Analysis/Design tools, to optimise design",4,0,0,1,null,""]
[null,"Handover to Contractor","Part of the collaborative process involves sharing the model with the Contractor","Not possible","Model for design team internal use only","Informal issue of model to Contractor with disclaimer","Formal issue of Model to Contractor with disclaimer","Formal issue of Model to Contractor, with signed BIM contract","Formal handover of Model to Contractor for use in Construction and FM.",3,0,0,0.9,null,""]
["HARDER!","Use in Operations and FM","An early understanding of the downstream uses of the model is essential to gain the maximum benefits for the Client.","None considered","Employers Information Requirements not implemented",null,"Employers Information Requirements implemented but Model not used for FM",null,"Employers Information Requirements considered from outset and model used for FM",3,0,0,0.9,null,""]
[]
[]
[]
[null,null,null,null,null,null,null,null,null,null,"Scores"]
[null,null,null,null,null,null,null,null,null,null,0]
[null,null,null,null,null,null,null,null,null,null,1]
[null,null,null,null,null,null,null,null,null,null,2]
[null,null,null,null,null,null,null,null,null,null,3]
[null,null,null,null,null,null,null,null,null,null,4]
[null,null,null,null,null,null,null,null,null,null,5]

{"sheet":"Mechanical","index":8,"n_rows":33,"n_cols":17,"rows_kept":33,"cut":false,"hidden":true,"merged":[[5,3,5,8],[11,1,15,1]]}
[]
[null,"(your company logo here)",{"$f":"JobNumber","v":"Copy o"},{"$f":"JOB_TITLE","v":"Project XXXXXXXXXXX"}]
[]
[]
[null,null,null,{"$f":"CONCATENATE(RIGHT(CELL(\"Filename\",D1),LEN(CELL(\"Filename\",D1))-SEARCH(\"]\",CELL(\"Filename\",D1),1))&\" BIM Maturity\")","v":"Mechanical BIM Maturity"},null,null,null,null,null,null,null,{"$f":"AVERAGE(L8:L11,L17:L23)","v":0},{"$f":"(SUM(L8:L11,L17:L23)/(5*SUM(M8:M23)))","v":0}]
[]
[null,null,"the Mission, Vision, Goals, and Objectives, along with management support, BIM Champions.","0\nNon-Existent","1\nInitial","2\nManaged","3\nDefined","4\nMeasured","5\nOptimizing","Target Level","Current Level","Adjusted Score","Weighting",null,null,null,0.75]
["EASY WINS","3D Coordination","Model used to inform coordination across disciplines, and during Construction","None considered",null,"Majority of Project 3D, adhoc 3D coordination","Majority of Project 3D, 3D coordination reviews held regularly & recorded",null,"Whole project 3D, all components modelled & coordinated between disciplines",5,0,{"$f":"K8*M8","v":0},0.9,null,{"$f":"IF(OFFSET(D8,0,K8)=\"\",\"Score Not Allowed - Try Again!\",\"\")","v":""},{"$f":"IF(J8=0,$Q$7+J8,J8)","v":5},{"$f":"IF(K8=0,$Q$7+K8,K8)","v":0.75}]
[null,"Drawings","BIMs should be linked to documentation, including drawings","Model not Linked to Drawings","Model partially Linked to Drawings (some 2D)","Model used for some GAs, Sections, etc","Model Used for majority of GAs, Sections etc","Model used for all GAs, Sections, etc","Models used for all GAs, Sections and Schedules",5,0,0,0.9,null,"",{"$f":"IF(J9=0,$Q$7+J9,J9)","v":5},{"$f":"IF(K9=0,$Q$7+K9,K9)","v":0.75}]
[null,"Level of Development","LOD represents how developed elements within a model are.  This also conveys to others, via a BEP, what it can be used for.","No LODs considered",null,"Consistent LODs for some similar elements, but other elements over/under modelled",null,"Consistent LODs for most similar elements, aligned with BIM Execution Plan","All elements in model comply with stated LODs in BEP",4,0,0,1,null,"",4,0.75]
[null,"Discipline Model Reviews","A significant step-change is required in verification and reviewing of models, as they become standard deliverables.","No checking of models","Self-checking of models by technicians only","Engineer checking of parts of models","Engineer-led reviewing of whole of models","Full checking and QA verification of models","Full QA cross checking of model and any documentation including verfication signoff",4,0,0,1,null,"",4,0.75]
[null,"Discipline Specific Target & Current Level to be\nfilledin for all lines\nLine below provides average of section","Duct Systems","Not used","Systems for Drawings",null,"Engineered Systems",null,"Automated Systems",1,null,{"$f":"IF(K12=\"\",\"\",K12)","v":""},null,null,null,{"$f":"IF(J17=0,$Q$7+J17,J17)","v":2.6666666666666665},{"$f":"IF(K17=0,$Q$7+K17,K17)","v":0.75}]
[null,null,"Pipe Systems","Not used","Systems for Drawings",null,"Engineered Systems",null,"Automated Systems",4,null,"",null,null,null,{"$f":"IF(J18=0,$Q$7+J18,J18)","v":2},{"$f":"IF(K18=0,$Q$7+K18,K18)","v":0.75}]
[null,null,"Schedules","No schedules",null,"Internal Use","Some Deliverables",null,"All Deliverables",3,null,"",null,null,null,1,0.75]
[null,null,"To be determined",null,null,null,null,null,null,null,null,"",null,null,null,1,0.75]
[null,null,"To be determined",null,null,null,null,null,null,null,null,"",null,null,null,4,0.75]
[null,"Embedded Data, Schedules and Specifications","The 'I' in BIM, the ability to embed all relevant data into the model, to extract and use for all design and documentation aspects.",null,null,null,"Expand node on the left to fill in Embedded Data, Schedules and Specifications section",null,null,{"$f":"IF(ISERROR(AVERAGE(J12:J16)),0,AVERAGE(J12:J16))","v":2.6666666666666665},{"$f":"IF(ISERROR(AVERAGE(K12:K16)),0,AVERAGE(K12:K16))","v":0},{"$f":"IF(ISERROR(AVERAGE(L12:L16)),0,AVERAGE(L12:L16))","v":0},1,null,null,3,0.75]
[null,"Visualisation","To assist with Coordination and Client/Contractor understanding of the model.","None considered","Basic screenshots taken from Model for reports etc","Model used to inform Design team through basic visualisations.","Model used to inform Design team through 3D walkthroughs.","Model used to inform Client through 3D presentations","Advanced photorealistic renderings/animations taken from Model",2,0,{"$f":"K18*M18","v":0},0.7,null,"",3,0.75]
[null,"4D (Construction Sequencing)","Construction Sequencing, or analysis from the model","None considered","Model used for simplified phasing using hide/show only","Design Model used for sequencing by internal project team only",null,"Majority of Design Model used or evolved by Contractor to inform 4D","Design model used by internal project team to inform Contractor/Client",1,0,0,0.7,null,""]
[null,"5D (Quantity and Cost)","The ability to extract cost and quantity information is truly collaborative.","Model not suitable for costing","Model used for some internal quantity information/checking","Schedules produced from Model, and Model informally shared with QS with caveat",null,"Model formally issued to QS and cross-checked by internal project team","Cost optimisation by linking cost data directly to the model",1,0,0,0.7,null,""]
[null,"Links to Engineering Analysis Tools","An essential efficiency gain","None considered",null,"One way export to or from Analysis & Design Tools",null,"Whole model linked bi-directionally to Analysis & Design Tools","Full round-tripping between Model and Analysis/Design tools, to optimise design",4,0,0,1,null,""]
[null,"Handover to Contractor","Part of the collaborative process involves sharing the model with the Contractor","Not possible","Model for design team internal use only","Informal issue of model to Contractor with disclaimer","Formal issue of Model to Contractor with disclaimer","Formal issue of Model to Contractor, with signed BIM contract","Formal handover of Model to Contractor for use in Construction and FM.",3,0,0,0.9,null,""]
["HARDER!","Use in Operations and FM","An early understanding of the downstream uses of the model is essential to gain the maximum benefits for the Client.","None considered","Employers Information Requirements not implemented",null,"Employers Information Requirements implemented but Model not used for FM",null,"Employers Information Requirements considered from outset and model used for FM",3,0,0,0.9,null,""]
[]
[]
[]
[null,null,null,null,null,null,null,null,null,null,"Scores"]
[null,null,null,null,null,null,null,null,null,null,0]
[null,null,null,null,null,null,null,null,null,null,1]
[null,null,null,null,null,null,null,null,null,null,2]
[null,null,null,null,null,null,null,null,null,null,3]
[null,null,null,null,null,null,null,null,null,null,4]
[null,null,null,null,null,null,null,null,null,null,5]

{"sheet":"Electrical","index":9,"n_rows":33,"n_cols":17,"rows_kept":33,"cut":false,"hidden":true,"merged":[[5,3,5,8],[11,1,15,1]]}
[]
[null,"(your company logo here)",{"$f":"JobNumber","v":"Copy o"},{"$f":"JOB_TITLE","v":"Project XXXXXXXXXXX"}]
[]
[]
[null,null,null,{"$f":"CONCATENATE(RIGHT(CELL(\"Filename\",D1),LEN(CELL(\"Filename\",D1))-SEARCH(\"]\",CELL(\"Filename\",D1),1))&\" BIM Maturity\")","v":"Electrical BIM Maturity"},null,null,null,null,null,null,null,{"$f":"AVERAGE(L8:L11,L17:L23)","v":0},{"$f":"(SUM(L8:L11,L17:L23)/(5*SUM(M8:M23)))","v":0}]
[]
[null,null,"the Mission, Vision, Goals, and Objectives, along with management support, BIM Champions.","0\nNon-Existent","1\nInitial","2\nManaged","3\nDefined","4\nMeasured","5\nOptimizing","Target Level","Current Level","Adjusted Score","Weighting",null,null,null,0.75]
["EASY WINS","3D Coordination","Model used to inform coordination across disciplines, and during Construction","None considered",null,"Majority of Project 3D, adhoc 3D coordination","Majority of Project 3D, 3D coordination reviews held regularly & recorded",null,"Whole project 3D, all components modelled & coordinated between disciplines",5,0,{"$f":"K8*M8","v":0},0.9,null,{"$f":"IF(OFFSET(D8,0,K8)=\"\",\"Score Not Allowed - Try Again!\",\"\")","v":""},{"$f":"IF(J8=0,$Q$7+J8,J8)","v":5},{"$f":"IF(K8=0,$Q$7+K8,K8)","v":0.75}]
[null,"Drawings","BIMs should be linked to documentation, including drawings","Model not Linked to Drawings","Model partially Linked to Drawings (some 2D)","Model used for some GAs, Sections, etc","Model Used for majority of GAs, Sections etc","Model used for all GAs, Sections, etc","Models used for all GAs, Sections and Schedules",5,0,0,0.9,null,"",{"$f":"IF(J9=0,$Q$7+J9,J9)","v":5},0.75]
[null,"Level of Development","LOD represents how developed elements within a model are.  This also conveys to others, via a BEP, what it can be used for.","No LODs considered",null,"Consistent LODs for some similar elements, but other elements over/under modelled",null,"Consistent LODs for most similar elements, aligned with BIM Execution Plan","All elements in model comply with stated LODs in BEP",4,0,0,1,null,"",4,0.75]
[null,"Discipline Model Reviews","A significant step-change is required in verification and reviewing of models, as they become standard deliverables.","No checking of models","Self-checking of models by technicians only","Engineer checking of parts of models","Engineer-led reviewing of whole of models","Full checking and QA verification of models","Full QA cross checking of model and any documentation including verfication signoff",4,0,0,1,null,"",4,0.75]
[null,"Discipline Specific Target & Current Level to be\nfilledin for all lines\nLine below provides average of section","Electrical Circuits","Not used",null,null,"Circuit References",null,"Panel Schedules",5,null,{"$f":"IF(K12=\"\",\"\",K12)","v":""},null,null,null,{"$f":"IF(J17=0,$Q$7+J17,J17)","v":5},{"$f":"IF(K17=0,$Q$7+K17,K17)","v":0.75}]
[null,null,"To be determined",null,null,null,null,null,null,null,null,"",null,null,null,{"$f":"IF(J18=0,$Q$7+J18,J18)","v":2},0.75]
[null,null,"To be determined",null,null,null,null,null,null,null,null,"",null,null,null,1,0.75]
[null,null,"To be determined",null,null,null,null,null,null,null,null,"",null,null,null,1,0.75]
[null,null,"To be determined",null,null,null,null,null,null,null,null,"",null,null,null,4,0.75]
[null,"Embedded Data, Schedules and Specifications","The 'I' in BIM, the ability to embed all relevant data into the model, to extract and use for all design and documentation aspects.",null,null,null,"Expand node on the left to fill in Embedded Data, Schedules and Specifications section",null,null,{"$f":"IF(ISERROR(AVERAGE(J12:J16)),0,AVERAGE(J12:J16))","v":5},{"$f":"IF(ISERROR(AVERAGE(K12:K16)),0,AVERAGE(K12:K16))","v":0},{"$f":"IF(ISERROR(AVERAGE(L12:L16)),0,AVERAGE(L12:L16))","v":0},1,null,null,3,0.75]
[null,"Visualisation","To assist with Coordination and Client/Contractor understanding of the model.","None considered","Basic screenshots taken from Model for reports etc","Model used to inform Design team through basic visualisations.","Model used to inform Design team through 3D walkthroughs.","Model used to inform Client through 3D presentations","Advanced photorealistic renderings/animations taken from Model",2,0,{"$f":"K18*M18","v":0},0.7,null,"",3,0.75]
[null,"4D (Construction Sequencing)","Construction Sequencing, or analysis from the model","None considered","Model used for simplified phasing using hide/show only","Design Model used for sequencing by internal project team only",null,"Majority of Design Model used or evolved by Contractor to inform 4D","Design model used by internal project team to inform Contractor/Client",1,0,0,0.7,null,""]
[null,"5D (Quantity and Cost)","The ability to extract cost and quantity information is truly collaborative.","Model not suitable for costing","Model used for some internal quantity information/checking","Schedules produced from Model, and Model informally shared with QS with caveat",null,"Model formally issued to QS and cross-checked by internal project team","Cost optimisation by linking cost data directly to the model",1,0,0,0.7,null,""]
[null,"Links to Engineering Analysis Tools","An essential efficiency gain","None considered",null,"One way export to or from Analysis & Design Tools",null,"Whole model linked bi-directionally to Analysis & Design Tools","Full round-tripping between Model and Analysis/Design tools, to optimise design",4,0,0,1,null,""]
[null,"Handover to Contractor","Part of the collaborative process involves sharing the model with the Contractor","Not possible","Model for design team internal use only","Informal issue of model to Contractor with disclaimer","Formal issue of Model to Contractor with disclaimer","Formal issue of Model to Contractor, with signed BIM contract","Formal handover of Model to Contractor for use in Construction and FM.",3,0,0,0.9,null,""]
["HARDER!","Use in Operations and FM","An early understanding of the downstream uses of the model is essential to gain the maximum benefits for the Client.","None considered","Employers Information Requirements not implemented",null,"Employers Information Requirements implemented but Model not used for FM",null,"Employers Information Requirements considered from outset and model used for FM",3,0,0,0.9,null,""]
[]
[]
[]
[null,null,null,null,null,null,null,null,null,null,"Scores"]
[null,null,null,null,null,null,null,null,null,null,0]
[null,null,null,null,null,null,null,null,null,null,1]
[null,null,null,null,null,null,null,null,null,null,2]
[null,null,null,null,null,null,null,null,null,null,3]
[null,null,null,null,null,null,null,null,null,null,4]
[null,null,null,null,null,null,null,null,null,null,5]

{"sheet":"Public Health","index":10,"n_rows":33,"n_cols":23,"rows_kept":33,"cut":false,"hidden":true,"merged":[[5,3,5,8],[11,1,15,1]]}
[]
[null,"(your company logo here)",{"$f":"JobNumber","v":"Copy o"},{"$f":"JOB_TITLE","v":"Project XXXXXXXXXXX"}]
[]
[]
[null,null,null,{"$f":"CONCATENATE(RIGHT(CELL(\"Filename\",D1),LEN(CELL(\"Filename\",D1))-SEARCH(\"]\",CELL(\"Filename\",D1),1))&\" BIM Maturity\")","v":"Public Health BIM Maturity"},null,null,null,null,null,null,null,{"$f":"AVERAGE(L8:L11,L17:L23)","v":0},{"$f":"(SUM(L8:L11,L17:L23)/(5*SUM(M8:M23)))","v":0}]
[]
[null,null,"the Mission, Vision, Goals, and Objectives, along with management support, BIM Champions.","0\nNon-Existent","1\nInitial","2\nManaged","3\nDefined","4\nMeasured","5\nOptimizing","Target Level","Current Level","Adjusted Score","Weighting",null,null,null,0.75]
["EASY WINS","3D Coordination","Model used to inform coordination across disciplines, and during Construction","None considered",null,"Majority of Project 3D, adhoc 3D coordination","Majority of Project 3D, 3D coordination reviews held regularly & recorded",null,"Whole project 3D, all components modelled & coordinated between disciplines",5,0,{"$f":"K8*M8","v":0},0.9,null,{"$f":"IF(OFFSET(D8,0,K8)=\"\",\"Score Not Allowed - Try Again!\",\"\")","v":""},{"$f":"IF(J8=0,$Q$7+J8,J8)","v":5},{"$f":"IF(K8=0,$Q$7+K8,K8)","v":0.75},{"$f":"IF(D8=\"\",\"\",0)","v":0},{"$f":"IF(E8=\"\",\"\",1)","v":""},{"$f":"IF(F8=\"\",\"\",2)","v":2},{"$f":"IF(G8=\"\",\"\",3)","v":3},{"$f":"IF(H8=\"\",\"\",4)","v":""},{"$f":"IF(I8=\"\",\"\",5)","v":5}]
[null,"Drawings","BIMs should be linked to documentation, including drawings","Model not Linked to Drawings","Model partially Linked to Drawings (some 2D)","Model used for some GAs, Sections, etc","Model Used for majority of GAs, Sections etc","Model used for all GAs, Sections, etc","Models used for all GAs, Sections and Schedules",5,0,0,0.9,null,"",{"$f":"IF(J9=0,$Q$7+J9,J9)","v":5},0.75,{"$f":"IF(D9=\"\",\"\",0)","v":0},{"$f":"IF(E9=\"\",\"\",1)","v":1},{"$f":"IF(F9=\"\",\"\",2)","v":2},{"$f":"IF(G9=\"\",\"\",3)","v":3},{"$f":"IF(H9=\"\",\"\",4)","v":4},{"$f":"IF(I9=\"\",\"\",5)","v":5}]
[null,"Level of Development","LOD represents how developed elements within a model are.  This also conveys to others, via a BEP, what it can be used for.","No LODs considered",null,"Consistent LODs for some similar elements, but other elements over/under modelled",null,"Consistent LODs for most similar elements, aligned with BIM Execution Plan","All elements in model comply with stated LODs in BEP",4,0,0,1,null,"",4,0.75,0,"",2,"",4,5]
[null,"Discipline Model Reviews","A significant step-change is required in verification and reviewing of models, as they become standard deliverables.","No checking of models","Self-checking of models by technicians only","Engineer checking of parts of models","Engineer-led reviewing of whole of models","Full checking and QA verification of models","Full QA cross checking of model and any documentation including verfication signoff",4,0,0,1,null,"",4,0.75,0,1,2,3,4,5]
[null,"Discipline Specific Target & Current Level to be\nfilledin for all lines\nLine below provides average of section","Pipe Systems","Not used","Systems for Drawings",null,null,null,null,1,0,{"$f":"IF(K12=\"\",\"\",K12)","v":0},null,null,"",{"$f":"IF(J17=0,$Q$7+J17,J17)","v":1},{"$f":"IF(K17=0,$Q$7+K17,K17)","v":0.75},0,1,"","","",""]
[null,null,"To be determined",null,null,null,null,null,null,null,null,"",null,null,null,{"$f":"IF(J18=0,$Q$7+J18,J18)","v":2},0.75,"","","","","",""]
[null,null,"To be determined",null,null,null,null,null,null,null,null,"",null,null,null,1,0.75,"","","","","",""]
[null,null,"To be determined",null,null,null,null,null,null,null,null,"",null,null,null,1,0.75,"","","","","",""]
[null,null,"To be determined",null,null,null,null,null,null,null,null,"",null,null,null,4,0.75,"","","","","",""]
[null,"Embedded Data, Schedules and Specifications","The 'I' in BIM, the ability to embed all relevant data into the model, to extract and use for all design and documentation aspects.",null,null,null,"Expand node on the left to fill in Embedded Data, Schedules and Specifications section",null,null,{"$f":"IF(ISERROR(AVERAGE(J12:J16)),0,AVERAGE(J12:J16))","v":1},{"$f":"IF(ISERROR(AVERAGE(K12:K16)),0,AVERAGE(K12:K16))","v":0},{"$f":"IF(ISERROR(AVERAGE(L12:L16)),0,AVERAGE(L12:L16))","v":0},1,null,null,3,0.75,"","","",3,"",""]
[null,"Visualisation","To assist with Coordination and Client/Contractor understanding of the model.","None considered","Basic screenshots taken from Model for reports etc","Model used to inform Design team through basic visualisations.","Model used to inform Design team through 3D walkthroughs.","Model used to inform Client through 3D presentations","Advanced photorealistic renderings/animations taken from Model",2,0,{"$f":"K18*M18","v":0},0.7,null,"",3,0.75,0,1,2,3,4,5]
[null,"4D (Construction Sequencing)","Construction Sequencing, or analysis from the model","None considered","Model used for simplified phasing using hide/show only","Design Model used for sequencing by internal project team only",null,"Majority of Design Model used or evolved by Contractor to inform 4D","Design model used by internal project team to inform Contractor/Client",1,0,0,0.7,null,"",null,null,0,1,2,"",4,5]
[null,"5D (Quantity and Cost)","The ability to extract cost and quantity information is truly collaborative.","Model not suitable for costing","Model used for some internal quantity information/checking","Schedules produced from Model, and Model informally shared with QS with caveat",null,"Model formally issued to QS and cross-checked by internal project team","Cost optimisation by linking cost data directly to the model",1,0,0,0.7,null,"",null,null,0,1,2,"",4,5]
[null,"Links to Engineering Analysis Tools","An essential efficiency gain","None considered",null,"One way export to or from Analysis & Design Tools",null,"Whole model linked bi-directionally to Analysis & Design Tools","Full round-tripping between Model and Analysis/Design tools, to optimise design",4,0,0,1,null,"",null,null,0,"",2,"",4,5]
[null,"Handover to Contractor","Part of the collaborative process involves sharing the model with the Contractor","Not possible","Model for design team internal use only","Informal issue of model to Contractor with disclaimer","Formal issue of Model to Contractor with disclaimer","Formal issue of Model to Contractor, with signed BIM contract","Formal handover of Model to Contractor for use in Construction and FM.",3,0,0,0.9,null,"",null,null,0,1,2,3,4,5]
["HARDER!","Use in Operations and FM","An early understanding of the downstream uses of the model is essential to gain the maximum benefits for the Client.","None considered","Employers Information Requirements not implemented",null,"Employers Information Requirements implemented but Model not used for FM",null,"Employers Information Requirements considered from outset and model used for FM",3,0,0,0.9,null,"",null,null,0,1,"",3,"",5]
[]
[]
[]
[null,null,null,null,null,null,null,null,null,null,"Scores"]
[null,null,null,null,null,null,null,null,null,null,0]
[null,null,null,null,null,null,null,null,null,null,1]
[null,null,null,null,null,null,null,null,null,null,2]
[null,null,null,null,null,null,null,null,null,null,3]
[null,null,null,null,null,null,null,null,null,null,4]
[null,null,null,null,null,null,null,null,null,null,5]

{"sheet":"Architecture","index":11,"n_rows":33,"n_cols":17,"rows_kept":33,"cut":false,"hidden":true,"merged":[[5,3,5,8],[11,1,15,1]]}
[]
[null,null,{"$f":"JobNumber","v":"Copy o"},{"$f":"JOB_TITLE","v":"Project XXXXXXXXXXX"}]
[]
[]
[null,null,null,{"$f":"CONCATENATE(RIGHT(CELL(\"Filename\",D1),LEN(CELL(\"Filename\",D1))-SEARCH(\"]\",CELL(\"Filename\",D1),1))&\" BIM Maturity\")","v":"Architecture BIM Maturity"},null,null,null,null,null,null,null,{"$f":"AVERAGE(L8:L11,L17:L23)","v":0},{"$f":"(SUM(L8:L11,L17:L23)/(5*SUM(M8:M23)))","v":0}]
[]
[null,null,"the Mission, Vision, Goals, and Objectives, along with management support, BIM Champions.","0\nNon-Existent","1\nInitial","2\nManaged","3\nDefined","4\nMeasured","5\nOptimizing","Target Level","Current Level","Adjusted Score","Weighting",null,null,null,0.75]
["EASY WINS","3D Coordination","Model used to inform coordination across disciplines, and during Construction","None considered",null,"Majority of Project 3D, adhoc 3D coordination","Majority of Project 3D, 3D coordination reviews held regularly & recorded",null,"Whole project 3D, all components modelled & coordinated between disciplines",5,0,{"$f":"K8*M8","v":0},0.9,null,{"$f":"IF(OFFSET(D8,0,K8)=\"\",\"Score Not Allowed - Try Again!\",\"\")","v":""},{"$f":"IF(J8=0,$Q$7+J8,J8)","v":5},{"$f":"IF(K8=0,$Q$7+K8,K8)","v":0.75}]
[null,"Drawings","BIMs should be linked to documentation, including drawings","Model not Linked to Drawings","Model partially Linked to Drawings (some 2D)","Model used for some GAs, Sections, etc","Model Used for majority of GAs, Sections etc","Model used for all GAs, Sections, etc","Models used for all GAs, Sections and Schedules",5,0,0,0.9,null,"",{"$f":"IF(J9=0,$Q$7+J9,J9)","v":5},0.75]
[null,"Level of Development","LOD represents how developed elements within a model are.  This also conveys to others, via a BEP, what it can be used for.","No LODs considered",null,"Consistent LODs for some similar elements, but other elements over/under modelled",null,"Consistent LODs for most similar elements, aligned with BIM Execution Plan","All elements in model comply with stated LODs in BEP",4,0,0,1,null,"",4,0.75]
[null,"Discipline Model Reviews","A significant step-change is required in verification and reviewing of models, as they become standard deliverables.","No checking of models","Self-checking of models by technicians only","Engineer checking of parts of models","Engineer-led reviewing of whole of models","Full checking and QA verification of models","Full QA cross checking of model and any documentation including verfication signoff",4,0,0,1,null,"",4,0.75]
[null,"Discipline Specific Target & Current Level to be\nfilledin for all lines\nLine below provides average of section","To be determined","Not used","Systems for Drawings",null,null,null,null,1,null,{"$f":"IF(K12=\"\",\"\",K12)","v":""},null,null,null,1]
[null,null,"To be determined",null,null,null,null,null,null,null,null,"",null,null,null,{"$f":"IF(J18=0,$Q$7+J18,J18)","v":2},0.75]
[null,null,"To be determined",null,null,null,null,null,null,null,null,"",null,null,null,1,0.75]
[null,null,"To be determined",null,null,null,null,null,null,null,null,"",null,null,null,1,0.75]
[null,null,"To be determined",null,null,null,null,null,null,null,null,"",null,null,null,4,0.75]
[null,"Embedded Data, Schedules and Specifications","The 'I' in BIM, the ability to embed all relevant data into the model, to extract and use for all design and documentation aspects.",null,null,null,"Expand node on the left to fill in Embedded Data, Schedules and Specifications section",null,null,{"$f":"IF(ISERROR(AVERAGE(J12:J16)),0,AVERAGE(J12:J16))","v":1},{"$f":"IF(ISERROR(AVERAGE(K12:K16)),0,AVERAGE(K12:K16))","v":0},{"$f":"IF(ISERROR(AVERAGE(L12:L16)),0,AVERAGE(L12:L16))","v":0},1,null,null,3,0.75]
[null,"Visualisation","To assist with Coordination and Client/Contractor understanding of the model.","None considered","Basic screenshots taken from Model for reports etc","Model used to inform Design team through basic visualisations.","Model used to inform Design team through 3D walkthroughs.","Model used to inform Client through 3D presentations","Advanced photorealistic renderings/animations taken from Model",2,0,{"$f":"K18*M18","v":0},0.7,null,"",3,0.75]
[null,"4D (Construction Sequencing)","Construction Sequencing, or analysis from the model","None considered","Model used for simplified phasing using hide/show only","Design Model used for sequencing by internal project team only",null,"Majority of Design Model used or evolved by Contractor to inform 4D","Design model used by internal project team to inform Contractor/Client",1,0,0,0.7,null,""]
[null,"5D (Quantity and Cost)","The ability to extract cost and quantity information is truly collaborative.","Model not suitable for costing","Model used for some internal quantity information/checking","Schedules produced from Model, and Model informally shared with QS with caveat",null,"Model formally issued to QS and cross-checked by internal project team","Cost optimisation by linking cost data directly to the model",1,0,0,0.7,null,""]
[null,"Links to Engineering Analysis Tools","An essential efficiency gain","None considered",null,"One way export to or from Analysis & Design Tools",null,"Whole model linked bi-directionally to Analysis & Design Tools","Full round-tripping between Model and Analysis/Design tools, to optimise design",4,0,0,1,null,""]
[null,"Handover to Contractor","Part of the collaborative process involves sharing the model with the Contractor","Not possible","Model for design team internal use only","Informal issue of model to Contractor with disclaimer","Formal issue of Model to Contractor with disclaimer","Formal issue of Model to Contractor, with signed BIM contract","Formal handover of Model to Contractor for use in Construction and FM.",3,0,0,0.9,null,""]
["HARDER!","Use in Operations and FM","An early understanding of the downstream uses of the model is essential to gain the maximum benefits for the Client.","None considered","Employers Information Requirements not implemented",null,"Employers Information Requirements implemented but Model not used for FM",null,"Employers Information Requirements considered from outset and model used for FM",3,0,0,0.9,null,""]
[]
[]
[]
[null,null,null,null,null,null,null,null,null,null,"Scores"]
[null,null,null,null,null,null,null,null,null,null,0]
[null,null,null,null,null,null,null,null,null,null,1]
[null,null,null,null,null,null,null,null,null,null,2]
[null,null,null,null,null,null,null,null,null,null,3]
[null,null,null,null,null,null,null,null,null,null,4]
[null,null,null,null,null,null,null,null,null,null,5]

{"sheet":"Acoustics","index":12,"n_rows":33,"n_cols":17,"rows_kept":33,"cut":false,"hidden":true,"merged":[[5,3,5,8],[11,1,15,1]]}
[]
[null,null,{"$f":"JobNumber","v":"Copy o"},{"$f":"JOB_TITLE","v":"Project XXXXXXXXXXX"}]
[]
[]
[null,null,null,{"$f":"CONCATENATE(RIGHT(CELL(\"Filename\",D1),LEN(CELL(\"Filename\",D1))-SEARCH(\"]\",CELL(\"Filename\",D1),1))&\" BIM Maturity\")","v":"Acoustics BIM Maturity"},null,null,null,null,null,null,null,{"$f":"AVERAGE(L8:L11,L17:L23)","v":0},{"$f":"(SUM(L8:L11,L17:L23)/(5*SUM(M8:M23)))","v":0}]
[]
[null,null,"the Mission, Vision, Goals, and Objectives, along with management support, BIM Champions.","0\nNon-Existent","1\nInitial","2\nManaged","3\nDefined","4\nMeasured","5\nOptimizing","Target Level","Current Level","Adjusted Score","Weighting",null,null,null,0.75]
["EASY WINS","3D Coordination","Model used to inform coordination across disciplines, and during Construction","None considered",null,"Majority of Project 3D, adhoc 3D coordination","Majority of Project 3D, 3D coordination reviews held regularly & recorded",null,"Whole project 3D, all components modelled & coordinated between disciplines",3,0,{"$f":"K8*M8","v":0},0.9,null,{"$f":"IF(OFFSET(D8,0,K8)=\"\",\"Score Not Allowed - Try Again!\",\"\")","v":""},{"$f":"IF(J8=0,$Q$7+J8,J8)","v":3},{"$f":"IF(K8=0,$Q$7+K8,K8)","v":0.75}]
[null,"Drawings","BIMs should be linked to documentation, including drawings","Model not Linked to Drawings","Model partially Linked to Drawings (some 2D)","Model used for some GAs, Sections, etc","Model Used for majority of GAs, Sections etc","Model used for all GAs, Sections, etc","Models used for all GAs, Sections and Schedules",1,0,0,0.9,null,"",{"$f":"IF(J9=0,$Q$7+J9,J9)","v":1},0.75]
[null,"Level of Development","LOD represents how developed elements within a model are.  This also conveys to others, via a BEP, what it can be used for.","No LODs considered",null,"Consistent LODs for some similar elements, but other elements over/under modelled",null,"Consistent LODs for most similar elements, aligned with BIM Execution Plan","All elements in model comply with stated LODs in BEP",4,0,0,1,null,"",4,0.75]
[null,"Discipline Model Reviews","A significant step-change is required in verification and reviewing of models, as they become standard deliverables.","No checking of models","Self-checking of models by technicians only","Engineer checking of parts of models","Engineer-led reviewing of whole of models","Full checking and QA verification of models","Full QA cross checking of model and any documentation including verfication signoff",5,0,0,1,null,"",5,0.75]
[null,"Discipline Specific Target & Current Level to be\nfilledin for all lines\nLine below provides average of section","To be determined",null,null,null,null,null,null,null,null,{"$f":"IF(K12=\"\",\"\",K12)","v":""},null,null,null,{"$f":"IF(J17=0,$Q$7+J17,J17)","v":0.75},{"$f":"IF(K17=0,$Q$7+K17,K17)","v":0.75}]
[null,null,"To be determined",null,null,null,null,null,null,null,null,"",null,null,null,{"$f":"IF(J18=0,$Q$7+J18,J18)","v":3},0.75]
[null,null,"To be determined",null,null,null,null,null,null,null,null,"",null,null,null,0.75,0.75]
[null,null,"To be determined",null,null,null,null,null,null,null,null,"",null,null,null,1,0.75]
[null,null,"To be determined",null,null,null,null,null,null,null,null,"",null,null,null,2,0.75]
[null,"Embedded Data, Schedules and Specifications","The 'I' in BIM, the ability to embed all relevant data into the model, to extract and use for all design and documentation aspects.",null,null,null,"Expand node on the left to fill in Embedded Data, Schedules and Specifications section",null,null,{"$f":"IF(ISERROR(AVERAGE(J12:J16)),0,AVERAGE(J12:J16))","v":0},{"$f":"IF(ISERROR(AVERAGE(K12:K16)),0,AVERAGE(K12:K16))","v":0},{"$f":"IF(ISERROR(AVERAGE(L12:L16)),0,AVERAGE(L12:L16))","v":0},1,null,null,2,0.75]
[null,"Visualisation","To assist with Coordination and Client/Contractor understanding of the model.","None considered","Basic screenshots taken from Model for reports etc","Model used to inform Design team through basic visualisations.","Model used to inform Design team through 3D walkthroughs.","Model used to inform Client through 3D presentations","Advanced photorealistic renderings/animations taken from Model",3,0,{"$f":"K18*M18","v":0},0.7,null,"",2,0.75]
[null,"4D (Construction Sequencing)","Construction Sequencing, or analysis from the model","None considered","Model used for simplified phasing using hide/show only","Design Model used for sequencing by internal project team only",null,"Majority of Design Model used or evolved by Contractor to inform 4D","Design model used by internal project team to inform Contractor/Client",0,0,0,0.7,null,""]
[null,"5D (Quantity and Cost)","The ability to extract cost and quantity information is truly collaborative.","Model not suitable for costing","Model used for some internal quantity information/checking","Schedules produced from Model, and Model informally shared with QS with caveat",null,"Model formally issued to QS and cross-checked by internal project team","Cost optimisation by linking cost data directly to the model",1,0,0,0.7,null,""]
[null,"Links to Engineering Analysis Tools","An essential efficiency gain","None considered",null,"One way export to or from Analysis & Design Tools",null,"Whole model linked bi-directionally to Analysis & Design Tools","Full round-tripping between Model and Analysis/Design tools, to optimise design",2,0,0,1,null,""]
[null,"Handover to Contractor","Part of the collaborative process involves sharing the model with the Contractor","Not possible","Model for design team internal use only","Informal issue of model to Contractor with disclaimer","Formal issue of Model to Contractor with disclaimer","Formal issue of Model to Contractor, with signed BIM contract","Formal handover of Model to Contractor for use in Construction and FM.",2,0,0,0.9,null,""]
["HARDER!","Use in Operations and FM","An early understanding of the downstream uses of the model is essential to gain the maximum benefits for the Client.","None considered","Employers Information Requirements not implemented",null,"Employers Information Requirements implemented but Model not used for FM",null,"Employers Information Requirements considered from outset and model used for FM",2,0,0,0.9,null,""]
[]
[]
[]
[null,null,null,null,null,null,null,null,null,null,"Scores"]
[null,null,null,null,null,null,null,null,null,null,0]
[null,null,null,null,null,null,null,null,null,null,1]
[null,null,null,null,null,null,null,null,null,null,2]
[null,null,null,null,null,null,null,null,null,null,3]
[null,null,null,null,null,null,null,null,null,null,4]
[null,null,null,null,null,null,null,null,null,null,5]

{"sheet":"Audio Visual","index":13,"n_rows":33,"n_cols":17,"rows_kept":33,"cut":false,"hidden":true,"merged":[[5,3,5,8],[11,1,15,1]]}
[null,{"$f":"IF(A1=\"\",\"\",A1)","v":""}]
[null,"",{"$f":"JobNumber","v":"Copy o"},{"$f":"JOB_TITLE","v":"Project XXXXXXXXXXX"}]
[]
[]
[null,null,null,{"$f":"CONCATENATE(RIGHT(CELL(\"Filename\",D1),LEN(CELL(\"Filename\",D1))-SEARCH(\"]\",CELL(\"Filename\",D1),1))&\" BIM Maturity\")","v":"Audio Visual BIM Maturity"},null,null,null,null,null,null,null,{"$f":"AVERAGE(L8:L11,L17:L23)","v":0},{"$f":"(SUM(L8:L11,L17:L23)/(5*SUM(M8:M23)))","v":0}]
[]
[null,null,"the Mission, Vision, Goals, and Objectives, along with management support, BIM Champions.","0\nNon-Existent","1\nInitial","2\nManaged","3\nDefined","4\nMeasured","5\nOptimizing","Target Level","Current Level","Adjusted Score","Weighting",null,null,null,0.75]
["EASY WINS","3D Coordination","Model used to inform coordination across disciplines, and during Construction","None considered",null,"Majority of Project 3D, adhoc 3D coordination","Majority of Project 3D, 3D coordination reviews held regularly & recorded",null,"Whole project 3D, all components modelled & coordinated between disciplines",3,0,{"$f":"K8*M8","v":0},0.9,null,{"$f":"IF(OFFSET(D8,0,K8)=\"\",\"Score Not Allowed - Try Again!\",\"\")","v":""},{"$f":"IF(J8=0,$Q$7+J8,J8)","v":3},{"$f":"IF(K8=0,$Q$7+K8,K8)","v":0.75}]
[null,"Drawings","BIMs should be linked to documentation, including drawings","Model not Linked to Drawings","Model partially Linked to Drawings (some 2D)","Model used for some GAs, Sections, etc","Model Used for majority of GAs, Sections etc","Model used for all GAs, Sections, etc","Models used for all GAs, Sections and Schedules",1,0,0,0.9,null,"",{"$f":"IF(J9=0,$Q$7+J9,J9)","v":1},0.75]
[null,"Level of Development","LOD represents how developed elements within a model are.  This also conveys to others, via a BEP, what it can be used for.","No LODs considered",null,"Consistent LODs for some similar elements, but other elements over/under modelled",null,"Consistent LODs for most similar elements, aligned with BIM Execution Plan","All elements in model comply with stated LODs in BEP",4,0,0,1,null,"",4,0.75]
[null,"Discipline Model Reviews","A significant step-change is required in verification and reviewing of models, as they become standard deliverables.","No checking of models","Self-checking of models by technicians only","Engineer checking of parts of models","Engineer-led reviewing of whole of models","Full checking and QA verification of models","Full QA cross checking of model and any documentation including verfication signoff",5,0,0,1,null,"",5,0.75]
[null,"Discipline Specific Target & Current Level to be\nfilledin for all lines\nLine below provides average of section","To be determined",null,null,null,null,null,null,null,null,{"$f":"IF(K12=\"\",\"\",K12)","v":""},null,null,null,{"$f":"IF(J17=0,$Q$7+J17,J17)","v":0.75},{"$f":"IF(K17=0,$Q$7+K17,K17)","v":0.75}]
[null,null,"To be determined",null,null,null,null,null,null,null,null,"",null,null,null,{"$f":"IF(J18=0,$Q$7+J18,J18)","v":3},0.75]
[null,null,"To be determined",null,null,null,null,null,null,null,null,"",null,null,null,0.75,0.75]
[null,null,"To be determined",null,null,null,null,null,null,null,null,"",null,null,null,1,0.75]
[null,null,"To be determined",null,null,null,null,null,null,null,null,"",null,null,null,2,0.75]
[null,"Embedded Data, Schedules and Specifications","The 'I' in BIM, the ability to embed all relevant data into the model, to extract and use for all design and documentation aspects.",null,null,null,"Expand node on the left to fill in Embedded Data, Schedules and Specifications section",null,null,{"$f":"IF(ISERROR(AVERAGE(J12:J16)),0,AVERAGE(J12:J16))","v":0},{"$f":"IF(ISERROR(AVERAGE(K12:K16)),0,AVERAGE(K12:K16))","v":0},{"$f":"IF(ISERROR(AVERAGE(L12:L16)),0,AVERAGE(L12:L16))","v":0},1,null,null,2,0.75]
[null,"Visualisation","To assist with Coordination and Client/Contractor understanding of the model.","None considered","Basic screenshots taken from Model for reports etc","Model used to inform Design team through basic visualisations.","Model used to inform Design team through 3D walkthroughs.","Model used to inform Client through 3D presentations","Advanced photorealistic renderings/animations taken from Model",3,0,{"$f":"K18*M18","v":0},0.7,null,"",2,0.75]
[null,"4D (Construction Sequencing)","Construction Sequencing, or analysis from the model","None considered","Model used for simplified phasing using hide/show only","Design Model used for sequencing by internal project team only",null,"Majority of Design Model used or evolved by Contractor to inform 4D","Design model used by internal project team to inform Contractor/Client",0,0,0,0.7,null,""]
[null,"5D (Quantity and Cost)","The ability to extract cost and quantity information is truly collaborative.","Model not suitable for costing","Model used for some internal quantity information/checking","Schedules produced from Model, and Model informally shared with QS with caveat",null,"Model formally issued to QS and cross-checked by internal project team","Cost optimisation by linking cost data directly to the model",1,0,0,0.7,null,""]
[null,"Links to Engineering Analysis Tools","An essential efficiency gain","None considered",null,"One way export to or from Analysis & Design Tools",null,"Whole model linked bi-directionally to Analysis & Design Tools","Full round-tripping between Model and Analysis/Design tools, to optimise design",2,0,0,1,null,""]
[null,"Handover to Contractor","Part of the collaborative process involves sharing the model with the Contractor","Not possible","Model for design team internal use only","Informal issue of model to Contractor with disclaimer","Formal issue of Model to Contractor with disclaimer","Formal issue of Model to Contractor, with signed BIM contract","Formal handover of Model to Contractor for use in Construction and FM.",2,0,0,0.9,null,""]
["HARDER!","Use in Operations and FM","An early understanding of the downstream uses of the model is essential to gain the maximum benefits for the Client.","None considered","Employers Information Requirements not implemented",null,"Employers Information Requirements implemented but Model not used for FM",null,"Employers Information Requirements considered from outset and model used for FM",2,0,0,0.9,null,""]
[]
[]
[]
[null,null,null,null,null,null,null,null,null,null,"Scores"]
[null,null,null,null,null,null,null,null,null,null,0]
[null,null,null,null,null,null,null,null,null,null,1]
[null,null,null,null,null,null,null,null,null,null,2]
[null,null,null,null,null,null,null,null,null,null,3]
[null,null,null,null,null,null,null,null,null,null,4]
[null,null,null,null,null,null,null,null,null,null,5]

{"sheet":"Aviation","index":14,"n_rows":33,"n_cols":17,"rows_kept":33,"cut":false,"hidden":true,"merged":[[5,3,5,8],[11,1,15,1]]}
[]
[null,null,{"$f":"JobNumber","v":"Copy o"},{"$f":"JOB_TITLE","v":"Project XXXXXXXXXXX"}]
[]
[]
[null,null,null,{"$f":"CONCATENATE(RIGHT(CELL(\"Filename\",D1),LEN(CELL(\"Filename\",D1))-SEARCH(\"]\",CELL(\"Filename\",D1),1))&\" BIM Maturity\")","v":"Aviation BIM Maturity"},null,null,null,null,null,null,null,{"$f":"AVERAGE(L8:L11,L17:L23)","v":0},{"$f":"(SUM(L8:L11,L17:L23)/(5*SUM(M8:M23)))","v":0}]
[]
[null,null,"the Mission, Vision, Goals, and Objectives, along with management support, BIM Champions.","0\nNon-Existent","1\nInitial","2\nManaged","3\nDefined","4\nMeasured","5\nOptimizing","Target Level","Current Level","Adjusted Score","Weighting",null,null,null,0.75]
["EASY WINS","3D Coordination","Model used to inform coordination across disciplines, and during Construction","None considered",null,"Majority of Project 3D, adhoc 3D coordination","Majority of Project 3D, 3D coordination reviews held regularly & recorded",null,"Whole project 3D, all components modelled & coordinated between disciplines",3,0,{"$f":"K8*M8","v":0},0.9,null,{"$f":"IF(OFFSET(D8,0,K8)=\"\",\"Score Not Allowed - Try Again!\",\"\")","v":""},{"$f":"IF(J8=0,$Q$7+J8,J8)","v":3},{"$f":"IF(K8=0,$Q$7+K8,K8)","v":0.75}]
[null,"Drawings","BIMs should be linked to documentation, including drawings","Model not Linked to Drawings","Model partially Linked to Drawings (some 2D)","Model used for some GAs, Sections, etc","Model Used for majority of GAs, Sections etc","Model used for all GAs, Sections, etc","Models used for all GAs, Sections and Schedules",1,0,0,0.9,null,"",{"$f":"IF(J9=0,$Q$7+J9,J9)","v":1},0.75]
[null,"Level of Development","LOD represents how developed elements within a model are.  This also conveys to others, via a BEP, what it can be used for.","No LODs considered",null,"Consistent LODs for some similar elements, but other elements over/under modelled",null,"Consistent LODs for most similar elements, aligned with BIM Execution Plan","All elements in model comply with stated LODs in BEP",4,0,0,1,null,"",4,0.75]
[null,"Discipline Model Reviews","A significant step-change is required in verification and reviewing of models, as they become standard deliverables.","No checking of models","Self-checking of models by technicians only","Engineer checking of parts of models","Engineer-led reviewing of whole of models","Full checking and QA verification of models","Full QA cross checking of model and any documentation including verfication signoff",5,0,0,1,null,"",5,0.75]
[null,"Discipline Specific Target & Current Level to be\nfilledin for all lines\nLine below provides average of section","To be determined",null,null,null,null,null,null,null,null,{"$f":"IF(K12=\"\",\"\",K12)","v":""},null,null,null,{"$f":"IF(J17=0,$Q$7+J17,J17)","v":0.75},{"$f":"IF(K17=0,$Q$7+K17,K17)","v":0.75}]
[null,null,"To be determined",null,null,null,null,null,null,null,null,"",null,null,null,{"$f":"IF(J18=0,$Q$7+J18,J18)","v":3},0.75]
[null,null,"To be determined",null,null,null,null,null,null,null,null,"",null,null,null,{"$f":"IF(#REF!=0,$Q$7+#REF!,#REF!)","v":{"$error":"#REF!"}},0.75]
[null,null,"To be determined",null,null,null,null,null,null,null,null,"",null,null,null,{"$f":"IF(J19=0,$Q$7+J19,J19)","v":0.75},0.75]
[null,null,"To be determined",null,null,null,null,null,null,null,null,"",null,null,null,2,0.75]
[null,"Embedded Data, Schedules and Specifications","The 'I' in BIM, the ability to embed all relevant data into the model, to extract and use for all design and documentation aspects.",null,null,null,"Expand node on the left to fill in Embedded Data, Schedules and Specifications section",null,null,{"$f":"IF(ISERROR(AVERAGE(J12:J16)),0,AVERAGE(J12:J16))","v":0},{"$f":"IF(ISERROR(AVERAGE(K12:K16)),0,AVERAGE(K12:K16))","v":0},{"$f":"IF(ISERROR(AVERAGE(L12:L16)),0,AVERAGE(L12:L16))","v":0},1,null,null,2,0.75]
[null,"Visualisation","To assist with Coordination and Client/Contractor understanding of the model.","None considered","Basic screenshots taken from Model for reports etc","Model used to inform Design team through basic visualisations.","Model used to inform Design team through 3D walkthroughs.","Model used to inform Client through 3D presentations","Advanced photorealistic renderings/animations taken from Model",3,0,{"$f":"K18*M18","v":0},0.7,null,"",2,0.75]
[null,"4D (Construction Sequencing)","Construction Sequencing, or analysis from the model","None considered","Model used for simplified phasing using hide/show only","Design Model used for sequencing by internal project team only",null,"Majority of Design Model used or evolved by Contractor to inform 4D","Design model used by internal project team to inform Contractor/Client",0,0,0,0.7,null,""]
[null,"5D (Quantity and Cost)","The ability to extract cost and quantity information is truly collaborative.","Model not suitable for costing","Model used for some internal quantity information/checking","Schedules produced from Model, and Model informally shared with QS with caveat",null,"Model formally issued to QS and cross-checked by internal project team","Cost optimisation by linking cost data directly to the model",1,0,0,0.7,null,""]
[null,"Links to Engineering Analysis Tools","An essential efficiency gain","None considered",null,"One way export to or from Analysis & Design Tools",null,"Whole model linked bi-directionally to Analysis & Design Tools","Full round-tripping between Model and Analysis/Design tools, to optimise design",2,0,0,1,null,""]
[null,"Handover to Contractor","Part of the collaborative process involves sharing the model with the Contractor","Not possible","Model for design team internal use only","Informal issue of model to Contractor with disclaimer","Formal issue of Model to Contractor with disclaimer","Formal issue of Model to Contractor, with signed BIM contract","Formal handover of Model to Contractor for use in Construction and FM.",2,0,0,0.9,null,""]
["HARDER!","Use in Operations and FM","An early understanding of the downstream uses of the model is essential to gain the maximum benefits for the Client.","None considered","Employers Information Requirements not implemented",null,"Employers Information Requirements implemented but Model not used for FM",null,"Employers Information Requirements considered from outset and model used for FM",2,0,0,0.9,null,""]
[]
[]
[]
[null,null,null,null,null,null,null,null,null,null,"Scores"]
[null,null,null,null,null,null,null,null,null,null,0]
[null,null,null,null,null,null,null,null,null,null,1]
[null,null,null,null,null,null,null,null,null,null,2]
[null,null,null,null,null,null,null,null,null,null,3]
[null,null,null,null,null,null,null,null,null,null,4]
[null,null,null,null,null,null,null,null,null,null,5]

{"sheet":"Bridges","index":15,"n_rows":33,"n_cols":17,"rows_kept":33,"cut":false,"hidden":true,"merged":[[5,3,5,8],[11,1,15,1]]}
[]
[null,null,{"$f":"JobNumber","v":"Copy o"},{"$f":"JOB_TITLE","v":"Project XXXXXXXXXXX"}]
[]
[]
[null,null,null,{"$f":"CONCATENATE(RIGHT(CELL(\"Filename\",D1),LEN(CELL(\"Filename\",D1))-SEARCH(\"]\",CELL(\"Filename\",D1),1))&\" BIM Maturity\")","v":"Bridges BIM Maturity"},null,null,null,null,null,null,null,{"$f":"AVERAGE(L8:L11,L17:L23)","v":0},{"$f":"(SUM(L8:L11,L17:L23)/(5*SUM(M8:M23)))","v":0}]
[]
[null,null,"the Mission, Vision, Goals, and Objectives, along with management support, BIM Champions.","0\nNon-Existent","1\nInitial","2\nManaged","3\nDefined","4\nMeasured","5\nOptimizing","Target Level","Current Level","Adjusted Score","Weighting",null,null,null,0.75]
["EASY WINS","3D Coordination","Model used to inform coordination across disciplines, and during Construction","None considered",null,"Majority of Project 3D, adhoc 3D coordination","Majority of Project 3D, 3D coordination reviews held regularly & recorded",null,"Whole project 3D, all components modelled & coordinated between disciplines",3,0,{"$f":"K8*M8","v":0},0.9,null,{"$f":"IF(OFFSET(D8,0,K8)=\"\",\"Score Not Allowed - Try Again!\",\"\")","v":""},{"$f":"IF(J8=0,$Q$7+J8,J8)","v":3},{"$f":"IF(K8=0,$Q$7+K8,K8)","v":0.75}]
[null,"Drawings","BIMs should be linked to documentation, including drawings","Model not Linked to Drawings","Model partially Linked to Drawings (some 2D)","Model used for some GAs, Sections, etc","Model Used for majority of GAs, Sections etc","Model used for all GAs, Sections, etc","Models used for all GAs, Sections and Schedules",1,0,0,0.9,null,"",{"$f":"IF(J9=0,$Q$7+J9,J9)","v":1},0.75]
[null,"Level of Development","LOD represents how developed elements within a model are.  This also conveys to others, via a BEP, what it can be used for.","No LODs considered",null,"Consistent LODs for some similar elements, but other elements over/under modelled",null,"Consistent LODs for most similar elements, aligned with BIM Execution Plan","All elements in model comply with stated LODs in BEP",4,0,0,1,null,"",4,0.75]
[null,"Discipline Model Reviews","A significant step-change is required in verification and reviewing of models, as they become standard deliverables.","No checking of models","Self-checking of models by technicians only","Engineer checking of parts of models","Engineer-led reviewing of whole of models","Full checking and QA verification of models","Full QA cross checking of model and any documentation including verfication signoff",5,0,0,1,null,"",5,0.75]
[null,"Discipline Specific Target & Current Level to be\nfilledin for all lines\nLine below provides average of section","To be determined",null,null,null,null,null,null,null,null,{"$f":"IF(K12=\"\",\"\",K12)","v":""},null,null,null,{"$f":"IF(J17=0,$Q$7+J17,J17)","v":0.75},{"$f":"IF(K17=0,$Q$7+K17,K17)","v":0.75}]
[null,null,"To be determined",null,null,null,null,null,null,null,null,"",null,null,null,{"$f":"IF(J18=0,$Q$7+J18,J18)","v":3},0.75]
[null,null,"To be determined",null,null,null,null,null,null,null,null,"",null,null,null,0.75,0.75]
[null,null,"To be determined",null,null,null,null,null,null,null,null,"",null,null,null,1,0.75]
[null,null,"To be determined",null,null,null,null,null,null,null,null,"",null,null,null,2,0.75]
[null,"Embedded Data, Schedules and Specifications","The 'I' in BIM, the ability to embed all relevant data into the model, to extract and use for all design and documentation aspects.",null,null,null,"Expand node on the left to fill in Embedded Data, Schedules and Specifications section",null,null,{"$f":"IF(ISERROR(AVERAGE(J12:J16)),0,AVERAGE(J12:J16))","v":0},{"$f":"IF(ISERROR(AVERAGE(K12:K16)),0,AVERAGE(K12:K16))","v":0},{"$f":"IF(ISERROR(AVERAGE(L12:L16)),0,AVERAGE(L12:L16))","v":0},1,null,null,2,0.75]
[null,"Visualisation","To assist with Coordination and Client/Contractor understanding of the model.","None considered","Basic screenshots taken from Model for reports etc","Model used to inform Design team through basic visualisations.","Model used to inform Design team through 3D walkthroughs.","Model used to inform Client through 3D presentations","Advanced photorealistic renderings/animations taken from Model",3,0,{"$f":"K18*M18","v":0},0.7,null,"",2,0.75]
[null,"4D (Construction Sequencing)","Construction Sequencing, or analysis from the model","None considered","Model used for simplified phasing using hide/show only","Design Model used for sequencing by internal project team only",null,"Majority of Design Model used or evolved by Contractor to inform 4D","Design model used by internal project team to inform Contractor/Client",0,0,0,0.7,null,""]
[null,"5D (Quantity and Cost)","The ability to extract cost and quantity information is truly collaborative.","Model not suitable for costing","Model used for some internal quantity information/checking","Schedules produced from Model, and Model informally shared with QS with caveat",null,"Model formally issued to QS and cross-checked by internal project team","Cost optimisation by linking cost data directly to the model",1,0,0,0.7,null,""]
[null,"Links to Engineering Analysis Tools","An essential efficiency gain","None considered",null,"One way export to or from Analysis & Design Tools",null,"Whole model linked bi-directionally to Analysis & Design Tools","Full round-tripping between Model and Analysis/Design tools, to optimise design",2,0,0,1,null,""]
[null,"Handover to Contractor","Part of the collaborative process involves sharing the model with the Contractor","Not possible","Model for design team internal use only","Informal issue of model to Contractor with disclaimer","Formal issue of Model to Contractor with disclaimer","Formal issue of Model to Contractor, with signed BIM contract","Formal handover of Model to Contractor for use in Construction and FM.",2,0,0,0.9,null,""]
["HARDER!","Use in Operations and FM","An early understanding of the downstream uses of the model is essential to gain the maximum benefits for the Client.","None considered","Employers Information Requirements not implemented",null,"Employers Information Requirements implemented but Model not used for FM",null,"Employers Information Requirements considered from outset and model used for FM",2,0,0,0.9,null,""]
[]
[]
[]
[null,null,null,null,null,null,null,null,null,null,"Scores"]
[null,null,null,null,null,null,null,null,null,null,0]
[null,null,null,null,null,null,null,null,null,null,1]
[null,null,null,null,null,null,null,null,null,null,2]
[null,null,null,null,null,null,null,null,null,null,3]
[null,null,null,null,null,null,null,null,null,null,4]
[null,null,null,null,null,null,null,null,null,null,5]

{"sheet":"BPS","index":16,"n_rows":33,"n_cols":17,"rows_kept":33,"cut":false,"hidden":true,"merged":[[5,3,5,8],[11,1,15,1]]}
[]
[null,null,{"$f":"JobNumber","v":"Copy o"},{"$f":"JOB_TITLE","v":"Project XXXXXXXXXXX"}]
[]
[]
[null,null,null,{"$f":"CONCATENATE(RIGHT(CELL(\"Filename\",D1),LEN(CELL(\"Filename\",D1))-SEARCH(\"]\",CELL(\"Filename\",D1),1))&\" BIM Maturity\")","v":"BPS BIM Maturity"},null,null,null,null,null,null,null,{"$f":"AVERAGE(L8:L11,L17:L23)","v":0},{"$f":"(SUM(L8:L11,L17:L23)/(5*SUM(M8:M23)))","v":0}]
[]
[null,null,"the Mission, Vision, Goals, and Objectives, along with management support, BIM Champions.","0\nNon-Existent","1\nInitial","2\nManaged","3\nDefined","4\nMeasured","5\nOptimizing","Target Level","Current Level","Adjusted Score","Weighting",null,null,null,0.75]
["EASY WINS","3D Coordination","Model used to inform coordination across disciplines, and during Construction","None considered",null,"Majority of Project 3D, adhoc 3D coordination","Majority of Project 3D, 3D coordination reviews held regularly & recorded",null,"Whole project 3D, all components modelled & coordinated between disciplines",3,0,{"$f":"K8*M8","v":0},0.9,null,{"$f":"IF(OFFSET(D8,0,K8)=\"\",\"Score Not Allowed - Try Again!\",\"\")","v":""},{"$f":"IF(J8=0,$Q$7+J8,J8)","v":3},{"$f":"IF(K8=0,$Q$7+K8,K8)","v":0.75}]
[null,"Drawings","BIMs should be linked to documentation, including drawings","Model not Linked to Drawings","Model partially Linked to Drawings (some 2D)","Model used for some GAs, Sections, etc","Model Used for majority of GAs, Sections etc","Model used for all GAs, Sections, etc","Models used for all GAs, Sections and Schedules",1,0,0,0.9,null,"",{"$f":"IF(J9=0,$Q$7+J9,J9)","v":1},0.75]
[null,"Level of Development","LOD represents how developed elements within a model are.  This also conveys to others, via a BEP, what it can be used for.","No LODs considered",null,"Consistent LODs for some similar elements, but other elements over/under modelled",null,"Consistent LODs for most similar elements, aligned with BIM Execution Plan","All elements in model comply with stated LODs in BEP",4,0,0,1,null,"",4,0.75]
[null,"Discipline Model Reviews","A significant step-change is required in verification and reviewing of models, as they become standard deliverables.","No checking of models","Self-checking of models by technicians only","Engineer checking of parts of models","Engineer-led reviewing of whole of models","Full checking and QA verification of models","Full QA cross checking of model and any documentation including verfication signoff",5,0,0,1,null,"",5,0.75]
[null,"Discipline Specific Target & Current Level to be\nfilledin for all lines\nLine below provides average of section","To be determined",null,null,null,null,null,null,null,null,{"$f":"IF(K12=\"\",\"\",K12)","v":""},null,null,null,{"$f":"IF(J17=0,$Q$7+J17,J17)","v":0.75},{"$f":"IF(K17=0,$Q$7+K17,K17)","v":0.75}]
[null,null,"To be determined",null,null,null,null,null,null,null,null,"",null,null,null,{"$f":"IF(J18=0,$Q$7+J18,J18)","v":3},0.75]
[null,null,"To be determined",null,null,null,null,null,null,null,null,"",null,null,null,0.75,0.75]
[null,null,"To be determined",null,null,null,null,null,null,null,null,"",null,null,null,1,0.75]
[null,null,"To be determined",null,null,null,null,null,null,null,null,"",null,null,null,2,0.75]
[null,"Embedded Data, Schedules and Specifications","The 'I' in BIM, the ability to embed all relevant data into the model, to extract and use for all design and documentation aspects.",null,null,null,"Expand node on the left to fill in Embedded Data, Schedules and Specifications section",null,null,{"$f":"IF(ISERROR(AVERAGE(J12:J16)),0,AVERAGE(J12:J16))","v":0},{"$f":"IF(ISERROR(AVERAGE(K12:K16)),0,AVERAGE(K12:K16))","v":0},{"$f":"IF(ISERROR(AVERAGE(L12:L16)),0,AVERAGE(L12:L16))","v":0},1,null,null,2,0.75]
[null,"Visualisation","To assist with Coordination and Client/Contractor understanding of the model.","None considered","Basic screenshots taken from Model for reports etc","Model used to inform Design team through basic visualisations.","Model used to inform Design team through 3D walkthroughs.","Model used to inform Client through 3D presentations","Advanced photorealistic renderings/animations taken from Model",3,0,{"$f":"K18*M18","v":0},0.7,null,"",2,0.75]
[null,"4D (Construction Sequencing)","Construction Sequencing, or analysis from the model","None considered","Model used for simplified phasing using hide/show only","Design Model used for sequencing by internal project team only",null,"Majority of Design Model used or evolved by Contractor to inform 4D","Design model used by internal project team to inform Contractor/Client",0,0,0,0.7,null,""]
[null,"5D (Quantity and Cost)","The ability to extract cost and quantity information is truly collaborative.","Model not suitable for costing","Model used for some internal quantity information/checking","Schedules produced from Model, and Model informally shared with QS with caveat",null,"Model formally issued to QS and cross-checked by internal project team","Cost optimisation by linking cost data directly to the model",1,0,0,0.7,null,""]
[null,"Links to Engineering Analysis Tools","An essential efficiency gain","None considered",null,"One way export to or from Analysis & Design Tools",null,"Whole model linked bi-directionally to Analysis & Design Tools","Full round-tripping between Model and Analysis/Design tools, to optimise design",2,0,0,1,null,""]
[null,"Handover to Contractor","Part of the collaborative process involves sharing the model with the Contractor","Not possible","Model for design team internal use only","Informal issue of model to Contractor with disclaimer","Formal issue of Model to Contractor with disclaimer","Formal issue of Model to Contractor, with signed BIM contract","Formal handover of Model to Contractor for use in Construction and FM.",2,0,0,0.9,null,""]
["HARDER!","Use in Operations and FM","An early understanding of the downstream uses of the model is essential to gain the maximum benefits for the Client.","None considered","Employers Information Requirements not implemented",null,"Employers Information Requirements implemented but Model not used for FM",null,"Employers Information Requirements considered from outset and model used for FM",2,0,0,0.9,null,""]
[]
[]
[]
[null,null,null,null,null,null,null,null,null,null,"Scores"]
[null,null,null,null,null,null,null,null,null,null,0]
[null,null,null,null,null,null,null,null,null,null,1]
[null,null,null,null,null,null,null,null,null,null,2]
[null,null,null,null,null,null,null,null,null,null,3]
[null,null,null,null,null,null,null,null,null,null,4]
[null,null,null,null,null,null,null,null,null,null,5]

{"sheet":"Retrofit","index":17,"n_rows":33,"n_cols":17,"rows_kept":33,"cut":false,"hidden":true,"merged":[[5,3,5,8],[11,1,15,1]]}
[]
[null,null,{"$f":"JobNumber","v":"Copy o"},{"$f":"JOB_TITLE","v":"Project XXXXXXXXXXX"}]
[]
[]
[null,null,null,{"$f":"CONCATENATE(RIGHT(CELL(\"Filename\",D1),LEN(CELL(\"Filename\",D1))-SEARCH(\"]\",CELL(\"Filename\",D1),1))&\" BIM Maturity\")","v":"Retrofit BIM Maturity"},null,null,null,null,null,null,null,{"$f":"AVERAGE(L8:L11,L17:L23)","v":0},{"$f":"(SUM(L8:L11,L17:L23)/(5*SUM(M8:M23)))","v":0}]
[]
[null,null,"the Mission, Vision, Goals, and Objectives, along with management support, BIM Champions.","0\nNon-Existent","1\nInitial","2\nManaged","3\nDefined","4\nMeasured","5\nOptimizing","Target Level","Current Level","Adjusted Score","Weighting",null,null,null,0.75]
["EASY WINS","3D Coordination","Model used to inform coordination across disciplines, and during Construction","None considered",null,"Majority of Project 3D, adhoc 3D coordination","Majority of Project 3D, 3D coordination reviews held regularly & recorded",null,"Whole project 3D, all components modelled & coordinated between disciplines",3,0,{"$f":"K8*M8","v":0},0.9,null,{"$f":"IF(OFFSET(D8,0,K8)=\"\",\"Score Not Allowed - Try Again!\",\"\")","v":""},{"$f":"IF(J8=0,$Q$7+J8,J8)","v":3},{"$f":"IF(K8=0,$Q$7+K8,K8)","v":0.75}]
[null,"Drawings","BIMs should be linked to documentation, including drawings","Model not Linked to Drawings","Model partially Linked to Drawings (some 2D)","Model used for some GAs, Sections, etc","Model Used for majority of GAs, Sections etc","Model used for all GAs, Sections, etc","Models used for all GAs, Sections and Schedules",1,0,0,0.9,null,"",{"$f":"IF(J9=0,$Q$7+J9,J9)","v":1},0.75]
[null,"Level of Development","LOD represents how developed elements within a model are.  This also conveys to others, via a BEP, what it can be used for.","No LODs considered",null,"Consistent LODs for some similar elements, but other elements over/under modelled",null,"Consistent LODs for most similar elements, aligned with BIM Execution Plan","All elements in model comply with stated LODs in BEP",4,0,0,1,null,"",4,0.75]
[null,"Discipline Model Reviews","A significant step-change is required in verification and reviewing of models, as they become standard deliverables.","No checking of models","Self-checking of models by technicians only","Engineer checking of parts of models","Engineer-led reviewing of whole of models","Full checking and QA verification of models","Full QA cross checking of model and any documentation including verfication signoff",5,0,0,1,null,"",5,0.75]
[null,"Discipline Specific Target & Current Level to be\nfilledin for all lines\nLine below provides average of section","To be determined",null,null,null,null,null,null,null,null,{"$f":"IF(K12=\"\",\"\",K12)","v":""},null,null,null,{"$f":"IF(J17=0,$Q$7+J17,J17)","v":0.75},{"$f":"IF(K17=0,$Q$7+K17,K17)","v":0.75}]
[null,null,"To be determined",null,null,null,null,null,null,null,null,"",null,null,null,{"$f":"IF(J18=0,$Q$7+J18,J18)","v":3},0.75]
[null,null,"To be determined",null,null,null,null,null,null,null,null,"",null,null,null,0.75,0.75]
[null,null,"To be determined",null,null,null,null,null,null,null,null,"",null,null,null,1,0.75]
[null,null,"To be determined",null,null,null,null,null,null,null,null,"",null,null,null,2,0.75]
[null,"Embedded Data, Schedules and Specifications","The 'I' in BIM, the ability to embed all relevant data into the model, to extract and use for all design and documentation aspects.",null,null,null,"Expand node on the left to fill in Embedded Data, Schedules and Specifications section",null,null,{"$f":"IF(ISERROR(AVERAGE(J12:J16)),0,AVERAGE(J12:J16))","v":0},{"$f":"IF(ISERROR(AVERAGE(K12:K16)),0,AVERAGE(K12:K16))","v":0},{"$f":"IF(ISERROR(AVERAGE(L12:L16)),0,AVERAGE(L12:L16))","v":0},1,null,null,2,0.75]
[null,"Visualisation","To assist with Coordination and Client/Contractor understanding of the model.","None considered","Basic screenshots taken from Model for reports etc","Model used to inform Design team through basic visualisations.","Model used to inform Design team through 3D walkthroughs.","Model used to inform Client through 3D presentations","Advanced photorealistic renderings/animations taken from Model",3,0,{"$f":"K18*M18","v":0},0.7,null,"",2,0.75]
[null,"4D (Construction Sequencing)","Construction Sequencing, or analysis from the model","None considered","Model used for simplified phasing using hide/show only","Design Model used for sequencing by internal project team only",null,"Majority of Design Model used or evolved by Contractor to inform 4D","Design model used by internal project team to inform Contractor/Client",0,0,0,0.7,null,""]
[null,"5D (Quantity and Cost)","The ability to extract cost and quantity information is truly collaborative.","Model not suitable for costing","Model used for some internal quantity information/checking","Schedules produced from Model, and Model informally shared with QS with caveat",null,"Model formally issued to QS and cross-checked by internal project team","Cost optimisation by linking cost data directly to the model",1,0,0,0.7,null,""]
[null,"Links to Engineering Analysis Tools","An essential efficiency gain","None considered",null,"One way export to or from Analysis & Design Tools",null,"Whole model linked bi-directionally to Analysis & Design Tools","Full round-tripping between Model and Analysis/Design tools, to optimise design",2,0,0,1,null,""]
[null,"Handover to Contractor","Part of the collaborative process involves sharing the model with the Contractor","Not possible","Model for design team internal use only","Informal issue of model to Contractor with disclaimer","Formal issue of Model to Contractor with disclaimer","Formal issue of Model to Contractor, with signed BIM contract","Formal handover of Model to Contractor for use in Construction and FM.",2,0,0,0.9,null,""]
["HARDER!","Use in Operations and FM","An early understanding of the downstream uses of the model is essential to gain the maximum benefits for the Client.","None considered","Employers Information Requirements not implemented",null,"Employers Information Requirements implemented but Model not used for FM",null,"Employers Information Requirements considered from outset and model used for FM",2,0,0,0.9,null,""]
[]
[]
[]
[null,null,null,null,null,null,null,null,null,null,"Scores"]
[null,null,null,null,null,null,null,null,null,null,0]
[null,null,null,null,null,null,null,null,null,null,1]
[null,null,null,null,null,null,null,null,null,null,2]
[null,null,null,null,null,null,null,null,null,null,3]
[null,null,null,null,null,null,null,null,null,null,4]
[null,null,null,null,null,null,null,null,null,null,5]

{"sheet":"Civils","index":18,"n_rows":33,"n_cols":17,"rows_kept":33,"cut":false,"hidden":true,"merged":[[5,3,5,8],[11,1,15,1]]}
[]
[null,null,{"$f":"JobNumber","v":"Copy o"},{"$f":"JOB_TITLE","v":"Project XXXXXXXXXXX"}]
[]
[]
[null,null,null,{"$f":"CONCATENATE(RIGHT(CELL(\"Filename\",D1),LEN(CELL(\"Filename\",D1))-SEARCH(\"]\",CELL(\"Filename\",D1),1))&\" BIM Maturity\")","v":"Civils BIM Maturity"},null,null,null,null,null,null,null,{"$f":"AVERAGE(L8:L11,L17:L23)","v":0},{"$f":"(SUM(L8:L11,L17:L23)/(5*SUM(M8:M23)))","v":0}]
[]
[null,null,"the Mission, Vision, Goals, and Objectives, along with management support, BIM Champions.","0\nNon-Existent","1\nInitial","2\nManaged","3\nDefined","4\nMeasured","5\nOptimizing","Target Level","Current Level","Adjusted Score","Weighting",null,null,null,0.75]
["EASY WINS","3D Coordination","Model used to inform coordination across disciplines, and during Construction","None considered",null,"Majority of Project 3D, adhoc 3D coordination","Majority of Project 3D, 3D coordination reviews held regularly & recorded",null,"Whole project 3D, all components modelled & coordinated between disciplines",3,0,{"$f":"K8*M8","v":0},0.9,null,{"$f":"IF(OFFSET(D8,0,K8)=\"\",\"Score Not Allowed - Try Again!\",\"\")","v":""},{"$f":"IF(J8=0,$Q$7+J8,J8)","v":3},{"$f":"IF(K8=0,$Q$7+K8,K8)","v":0.75}]
[null,"Drawings","BIMs should be linked to documentation, including drawings","Model not Linked to Drawings","Model partially Linked to Drawings (some 2D)","Model used for some GAs, Sections, etc","Model Used for majority of GAs, Sections etc","Model used for all GAs, Sections, etc","Models used for all GAs, Sections and Schedules",1,0,0,0.9,null,"",{"$f":"IF(J9=0,$Q$7+J9,J9)","v":1},0.75]
[null,"Level of Development","LOD represents how developed elements within a model are.  This also conveys to others, via a BEP, what it can be used for.","No LODs considered",null,"Consistent LODs for some similar elements, but other elements over/under modelled",null,"Consistent LODs for most similar elements, aligned with BIM Execution Plan","All elements in model comply with stated LODs in BEP",4,0,0,1,null,"",4,0.75]
[null,"Discipline Model Reviews","A significant step-change is required in verification and reviewing of models, as they become standard deliverables.","No checking of models","Self-checking of models by technicians only","Engineer checking of parts of models","Engineer-led reviewing of whole of models","Full checking and QA verification of models","Full QA cross checking of model and any documentation including verfication signoff",5,0,0,1,null,"",5,0.75]
[null,"Discipline Specific Target & Current Level to be\nfilledin for all lines\nLine below provides average of section","Metadata (schedules and specs)","None considered",null,null,"Some components",null,"All components",3,null,{"$f":"IF(K12=\"\",\"\",K12)","v":""},null,null,"",{"$f":"IF(J17=0,$Q$7+J17,J17)","v":3},{"$f":"IF(K17=0,$Q$7+K17,K17)","v":0.75}]
[null,null,"To be determined",null,null,null,null,null,null,null,null,"",null,null,null,{"$f":"IF(J18=0,$Q$7+J18,J18)","v":3},0.75]
[null,null,"To be determined",null,null,null,null,null,null,null,null,"",null,null,null,0.75,0.75]
[null,null,"To be determined",null,null,null,null,null,null,null,null,"",null,null,null,1,0.75]
[null,null,"To be determined",null,null,null,null,null,null,null,null,"",null,null,null,2,0.75]
[null,"Embedded Data, Schedules and Specifications","The 'I' in BIM, the ability to embed all relevant data into the model, to extract and use for all design and documentation aspects.",null,null,null,"Expand node on the left to fill in Embedded Data, Schedules and Specifications section",null,null,{"$f":"IF(ISERROR(AVERAGE(J12:J16)),0,AVERAGE(J12:J16))","v":3},{"$f":"IF(ISERROR(AVERAGE(K12:K16)),0,AVERAGE(K12:K16))","v":0},{"$f":"IF(ISERROR(AVERAGE(L12:L16)),0,AVERAGE(L12:L16))","v":0},1,null,null,2,0.75]
[null,"Visualisation","To assist with Coordination and Client/Contractor understanding of the model.","None considered","Basic screenshots taken from Model for reports etc","Model used to inform Design team through basic visualisations.","Model used to inform and record design decisions through 3D walkthroughs.",null,"Advanced photorealistic renderings/animations taken from Model",3,0,{"$f":"K18*M18","v":0},0.7,null,"",2,0.75]
[null,"4D (Construction Sequencing)","Construction Sequencing, or analysis from the model","None considered","Model used for simplified phasing using hide/show only","Design Model used for sequencing by internal project team only",null,"Majority of Design Model used or evolved by Contractor to inform 4D","Design model used by internal project team to inform Contractor/Client",0,0,0,0.7,null,""]
[null,"5D (Quantity and Cost)","The ability to extract cost and quantity information is truly collaborative.","Model not suitable for costing","Model used for some internal quantity information/checking","Model set up in such a way to enable take-off and informally shared with QS with caveat",null,"Model formally issued to QS and cross-checked by internal project team","Cost optimisation by linking cost data directly to the model",1,0,0,0.7,null,""]
[null,"Links to Engineering Analysis Tools","An essential efficiency gain","None considered",null,"One way export to or from Analysis & Design Tools",null,"Whole model linked bi-directionally to Analysis & Design Tools","Full round-tripping between Model and Analysis/Design tools, to optimise design",2,0,0,1,null,""]
[null,"Handover to Contractor","Part of the collaborative process involves sharing the model with the Contractor","Not possible","Model for design team internal use only","Informal issue of model to Contractor with disclaimer","Formal issue of Model to Contractor with disclaimer","Formal issue of Model to Contractor, with signed BIM contract","Formal handover of Model to Contractor for use in Construction and FM.",2,0,0,0.9,null,""]
["HARDER!","Use in Operations and FM","An early understanding of the downstream uses of the model is essential to gain the maximum benefits for the Client.","None considered","Employers Information Requirements not implemented","Opportunities investigated with client for use of model in FM","Employers Information Requirements implemented but Model not used for FM",null,"Employers Information Requirements considered from outset and model used for FM",2,0,0,0.9,null,""]
[]
[]
[]
[null,null,null,null,null,null,null,null,null,null,"Scores"]
[null,null,null,null,null,null,null,null,null,null,0]
[null,null,null,null,null,null,null,null,null,null,1]
[null,null,null,null,null,null,null,null,null,null,2]
[null,null,null,null,null,null,null,null,null,null,3]
[null,null,null,null,null,null,null,null,null,null,4]
[null,null,null,null,null,null,null,null,null,null,5]

{"sheet":"Cost Mgmt","index":19,"n_rows":33,"n_cols":17,"rows_kept":33,"cut":false,"hidden":true,"merged":[[5,3,5,8],[11,1,15,1]]}
[]
[null,null,{"$f":"JobNumber","v":"Copy o"},{"$f":"JOB_TITLE","v":"Project XXXXXXXXXXX"}]
[]
[]
[null,null,null,{"$f":"CONCATENATE(RIGHT(CELL(\"Filename\",D1),LEN(CELL(\"Filename\",D1))-SEARCH(\"]\",CELL(\"Filename\",D1),1))&\" BIM Maturity\")","v":"Cost Mgmt BIM Maturity"},null,null,null,null,null,null,null,{"$f":"AVERAGE(L8:L11,L17:L23)","v":0},{"$f":"(SUM(L8:L11,L17:L23)/(5*SUM(M8:M23)))","v":0}]
[]
[null,null,"the Mission, Vision, Goals, and Objectives, along with management support, BIM Champions.","0\nNon-Existent","1\nInitial","2\nManaged","3\nDefined","4\nMeasured","5\nOptimizing","Target Level","Current Level","Adjusted Score","Weighting",null,null,null,0.75]
["EASY WINS","3D Coordination","Model used to inform coordination across disciplines, and during Construction","None considered",null,"Majority of Project 3D, adhoc 3D coordination","Majority of Project 3D, 3D coordination reviews held regularly & recorded",null,"Whole project 3D, all components modelled & coordinated between disciplines",3,0,{"$f":"K8*M8","v":0},0.9,null,{"$f":"IF(OFFSET(D8,0,K8)=\"\",\"Score Not Allowed - Try Again!\",\"\")","v":""},{"$f":"IF(J8=0,$Q$7+J8,J8)","v":3},{"$f":"IF(K8=0,$Q$7+K8,K8)","v":0.75}]
[null,"Drawings","BIMs should be linked to documentation, including drawings","Model not Linked to Drawings","Model partially Linked to Drawings (some 2D)","Model used for some GAs, Sections, etc","Model Used for majority of GAs, Sections etc","Model used for all GAs, Sections, etc","Models used for all GAs, Sections and Schedules",1,0,0,0.9,null,"",{"$f":"IF(J9=0,$Q$7+J9,J9)","v":1},0.75]
[null,"Level of Development","LOD represents how developed elements within a model are.  This also conveys to others, via a BEP, what it can be used for.","No LODs considered",null,"Consistent LODs for some similar elements, but other elements over/under modelled",null,"Consistent LODs for most similar elements, aligned with BIM Execution Plan","All elements in model comply with stated LODs in BEP",4,0,0,1,null,"",4,0.75]
[null,"Discipline Model Reviews","A significant step-change is required in verification and reviewing of models, as they become standard deliverables.","No checking of models","Self-checking of models by technicians only","Engineer checking of parts of models","Engineer-led reviewing of whole of models","Full checking and QA verification of models","Full QA cross checking of model and any documentation including verfication signoff",5,0,0,1,null,"",5,0.75]
[null,"Discipline Specific Target & Current Level to be\nfilledin for all lines\nLine below provides average of section","To be determined",null,null,null,null,null,null,null,null,{"$f":"IF(K12=\"\",\"\",K12)","v":""},null,null,null,{"$f":"IF(J17=0,$Q$7+J17,J17)","v":0.75},{"$f":"IF(K17=0,$Q$7+K17,K17)","v":0.75}]
[null,null,"To be determined",null,null,null,null,null,null,null,null,"",null,null,null,{"$f":"IF(J18=0,$Q$7+J18,J18)","v":3},0.75]
[null,null,"To be determined",null,null,null,null,null,null,null,null,"",null,null,null,0.75,0.75]
[null,null,"To be determined",null,null,null,null,null,null,null,null,"",null,null,null,1,0.75]
[null,null,"To be determined",null,null,null,null,null,null,null,null,"",null,null,null,2,0.75]
[null,"Embedded Data, Schedules and Specifications","The 'I' in BIM, the ability to embed all relevant data into the model, to extract and use for all design and documentation aspects.",null,null,null,"Expand node on the left to fill in Embedded Data, Schedules and Specifications section",null,null,{"$f":"IF(ISERROR(AVERAGE(J12:J16)),0,AVERAGE(J12:J16))","v":0},{"$f":"IF(ISERROR(AVERAGE(K12:K16)),0,AVERAGE(K12:K16))","v":0},{"$f":"IF(ISERROR(AVERAGE(L12:L16)),0,AVERAGE(L12:L16))","v":0},1,null,null,2,0.75]
[null,"Visualisation","To assist with Coordination and Client/Contractor understanding of the model.","None considered","Basic screenshots taken from Model for reports etc","Model used to inform Design team through basic visualisations.","Model used to inform Design team through 3D walkthroughs.","Model used to inform Client through 3D presentations","Advanced photorealistic renderings/animations taken from Model",3,0,{"$f":"K18*M18","v":0},0.7,null,"",2,0.75]
[null,"4D (Construction Sequencing)","Construction Sequencing, or analysis from the model","None considered","Model used for simplified phasing using hide/show only","Design Model used for sequencing by internal project team only",null,"Majority of Design Model used or evolved by Contractor to inform 4D","Design model used by internal project team to inform Contractor/Client",0,0,0,0.7,null,""]
[null,"5D (Quantity and Cost)","The ability to extract cost and quantity information is truly collaborative.","Model not suitable for costing","Model used for some internal quantity information/checking","Schedules produced from Model, and Model informally shared with QS with caveat",null,"Model formally issued to QS and cross-checked by internal project team","Cost optimisation by linking cost data directly to the model",1,0,0,0.7,null,""]
[null,"Links to Engineering Analysis Tools","An essential efficiency gain","None considered",null,"One way export to or from Analysis & Design Tools",null,"Whole model linked bi-directionally to Analysis & Design Tools","Full round-tripping between Model and Analysis/Design tools, to optimise design",2,0,0,1,null,""]
[null,"Handover to Contractor","Part of the collaborative process involves sharing the model with the Contractor","Not possible","Model for design team internal use only","Informal issue of model to Contractor with disclaimer","Formal issue of Model to Contractor with disclaimer","Formal issue of Model to Contractor, with signed BIM contract","Formal handover of Model to Contractor for use in Construction and FM.",2,0,0,0.9,null,""]
["HARDER!","Use in Operations and FM","An early understanding of the downstream uses of the model is essential to gain the maximum benefits for the Client.","None considered","Employers Information Requirements not implemented",null,"Employers Information Requirements implemented but Model not used for FM",null,"Employers Information Requirements considered from outset and model used for FM",2,0,0,0.9,null,""]
[]
[]
[]
[null,null,null,null,null,null,null,null,null,null,"Scores"]
[null,null,null,null,null,null,null,null,null,null,0]
[null,null,null,null,null,null,null,null,null,null,1]
[null,null,null,null,null,null,null,null,null,null,2]
[null,null,null,null,null,null,null,null,null,null,3]
[null,null,null,null,null,null,null,null,null,null,4]
[null,null,null,null,null,null,null,null,null,null,5]

{"sheet":"Energy","index":20,"n_rows":33,"n_cols":17,"rows_kept":33,"cut":false,"hidden":true,"merged":[[5,3,5,8],[11,1,15,1]]}
[]
[null,null,{"$f":"JobNumber","v":"Copy o"},{"$f":"JOB_TITLE","v":"Project XXXXXXXXXXX"}]
[]
[]
[null,null,null,{"$f":"CONCATENATE(RIGHT(CELL(\"Filename\",D1),LEN(CELL(\"Filename\",D1))-SEARCH(\"]\",CELL(\"Filename\",D1),1))&\" BIM Maturity\")","v":"Energy BIM Maturity"},null,null,null,null,null,null,null,{"$f":"AVERAGE(L8:L11,L17:L23)","v":0},{"$f":"(SUM(L8:L11,L17:L23)/(5*SUM(M8:M23)))","v":0}]
[]
[null,null,"the Mission, Vision, Goals, and Objectives, along with management support, BIM Champions.","0\nNon-Existent","1\nInitial","2\nManaged","3\nDefined","4\nMeasured","5\nOptimizing","Target Level","Current Level","Adjusted Score","Weighting",null,null,null,0.75]
["EASY WINS","3D Coordination","Model used to inform coordination across disciplines, and during Construction","None considered",null,"Majority of Project 3D, adhoc 3D coordination","Majority of Project 3D, 3D coordination reviews held regularly & recorded",null,"Whole project 3D, all components modelled & coordinated between disciplines",3,0,{"$f":"K8*M8","v":0},0.9,null,{"$f":"IF(OFFSET(D8,0,K8)=\"\",\"Score Not Allowed - Try Again!\",\"\")","v":""},{"$f":"IF(J8=0,$Q$7+J8,J8)","v":3},{"$f":"IF(K8=0,$Q$7+K8,K8)","v":0.75}]
[null,"Drawings","BIMs should be linked to documentation, including drawings","Model not Linked to Drawings","Model partially Linked to Drawings (some 2D)","Model used for some GAs, Sections, etc","Model Used for majority of GAs, Sections etc","Model used for all GAs, Sections, etc","Models used for all GAs, Sections and Schedules",1,0,0,0.9,null,"",{"$f":"IF(J9=0,$Q$7+J9,J9)","v":1},0.75]
[null,"Level of Development","LOD represents how developed elements within a model are.  This also conveys to others, via a BEP, what it can be used for.","No LODs considered",null,"Consistent LODs for some similar elements, but other elements over/under modelled",null,"Consistent LODs for most similar elements, aligned with BIM Execution Plan","All elements in model comply with stated LODs in BEP",4,0,0,1,null,"",4,0.75]
[null,"Discipline Model Reviews","A significant step-change is required in verification and reviewing of models, as they become standard deliverables.","No checking of models","Self-checking of models by technicians only","Engineer checking of parts of models","Engineer-led reviewing of whole of models","Full checking and QA verification of models","Full QA cross checking of model and any documentation including verfication signoff",5,0,0,1,null,"",5,0.75]
[null,"Discipline Specific Target & Current Level to be\nfilledin for all lines\nLine below provides average of section","To be determined",null,null,null,null,null,null,null,null,{"$f":"IF(K12=\"\",\"\",K12)","v":""},null,null,null,{"$f":"IF(J17=0,$Q$7+J17,J17)","v":0.75},{"$f":"IF(K17=0,$Q$7+K17,K17)","v":0.75}]
[null,null,"To be determined",null,null,null,null,null,null,null,null,"",null,null,null,{"$f":"IF(J18=0,$Q$7+J18,J18)","v":3},0.75]
[null,null,"To be determined",null,null,null,null,null,null,null,null,"",null,null,null,0.75,0.75]
[null,null,"To be determined",null,null,null,null,null,null,null,null,"",null,null,null,1,0.75]
[null,null,"To be determined",null,null,null,null,null,null,null,null,"",null,null,null,2,0.75]
[null,"Embedded Data, Schedules and Specifications","The 'I' in BIM, the ability to embed all relevant data into the model, to extract and use for all design and documentation aspects.",null,null,null,"Expand node on the left to fill in Embedded Data, Schedules and Specifications section",null,null,{"$f":"IF(ISERROR(AVERAGE(J12:J16)),0,AVERAGE(J12:J16))","v":0},{"$f":"IF(ISERROR(AVERAGE(K12:K16)),0,AVERAGE(K12:K16))","v":0},{"$f":"IF(ISERROR(AVERAGE(L12:L16)),0,AVERAGE(L12:L16))","v":0},1,null,null,2,0.75]
[null,"Visualisation","To assist with Coordination and Client/Contractor understanding of the model.","None considered","Basic screenshots taken from Model for reports etc","Model used to inform Design team through basic visualisations.","Model used to inform Design team through 3D walkthroughs.","Model used to inform Client through 3D presentations","Advanced photorealistic renderings/animations taken from Model",3,0,{"$f":"K18*M18","v":0},0.7,null,"",2,0.75]
[null,"4D (Construction Sequencing)","Construction Sequencing, or analysis from the model","None considered","Model used for simplified phasing using hide/show only","Design Model used for sequencing by internal project team only",null,"Majority of Design Model used or evolved by Contractor to inform 4D","Design model used by internal project team to inform Contractor/Client",0,0,0,0.7,null,""]
[null,"5D (Quantity and Cost)","The ability to extract cost and quantity information is truly collaborative.","Model not suitable for costing","Model used for some internal quantity information/checking","Schedules produced from Model, and Model informally shared with QS with caveat",null,"Model formally issued to QS and cross-checked by internal project team","Cost optimisation by linking cost data directly to the model",1,0,0,0.7,null,""]
[null,"Links to Engineering Analysis Tools","An essential efficiency gain","None considered",null,"One way export to or from Analysis & Design Tools",null,"Whole model linked bi-directionally to Analysis & Design Tools","Full round-tripping between Model and Analysis/Design tools, to optimise design",2,0,0,1,null,""]
[null,"Handover to Contractor","Part of the collaborative process involves sharing the model with the Contractor","Not possible","Model for design team internal use only","Informal issue of model to Contractor with disclaimer","Formal issue of Model to Contractor with disclaimer","Formal issue of Model to Contractor, with signed BIM contract","Formal handover of Model to Contractor for use in Construction and FM.",2,0,0,0.9,null,""]
["HARDER!","Use in Operations and FM","An early understanding of the downstream uses of the model is essential to gain the maximum benefits for the Client.","None considered","Employers Information Requirements not implemented",null,"Employers Information Requirements implemented but Model not used for FM",null,"Employers Information Requirements considered from outset and model used for FM",2,0,0,0.9,null,""]
[]
[]
[]
[null,null,null,null,null,null,null,null,null,null,"Scores"]
[null,null,null,null,null,null,null,null,null,null,0]
[null,null,null,null,null,null,null,null,null,null,1]
[null,null,null,null,null,null,null,null,null,null,2]
[null,null,null,null,null,null,null,null,null,null,3]
[null,null,null,null,null,null,null,null,null,null,4]
[null,null,null,null,null,null,null,null,null,null,5]

{"sheet":"Building Physics","index":21,"n_rows":33,"n_cols":17,"rows_kept":33,"cut":false,"hidden":true,"merged":[[5,3,5,8],[11,1,15,1]]}
[]
[null,null,{"$f":"JobNumber","v":"Copy o"},{"$f":"JOB_TITLE","v":"Project XXXXXXXXXXX"}]
[]
[]
[null,null,null,{"$f":"CONCATENATE(RIGHT(CELL(\"Filename\",D1),LEN(CELL(\"Filename\",D1))-SEARCH(\"]\",CELL(\"Filename\",D1),1))&\" BIM Maturity\")","v":"Building Physics BIM Maturity"},null,null,null,null,null,null,null,{"$f":"AVERAGE(L8:L11,L17:L23)","v":0},{"$f":"(SUM(L8:L11,L17:L23)/(5*SUM(M8:M23)))","v":0}]
[]
[null,null,"the Mission, Vision, Goals, and Objectives, along with management support, BIM Champions.","0\nNon-Existent","1\nInitial","2\nManaged","3\nDefined","4\nMeasured","5\nOptimizing","Target Level","Current Level","Adjusted Score","Weighting",null,null,null,0.75]
["EASY WINS","3D Coordination","Model used to inform coordination across disciplines, and during Construction","None considered",null,"Majority of Project 3D, adhoc 3D coordination","Majority of Project 3D, 3D coordination reviews held regularly & recorded",null,"Whole project 3D, all components modelled & coordinated between disciplines",3,0,{"$f":"K8*M8","v":0},0.9,null,{"$f":"IF(OFFSET(D8,0,K8)=\"\",\"Score Not Allowed - Try Again!\",\"\")","v":""},{"$f":"IF(J8=0,$Q$7+J8,J8)","v":3},{"$f":"IF(K8=0,$Q$7+K8,K8)","v":0.75}]
[null,"Drawings","BIMs should be linked to documentation, including drawings","Model not Linked to Drawings","Model partially Linked to Drawings (some 2D)","Model used for some GAs, Sections, etc","Model Used for majority of GAs, Sections etc","Model used for all GAs, Sections, etc","Models used for all GAs, Sections and Schedules",1,0,0,0.9,null,"",{"$f":"IF(J9=0,$Q$7+J9,J9)","v":1},0.75]
[null,"Level of Development","LOD represents how developed elements within a model are.  This also conveys to others, via a BEP, what it can be used for.","No LODs considered",null,"Consistent LODs for some similar elements, but other elements over/under modelled",null,"Consistent LODs for most similar elements, aligned with BIM Execution Plan","All elements in model comply with stated LODs in BEP",4,0,0,1,null,"",4,0.75]
[null,"Discipline Model Reviews","A significant step-change is required in verification and reviewing of models, as they become standard deliverables.","No checking of models","Self-checking of models by technicians only","Engineer checking of parts of models","Engineer-led reviewing of whole of models","Full checking and QA verification of models","Full QA cross checking of model and any documentation including verfication signoff",5,0,0,1,null,"",5,0.75]
[null,"Discipline Specific Target & Current Level to be\nfilledin for all lines\nLine below provides average of section","To be determined",null,null,null,null,null,null,null,null,{"$f":"IF(K12=\"\",\"\",K12)","v":""},null,null,null,{"$f":"IF(J17=0,$Q$7+J17,J17)","v":0.75},{"$f":"IF(K17=0,$Q$7+K17,K17)","v":0.75}]
[null,null,"To be determined",null,null,null,null,null,null,null,null,"",null,null,null,{"$f":"IF(J18=0,$Q$7+J18,J18)","v":3},0.75]
[null,null,"To be determined",null,null,null,null,null,null,null,null,"",null,null,null,0.75,0.75]
[null,null,"To be determined",null,null,null,null,null,null,null,null,"",null,null,null,1,0.75]
[null,null,"To be determined",null,null,null,null,null,null,null,null,"",null,null,null,2,0.75]
[null,"Embedded Data, Schedules and Specifications","The 'I' in BIM, the ability to embed all relevant data into the model, to extract and use for all design and documentation aspects.",null,null,null,"Expand node on the left to fill in Embedded Data, Schedules and Specifications section",null,null,{"$f":"IF(ISERROR(AVERAGE(J12:J16)),0,AVERAGE(J12:J16))","v":0},{"$f":"IF(ISERROR(AVERAGE(K12:K16)),0,AVERAGE(K12:K16))","v":0},{"$f":"IF(ISERROR(AVERAGE(L12:L16)),0,AVERAGE(L12:L16))","v":0},1,null,null,2,0.75]
[null,"Visualisation","To assist with Coordination and Client/Contractor understanding of the model.","None considered","Basic screenshots taken from Model for reports etc","Model used to inform Design team through basic visualisations.","Model used to inform Design team through 3D walkthroughs.","Model used to inform Client through 3D presentations","Advanced photorealistic renderings/animations taken from Model",3,0,{"$f":"K18*M18","v":0},0.7,null,"",2,0.75]
[null,"4D (Construction Sequencing)","Construction Sequencing, or analysis from the model","None considered","Model used for simplified phasing using hide/show only","Design Model used for sequencing by internal project team only",null,"Majority of Design Model used or evolved by Contractor to inform 4D","Design model used by internal project team to inform Contractor/Client",0,0,0,0.7,null,""]
[null,"5D (Quantity and Cost)","The ability to extract cost and quantity information is truly collaborative.","Model not suitable for costing","Model used for some internal quantity information/checking","Schedules produced from Model, and Model informally shared with QS with caveat",null,"Model formally issued to QS and cross-checked by internal project team","Cost optimisation by linking cost data directly to the model",1,0,0,0.7,null,""]
[null,"Links to Engineering Analysis Tools","An essential efficiency gain","None considered",null,"One way export to or from Analysis & Design Tools",null,"Whole model linked bi-directionally to Analysis & Design Tools","Full round-tripping between Model and Analysis/Design tools, to optimise design",2,0,0,1,null,""]
[null,"Handover to Contractor","Part of the collaborative process involves sharing the model with the Contractor","Not possible","Model for design team internal use only","Informal issue of model to Contractor with disclaimer","Formal issue of Model to Contractor with disclaimer","Formal issue of Model to Contractor, with signed BIM contract","Formal handover of Model to Contractor for use in Construction and FM.",2,0,0,0.9,null,""]
["HARDER!","Use in Operations and FM","An early understanding of the downstream uses of the model is essential to gain the maximum benefits for the Client.","None considered","Employers Information Requirements not implemented",null,"Employers Information Requirements implemented but Model not used for FM",null,"Employers Information Requirements considered from outset and model used for FM",2,0,0,0.9,null,""]
[]
[]
[]
[null,null,null,null,null,null,null,null,null,null,"Scores"]
[null,null,null,null,null,null,null,null,null,null,0]
[null,null,null,null,null,null,null,null,null,null,1]
[null,null,null,null,null,null,null,null,null,null,2]
[null,null,null,null,null,null,null,null,null,null,3]
[null,null,null,null,null,null,null,null,null,null,4]
[null,null,null,null,null,null,null,null,null,null,5]

{"sheet":"Facades","index":22,"n_rows":33,"n_cols":17,"rows_kept":33,"cut":false,"hidden":true,"merged":[[5,3,5,8],[11,1,15,1]]}
[]
[null,null,{"$f":"JobNumber","v":"Copy o"},{"$f":"JOB_TITLE","v":"Project XXXXXXXXXXX"}]
[]
[]
[null,null,null,{"$f":"CONCATENATE(RIGHT(CELL(\"Filename\",D1),LEN(CELL(\"Filename\",D1))-SEARCH(\"]\",CELL(\"Filename\",D1),1))&\" BIM Maturity\")","v":"Facades BIM Maturity"},null,null,null,null,null,null,null,{"$f":"AVERAGE(L8:L11,L17:L23)","v":0},{"$f":"(SUM(L8:L11,L17:L23)/(5*SUM(M8:M23)))","v":0}]
[]
[null,null,"the Mission, Vision, Goals, and Objectives, along with management support, BIM Champions.","0\nNon-Existent","1\nInitial","2\nManaged","3\nDefined","4\nMeasured","5\nOptimizing","Target Level","Current Level","Adjusted Score","Weighting",null,null,null,0.75]
["EASY WINS","3D Coordination","Model used to inform coordination across disciplines, and during Construction","None considered",null,"Majority of Project 3D, adhoc 3D coordination","Majority of Project 3D, 3D coordination reviews held regularly & recorded",null,"Whole project 3D, all components modelled & coordinated between disciplines",3,0,{"$f":"K8*M8","v":0},0.9,null,{"$f":"IF(OFFSET(D8,0,K8)=\"\",\"Score Not Allowed - Try Again!\",\"\")","v":""},{"$f":"IF(J8=0,$Q$7+J8,J8)","v":3},{"$f":"IF(K8=0,$Q$7+K8,K8)","v":0.75}]
[null,"Drawings","BIMs should be linked to documentation, including drawings","Model not Linked to Drawings","Model partially Linked to Drawings (some 2D)","Model used for some GAs, Sections, etc","Model Used for majority of GAs, Sections etc","Model used for all GAs, Sections, etc","Models used for all GAs, Sections and Schedules",1,0,0,0.9,null,"",{"$f":"IF(J9=0,$Q$7+J9,J9)","v":1},0.75]
[null,"Level of Development","LOD represents how developed elements within a model are.  This also conveys to others, via a BEP, what it can be used for.","No LODs considered",null,"Consistent LODs for some similar elements, but other elements over/under modelled",null,"Consistent LODs for most similar elements, aligned with BIM Execution Plan","All elements in model comply with stated LODs in BEP",4,0,0,1,null,"",4,0.75]
[null,"Discipline Model Reviews","A significant step-change is required in verification and reviewing of models, as they become standard deliverables.","No checking of models","Self-checking of models by technicians only","Engineer checking of parts of models","Engineer-led reviewing of whole of models","Full checking and QA verification of models","Full QA cross checking of model and any documentation including verfication signoff",5,0,0,1,null,"",5,0.75]
[null,"Discipline Specific Target & Current Level to be\nfilledin for all lines\nLine below provides average of section","To be determined",null,null,null,null,null,null,null,null,{"$f":"IF(K12=\"\",\"\",K12)","v":""},null,null,null,{"$f":"IF(J17=0,$Q$7+J17,J17)","v":0.75},{"$f":"IF(K17=0,$Q$7+K17,K17)","v":0.75}]
[null,null,"To be determined",null,null,null,null,null,null,null,null,"",null,null,null,{"$f":"IF(J18=0,$Q$7+J18,J18)","v":3},0.75]
[null,null,"To be determined",null,null,null,null,null,null,null,null,"",null,null,null,0.75,0.75]
[null,null,"To be determined",null,null,null,null,null,null,null,null,"",null,null,null,1,0.75]
[null,null,"To be determined",null,null,null,null,null,null,null,null,"",null,null,null,2,0.75]
[null,"Embedded Data, Schedules and Specifications","The 'I' in BIM, the ability to embed all relevant data into the model, to extract and use for all design and documentation aspects.",null,null,null,"Expand node on the left to fill in Embedded Data, Schedules and Specifications section",null,null,{"$f":"IF(ISERROR(AVERAGE(J12:J16)),0,AVERAGE(J12:J16))","v":0},{"$f":"IF(ISERROR(AVERAGE(K12:K16)),0,AVERAGE(K12:K16))","v":0},{"$f":"IF(ISERROR(AVERAGE(L12:L16)),0,AVERAGE(L12:L16))","v":0},1,null,null,2,0.75]
[null,"Visualisation","To assist with Coordination and Client/Contractor understanding of the model.","None considered","Basic screenshots taken from Model for reports etc","Model used to inform Design team through basic visualisations.","Model used to inform Design team through 3D walkthroughs.","Model used to inform Client through 3D presentations","Advanced photorealistic renderings/animations taken from Model",3,0,{"$f":"K18*M18","v":0},0.7,null,"",2,0.75]
[null,"4D (Construction Sequencing)","Construction Sequencing, or analysis from the model","None considered","Model used for simplified phasing using hide/show only","Design Model used for sequencing by internal project team only",null,"Majority of Design Model used or evolved by Contractor to inform 4D","Design model used by internal project team to inform Contractor/Client",0,0,0,0.7,null,""]
[null,"5D (Quantity and Cost)","The ability to extract cost and quantity information is truly collaborative.","Model not suitable for costing","Model used for some internal quantity information/checking","Schedules produced from Model, and Model informally shared with QS with caveat",null,"Model formally issued to QS and cross-checked by internal project team","Cost optimisation by linking cost data directly to the model",1,0,0,0.7,null,""]
[null,"Links to Engineering Analysis Tools","An essential efficiency gain","None considered",null,"One way export to or from Analysis & Design Tools",null,"Whole model linked bi-directionally to Analysis & Design Tools","Full round-tripping between Model and Analysis/Design tools, to optimise design",2,0,0,1,null,""]
[null,"Handover to Contractor","Part of the collaborative process involves sharing the model with the Contractor","Not possible","Model for design team internal use only","Informal issue of model to Contractor with disclaimer","Formal issue of Model to Contractor with disclaimer","Formal issue of Model to Contractor, with signed BIM contract","Formal handover of Model to Contractor for use in Construction and FM.",2,0,0,0.9,null,""]
["HARDER!","Use in Operations and FM","An early understanding of the downstream uses of the model is essential to gain the maximum benefits for the Client.","None considered","Employers Information Requirements not implemented",null,"Employers Information Requirements implemented but Model not used for FM",null,"Employers Information Requirements considered from outset and model used for FM",2,0,0,0.9,null,""]
[]
[]
[]
[null,null,null,null,null,null,null,null,null,null,"Scores"]
[null,null,null,null,null,null,null,null,null,null,0]
[null,null,null,null,null,null,null,null,null,null,1]
[null,null,null,null,null,null,null,null,null,null,2]
[null,null,null,null,null,null,null,null,null,null,3]
[null,null,null,null,null,null,null,null,null,null,4]
[null,null,null,null,null,null,null,null,null,null,5]

{"sheet":"FM","index":23,"n_rows":33,"n_cols":17,"rows_kept":33,"cut":false,"hidden":true,"merged":[[5,3,5,8],[11,1,15,1]]}
[]
[null,null,{"$f":"JobNumber","v":"Copy o"},{"$f":"JOB_TITLE","v":"Project XXXXXXXXXXX"}]
[]
[]
[null,null,null,{"$f":"CONCATENATE(RIGHT(CELL(\"Filename\",D1),LEN(CELL(\"Filename\",D1))-SEARCH(\"]\",CELL(\"Filename\",D1),1))&\" BIM Maturity\")","v":"FM BIM Maturity"},null,null,null,null,null,null,null,{"$f":"AVERAGE(L8:L11,L17:L23)","v":0},{"$f":"(SUM(L8:L11,L17:L23)/(5*SUM(M8:M23)))","v":0}]
[]
[null,null,"the Mission, Vision, Goals, and Objectives, along with management support, BIM Champions.","0\nNon-Existent","1\nInitial","2\nManaged","3\nDefined","4\nMeasured","5\nOptimizing","Target Level","Current Level","Adjusted Score","Weighting",null,null,null,0.75]
["EASY WINS","3D Coordination","Model used to inform coordination across disciplines, and during Construction","None considered",null,"Majority of Project 3D, adhoc 3D coordination","Majority of Project 3D, 3D coordination reviews held regularly & recorded",null,"Whole project 3D, all components modelled & coordinated between disciplines",3,0,{"$f":"K8*M8","v":0},0.9,null,{"$f":"IF(OFFSET(D8,0,K8)=\"\",\"Score Not Allowed - Try Again!\",\"\")","v":""},{"$f":"IF(J8=0,$Q$7+J8,J8)","v":3},{"$f":"IF(K8=0,$Q$7+K8,K8)","v":0.75}]
[null,"Drawings","BIMs should be linked to documentation, including drawings","Model not Linked to Drawings","Model partially Linked to Drawings (some 2D)","Model used for some GAs, Sections, etc","Model Used for majority of GAs, Sections etc","Model used for all GAs, Sections, etc","Models used for all GAs, Sections and Schedules",1,0,0,0.9,null,"",{"$f":"IF(J9=0,$Q$7+J9,J9)","v":1},0.75]
[null,"Level of Development","LOD represents how developed elements within a model are.  This also conveys to others, via a BEP, what it can be used for.","No LODs considered",null,"Consistent LODs for some similar elements, but other elements over/under modelled",null,"Consistent LODs for most similar elements, aligned with BIM Execution Plan","All elements in model comply with stated LODs in BEP",4,0,0,1,null,"",4,0.75]
[null,"Discipline Model Reviews","A significant step-change is required in verification and reviewing of models, as they become standard deliverables.","No checking of models","Self-checking of models by technicians only","Engineer checking of parts of models","Engineer-led reviewing of whole of models","Full checking and QA verification of models","Full QA cross checking of model and any documentation including verfication signoff",5,0,0,1,null,"",5,0.75]
[null,"Discipline Specific Target & Current Level to be\nfilledin for all lines\nLine below provides average of section","To be determined",null,null,null,null,null,null,null,null,{"$f":"IF(K12=\"\",\"\",K12)","v":""},null,null,null,{"$f":"IF(J17=0,$Q$7+J17,J17)","v":0.75},{"$f":"IF(K17=0,$Q$7+K17,K17)","v":0.75}]
[null,null,"To be determined",null,null,null,null,null,null,null,null,"",null,null,null,{"$f":"IF(J18=0,$Q$7+J18,J18)","v":3},0.75]
[null,null,"To be determined",null,null,null,null,null,null,null,null,"",null,null,null,0.75,0.75]
[null,null,"To be determined",null,null,null,null,null,null,null,null,"",null,null,null,1,0.75]
[null,null,"To be determined",null,null,null,null,null,null,null,null,"",null,null,null,2,0.75]
[null,"Embedded Data, Schedules and Specifications","The 'I' in BIM, the ability to embed all relevant data into the model, to extract and use for all design and documentation aspects.",null,null,null,"Expand node on the left to fill in Embedded Data, Schedules and Specifications section",null,null,{"$f":"IF(ISERROR(AVERAGE(J12:J16)),0,AVERAGE(J12:J16))","v":0},{"$f":"IF(ISERROR(AVERAGE(K12:K16)),0,AVERAGE(K12:K16))","v":0},{"$f":"IF(ISERROR(AVERAGE(L12:L16)),0,AVERAGE(L12:L16))","v":0},1,null,null,2,0.75]
[null,"Visualisation","To assist with Coordination and Client/Contractor understanding of the model.","None considered","Basic screenshots taken from Model for reports etc","Model used to inform Design team through basic visualisations.","Model used to inform Design team through 3D walkthroughs.","Model used to inform Client through 3D presentations","Advanced photorealistic renderings/animations taken from Model",3,0,{"$f":"K18*M18","v":0},0.7,null,"",2,0.75]
[null,"4D (Construction Sequencing)","Construction Sequencing, or analysis from the model","None considered","Model used for simplified phasing using hide/show only","Design Model used for sequencing by internal project team only",null,"Majority of Design Model used or evolved by Contractor to inform 4D","Design model used by internal project team to inform Contractor/Client",0,0,0,0.7,null,""]
[null,"5D (Quantity and Cost)","The ability to extract cost and quantity information is truly collaborative.","Model not suitable for costing","Model used for some internal quantity information/checking","Schedules produced from Model, and Model informally shared with QS with caveat",null,"Model formally issued to QS and cross-checked by internal project team","Cost optimisation by linking cost data directly to the model",1,0,0,0.7,null,""]
[null,"Links to Engineering Analysis Tools","An essential efficiency gain","None considered",null,"One way export to or from Analysis & Design Tools",null,"Whole model linked bi-directionally to Analysis & Design Tools","Full round-tripping between Model and Analysis/Design tools, to optimise design",2,0,0,1,null,""]
[null,"Handover to Contractor","Part of the collaborative process involves sharing the model with the Contractor","Not possible","Model for design team internal use only","Informal issue of model to Contractor with disclaimer","Formal issue of Model to Contractor with disclaimer","Formal issue of Model to Contractor, with signed BIM contract","Formal handover of Model to Contractor for use in Construction and FM.",2,0,0,0.9,null,""]
["HARDER!","Use in Operations and FM","An early understanding of the downstream uses of the model is essential to gain the maximum benefits for the Client.","None considered","Employers Information Requirements not implemented",null,"Employers Information Requirements implemented but Model not used for FM",null,"Employers Information Requirements considered from outset and model used for FM",2,0,0,0.9,null,""]
[]
[]
[]
[null,null,null,null,null,null,null,null,null,null,"Scores"]
[null,null,null,null,null,null,null,null,null,null,0]
[null,null,null,null,null,null,null,null,null,null,1]
[null,null,null,null,null,null,null,null,null,null,2]
[null,null,null,null,null,null,null,null,null,null,3]
[null,null,null,null,null,null,null,null,null,null,4]
[null,null,null,null,null,null,null,null,null,null,5]

{"sheet":"Fire","index":24,"n_rows":33,"n_cols":17,"rows_kept":33,"cut":false,"hidden":true,"merged":[[5,3,5,8],[11,1,15,1]]}
[]
[null,null,{"$f":"JobNumber","v":"Copy o"},{"$f":"JOB_TITLE","v":"Project XXXXXXXXXXX"}]
[]
[]
[null,null,null,{"$f":"CONCATENATE(RIGHT(CELL(\"Filename\",D1),LEN(CELL(\"Filename\",D1))-SEARCH(\"]\",CELL(\"Filename\",D1),1))&\" BIM Maturity\")","v":"Fire BIM Maturity"},null,null,null,null,null,null,null,{"$f":"AVERAGE(L8:L11,L17:L23)","v":0},{"$f":"(SUM(L8:L11,L17:L23)/(5*SUM(M8:M23)))","v":0}]
[]
[null,null,"the Mission, Vision, Goals, and Objectives, along with management support, BIM Champions.","0\nNon-Existent","1\nInitial","2\nManaged","3\nDefined","4\nMeasured","5\nOptimizing","Target Level","Current Level","Adjusted Score","Weighting",null,null,null,0.75]
["EASY WINS","3D Coordination","Model used to inform coordination across disciplines, and during Construction","None considered",null,"Majority of Project 3D, adhoc 3D coordination","Majority of Project 3D, 3D coordination reviews held regularly & recorded",null,"Whole project 3D, all components modelled & coordinated between disciplines",3,0,{"$f":"K8*M8","v":0},0.9,null,{"$f":"IF(OFFSET(D8,0,K8)=\"\",\"Score Not Allowed - Try Again!\",\"\")","v":""},{"$f":"IF(J8=0,$Q$7+J8,J8)","v":3},{"$f":"IF(K8=0,$Q$7+K8,K8)","v":0.75}]
[null,"Drawings","BIMs should be linked to documentation, including drawings","Model not Linked to Drawings","Model partially Linked to Drawings (some 2D)","Model used for some GAs, Sections, etc","Model Used for majority of GAs, Sections etc","Model used for all GAs, Sections, etc","Models used for all GAs, Sections and Schedules",1,0,0,0.9,null,"",{"$f":"IF(J9=0,$Q$7+J9,J9)","v":1},0.75]
[null,"Level of Development","LOD represents how developed elements within a model are.  This also conveys to others, via a BEP, what it can be used for.","No LODs considered",null,"Consistent LODs for some similar elements, but other elements over/under modelled",null,"Consistent LODs for most similar elements, aligned with BIM Execution Plan","All elements in model comply with stated LODs in BEP",4,0,0,1,null,"",4,0.75]
[null,"Discipline Model Reviews","A significant step-change is required in verification and reviewing of models, as they become standard deliverables.","No checking of models","Self-checking of models by technicians only","Engineer checking of parts of models","Engineer-led reviewing of whole of models","Full checking and QA verification of models","Full QA cross checking of model and any documentation including verfication signoff",5,0,0,1,null,"",5,0.75]
[null,"Discipline Specific Target & Current Level to be\nfilledin for all lines\nLine below provides average of section","To be determined",null,null,null,null,null,null,null,null,{"$f":"IF(K12=\"\",\"\",K12)","v":""},null,null,null,{"$f":"IF(J17=0,$Q$7+J17,J17)","v":0.75},{"$f":"IF(K17=0,$Q$7+K17,K17)","v":0.75}]
[null,null,"To be determined",null,null,null,null,null,null,null,null,"",null,null,null,{"$f":"IF(J18=0,$Q$7+J18,J18)","v":3},0.75]
[null,null,"To be determined",null,null,null,null,null,null,null,null,"",null,null,null,0.75,0.75]
[null,null,"To be determined",null,null,null,null,null,null,null,null,"",null,null,null,1,0.75]
[null,null,"To be determined",null,null,null,null,null,null,null,null,"",null,null,null,2,0.75]
[null,"Embedded Data, Schedules and Specifications","The 'I' in BIM, the ability to embed all relevant data into the model, to extract and use for all design and documentation aspects.",null,null,null,"Expand node on the left to fill in Embedded Data, Schedules and Specifications section",null,null,{"$f":"IF(ISERROR(AVERAGE(J12:J16)),0,AVERAGE(J12:J16))","v":0},{"$f":"IF(ISERROR(AVERAGE(K12:K16)),0,AVERAGE(K12:K16))","v":0},{"$f":"IF(ISERROR(AVERAGE(L12:L16)),0,AVERAGE(L12:L16))","v":0},1,null,null,2,0.75]
[null,"Visualisation","To assist with Coordination and Client/Contractor understanding of the model.","None considered","Basic screenshots taken from Model for reports etc","Model used to inform Design team through basic visualisations.","Model used to inform Design team through 3D walkthroughs.","Model used to inform Client through 3D presentations","Advanced photorealistic renderings/animations taken from Model",3,0,{"$f":"K18*M18","v":0},0.7,null,"",2,0.75]
[null,"4D (Construction Sequencing)","Construction Sequencing, or analysis from the model","None considered","Model used for simplified phasing using hide/show only","Design Model used for sequencing by internal project team only",null,"Majority of Design Model used or evolved by Contractor to inform 4D","Design model used by internal project team to inform Contractor/Client",0,0,0,0.7,null,""]
[null,"5D (Quantity and Cost)","The ability to extract cost and quantity information is truly collaborative.","Model not suitable for costing","Model used for some internal quantity information/checking","Schedules produced from Model, and Model informally shared with QS with caveat",null,"Model formally issued to QS and cross-checked by internal project team","Cost optimisation by linking cost data directly to the model",1,0,0,0.7,null,""]
[null,"Links to Engineering Analysis Tools","An essential efficiency gain","None considered",null,"One way export to or from Analysis & Design Tools",null,"Whole model linked bi-directionally to Analysis & Design Tools","Full round-tripping between Model and Analysis/Design tools, to optimise design",2,0,0,1,null,""]
[null,"Handover to Contractor","Part of the collaborative process involves sharing the model with the Contractor","Not possible","Model for design team internal use only","Informal issue of model to Contractor with disclaimer","Formal issue of Model to Contractor with disclaimer","Formal issue of Model to Contractor, with signed BIM contract","Formal handover of Model to Contractor for use in Construction and FM.",2,0,0,0.9,null,""]
["HARDER!","Use in Operations and FM","An early understanding of the downstream uses of the model is essential to gain the maximum benefits for the Client.","None considered","Employers Information Requirements not implemented",null,"Employers Information Requirements implemented but Model not used for FM",null,"Employers Information Requirements considered from outset and model used for FM",2,0,0,0.9,null,""]
[]
[]
[]
[null,null,null,null,null,null,null,null,null,null,"Scores"]
[null,null,null,null,null,null,null,null,null,null,0]
[null,null,null,null,null,null,null,null,null,null,1]
[null,null,null,null,null,null,null,null,null,null,2]
[null,null,null,null,null,null,null,null,null,null,3]
[null,null,null,null,null,null,null,null,null,null,4]
[null,null,null,null,null,null,null,null,null,null,5]

{"sheet":"Geotechnics","index":25,"n_rows":33,"n_cols":17,"rows_kept":33,"cut":false,"hidden":true,"merged":[[5,3,5,8],[11,1,15,1]]}
[]
[null,null,{"$f":"JobNumber","v":"Copy o"},{"$f":"JOB_TITLE","v":"Project XXXXXXXXXXX"}]
[]
[]
[null,null,null,{"$f":"CONCATENATE(RIGHT(CELL(\"Filename\",D1),LEN(CELL(\"Filename\",D1))-SEARCH(\"]\",CELL(\"Filename\",D1),1))&\" BIM Maturity\")","v":"Geotechnics BIM Maturity"},null,null,null,null,null,null,null,{"$f":"AVERAGE(L8:L11,L17:L23)","v":0},{"$f":"(SUM(L8:L11,L17:L23)/(5*SUM(M8:M23)))","v":0}]
[]
[null,null,"the Mission, Vision, Goals, and Objectives, along with management support, BIM Champions.","0\nNon-Existent","1\nInitial","2\nManaged","3\nDefined","4\nMeasured","5\nOptimizing","Target Level","Current Level","Adjusted Score","Weighting",null,null,null,0.75]
["EASY WINS","3D Coordination","Model used to inform coordination across disciplines, and during Construction","None considered",null,"Majority of Project 3D, adhoc 3D coordination","Majority of Project 3D, 3D coordination reviews held regularly & recorded",null,"Whole project 3D, all components modelled & coordinated between disciplines",3,0,{"$f":"K8*M8","v":0},0.9,null,{"$f":"IF(OFFSET(D8,0,K8)=\"\",\"Score Not Allowed - Try Again!\",\"\")","v":""},{"$f":"IF(J8=0,$Q$7+J8,J8)","v":3},{"$f":"IF(K8=0,$Q$7+K8,K8)","v":0.75}]
[null,"Drawings","BIMs should be linked to documentation, including drawings","Model not Linked to Drawings","Model partially Linked to Drawings (some 2D)","Model used for some GAs, Sections, etc","Model Used for majority of GAs, Sections etc","Model used for all GAs, Sections, etc","Models used for all GAs, Sections and Schedules",1,0,0,0.9,null,"",{"$f":"IF(J9=0,$Q$7+J9,J9)","v":1},0.75]
[null,"Level of Development","LOD represents how developed elements within a model are.  This also conveys to others, via a BEP, what it can be used for.","No LODs considered",null,"Consistent LODs for some similar elements, but other elements over/under modelled",null,"Consistent LODs for most similar elements, aligned with BIM Execution Plan","All elements in model comply with stated LODs in BEP",4,0,0,1,null,"",4,0.75]
[null,"Discipline Model Reviews","A significant step-change is required in verification and reviewing of models, as they become standard deliverables.","No checking of models","Self-checking of models by technicians only","Engineer checking of parts of models","Engineer-led reviewing of whole of models","Full checking and QA verification of models","Full QA cross checking of model and any documentation including verfication signoff",5,0,0,1,null,"",5,0.75]
[null,"Discipline Specific Target & Current Level to be\nfilledin for all lines\nLine below provides average of section","To be determined",null,null,null,null,null,null,null,null,{"$f":"IF(K12=\"\",\"\",K12)","v":""},null,null,null,{"$f":"IF(J17=0,$Q$7+J17,J17)","v":0.75},{"$f":"IF(K17=0,$Q$7+K17,K17)","v":0.75}]
[null,null,"To be determined",null,null,null,null,null,null,null,null,"",null,null,null,{"$f":"IF(J18=0,$Q$7+J18,J18)","v":3},0.75]
[null,null,"To be determined",null,null,null,null,null,null,null,null,"",null,null,null,0.75,0.75]
[null,null,"To be determined",null,null,null,null,null,null,null,null,"",null,null,null,1,0.75]
[null,null,"To be determined",null,null,null,null,null,null,null,null,"",null,null,null,2,0.75]
[null,"Embedded Data, Schedules and Specifications","The 'I' in BIM, the ability to embed all relevant data into the model, to extract and use for all design and documentation aspects.",null,null,null,"Expand node on the left to fill in Embedded Data, Schedules and Specifications section",null,null,{"$f":"IF(ISERROR(AVERAGE(J12:J16)),0,AVERAGE(J12:J16))","v":0},{"$f":"IF(ISERROR(AVERAGE(K12:K16)),0,AVERAGE(K12:K16))","v":0},{"$f":"IF(ISERROR(AVERAGE(L12:L16)),0,AVERAGE(L12:L16))","v":0},1,null,null,2,0.75]
[null,"Visualisation","To assist with Coordination and Client/Contractor understanding of the model.","None considered","Basic screenshots taken from Model for reports etc","Model used to inform Design team through basic visualisations.","Model used to inform Design team through 3D walkthroughs.","Model used to inform Client through 3D presentations","Advanced photorealistic renderings/animations taken from Model",3,0,{"$f":"K18*M18","v":0},0.7,null,"",2,0.75]
[null,"4D (Construction Sequencing)","Construction Sequencing, or analysis from the model","None considered","Model used for simplified phasing using hide/show only","Design Model used for sequencing by internal project team only",null,"Majority of Design Model used or evolved by Contractor to inform 4D","Design model used by internal project team to inform Contractor/Client",0,0,0,0.7,null,""]
[null,"5D (Quantity and Cost)","The ability to extract cost and quantity information is truly collaborative.","Model not suitable for costing","Model used for some internal quantity information/checking","Schedules produced from Model, and Model informally shared with QS with caveat",null,"Model formally issued to QS and cross-checked by internal project team","Cost optimisation by linking cost data directly to the model",1,0,0,0.7,null,""]
[null,"Links to Engineering Analysis Tools","An essential efficiency gain","None considered",null,"One way export to or from Analysis & Design Tools",null,"Whole model linked bi-directionally to Analysis & Design Tools","Full round-tripping between Model and Analysis/Design tools, to optimise design",2,0,0,1,null,""]
[null,"Handover to Contractor","Part of the collaborative process involves sharing the model with the Contractor","Not possible","Model for design team internal use only","Informal issue of model to Contractor with disclaimer","Formal issue of Model to Contractor with disclaimer","Formal issue of Model to Contractor, with signed BIM contract","Formal handover of Model to Contractor for use in Construction and FM.",2,0,0,0.9,null,""]
["HARDER!","Use in Operations and FM","An early understanding of the downstream uses of the model is essential to gain the maximum benefits for the Client.","None considered","Employers Information Requirements not implemented",null,"Employers Information Requirements implemented but Model not used for FM",null,"Employers Information Requirements considered from outset and model used for FM",2,0,0,0.9,null,""]
[]
[]
[]
[null,null,null,null,null,null,null,null,null,null,"Scores"]
[null,null,null,null,null,null,null,null,null,null,0]
[null,null,null,null,null,null,null,null,null,null,1]
[null,null,null,null,null,null,null,null,null,null,2]
[null,null,null,null,null,null,null,null,null,null,3]
[null,null,null,null,null,null,null,null,null,null,4]
[null,null,null,null,null,null,null,null,null,null,5]

{"sheet":"Highways","index":26,"n_rows":33,"n_cols":17,"rows_kept":33,"cut":false,"hidden":true,"merged":[[5,3,5,8],[11,1,15,1]]}
[]
[null,null,{"$f":"JobNumber","v":"Copy o"},{"$f":"JOB_TITLE","v":"Project XXXXXXXXXXX"}]
[]
[]
[null,null,null,{"$f":"CONCATENATE(RIGHT(CELL(\"Filename\",D1),LEN(CELL(\"Filename\",D1))-SEARCH(\"]\",CELL(\"Filename\",D1),1))&\" BIM Maturity\")","v":"Highways BIM Maturity"},null,null,null,null,null,null,null,{"$f":"AVERAGE(L8:L11,L17:L23)","v":0},{"$f":"(SUM(L8:L11,L17:L23)/(5*SUM(M8:M23)))","v":0}]
[]
[null,null,"the Mission, Vision, Goals, and Objectives, along with management support, BIM Champions.","0\nNon-Existent","1\nInitial","2\nManaged","3\nDefined","4\nMeasured","5\nOptimizing","Target Level","Current Level","Adjusted Score","Weighting",null,null,null,0.75]
["EASY WINS","3D Coordination","Model used to inform coordination across disciplines, and during Construction","None considered",null,"Majority of Project 3D, adhoc 3D coordination","Majority of Project 3D, 3D coordination reviews held regularly & recorded",null,"Whole project 3D, all components modelled & coordinated between disciplines",3,0,{"$f":"K8*M8","v":0},0.9,null,{"$f":"IF(OFFSET(D8,0,K8)=\"\",\"Score Not Allowed - Try Again!\",\"\")","v":""},{"$f":"IF(J8=0,$Q$7+J8,J8)","v":3},{"$f":"IF(K8=0,$Q$7+K8,K8)","v":0.75}]
[null,"Drawings","BIMs should be linked to documentation, including drawings","Model not Linked to Drawings","Model partially Linked to Drawings (some 2D)","Model used for some GAs, Sections, etc","Model Used for majority of GAs, Sections etc","Model used for all GAs, Sections, etc","Models used for all GAs, Sections and Schedules",1,0,0,0.9,null,"",{"$f":"IF(J9=0,$Q$7+J9,J9)","v":1},0.75]
[null,"Level of Development","LOD represents how developed elements within a model are.  This also conveys to others, via a BEP, what it can be used for.","No LODs considered",null,"Consistent LODs for some similar elements, but other elements over/under modelled",null,"Consistent LODs for most similar elements, aligned with BIM Execution Plan","All elements in model comply with stated LODs in BEP",4,0,0,1,null,"",4,0.75]
[null,"Discipline Model Reviews","A significant step-change is required in verification and reviewing of models, as they become standard deliverables.","No checking of models","Self-checking of models by technicians only","Engineer checking of parts of models","Engineer-led reviewing of whole of models","Full checking and QA verification of models","Full QA cross checking of model and any documentation including verfication signoff",5,0,0,1,null,"",5,0.75]
[null,"Discipline Specific Target & Current Level to be\nfilledin for all lines\nLine below provides average of section","To be determined",null,null,null,null,null,null,null,null,{"$f":"IF(K12=\"\",\"\",K12)","v":""},null,null,null,{"$f":"IF(J17=0,$Q$7+J17,J17)","v":0.75},{"$f":"IF(K17=0,$Q$7+K17,K17)","v":0.75}]
[null,null,"To be determined",null,null,null,null,null,null,null,null,"",null,null,null,{"$f":"IF(J18=0,$Q$7+J18,J18)","v":3},0.75]
[null,null,"To be determined",null,null,null,null,null,null,null,null,"",null,null,null,0.75,0.75]
[null,null,"To be determined",null,null,null,null,null,null,null,null,"",null,null,null,1,0.75]
[null,null,"To be determined",null,null,null,null,null,null,null,null,"",null,null,null,2,0.75]
[null,"Embedded Data, Schedules and Specifications","The 'I' in BIM, the ability to embed all relevant data into the model, to extract and use for all design and documentation aspects.",null,null,null,"Expand node on the left to fill in Embedded Data, Schedules and Specifications section",null,null,{"$f":"IF(ISERROR(AVERAGE(J12:J16)),0,AVERAGE(J12:J16))","v":0},{"$f":"IF(ISERROR(AVERAGE(K12:K16)),0,AVERAGE(K12:K16))","v":0},{"$f":"IF(ISERROR(AVERAGE(L12:L16)),0,AVERAGE(L12:L16))","v":0},1,null,null,2,0.75]
[null,"Visualisation","To assist with Coordination and Client/Contractor understanding of the model.","None considered","Basic screenshots taken from Model for reports etc","Model used to inform Design team through basic visualisations.","Model used to inform Design team through 3D walkthroughs.","Model used to inform Client through 3D presentations","Advanced photorealistic renderings/animations taken from Model",3,0,{"$f":"K18*M18","v":0},0.7,null,"",2,0.75]
[null,"4D (Construction Sequencing)","Construction Sequencing, or analysis from the model","None considered","Model used for simplified phasing using hide/show only","Design Model used for sequencing by internal project team only",null,"Majority of Design Model used or evolved by Contractor to inform 4D","Design model used by internal project team to inform Contractor/Client",0,0,0,0.7,null,""]
[null,"5D (Quantity and Cost)","The ability to extract cost and quantity information is truly collaborative.","Model not suitable for costing","Model used for some internal quantity information/checking","Schedules produced from Model, and Model informally shared with QS with caveat",null,"Model formally issued to QS and cross-checked by internal project team","Cost optimisation by linking cost data directly to the model",1,0,0,0.7,null,""]
[null,"Links to Engineering Analysis Tools","An essential efficiency gain","None considered",null,"One way export to or from Analysis & Design Tools",null,"Whole model linked bi-directionally to Analysis & Design Tools","Full round-tripping between Model and Analysis/Design tools, to optimise design",2,0,0,1,null,""]
[null,"Handover to Contractor","Part of the collaborative process involves sharing the model with the Contractor","Not possible","Model for design team internal use only","Informal issue of model to Contractor with disclaimer","Formal issue of Model to Contractor with disclaimer","Formal issue of Model to Contractor, with signed BIM contract","Formal handover of Model to Contractor for use in Construction and FM.",2,0,0,0.9,null,""]
["HARDER!","Use in Operations and FM","An early understanding of the downstream uses of the model is essential to gain the maximum benefits for the Client.","None considered","Employers Information Requirements not implemented",null,"Employers Information Requirements implemented but Model not used for FM",null,"Employers Information Requirements considered from outset and model used for FM",2,0,0,0.9,null,""]
[]
[]
[]
[null,null,null,null,null,null,null,null,null,null,"Scores"]
[null,null,null,null,null,null,null,null,null,null,0]
[null,null,null,null,null,null,null,null,null,null,1]
[null,null,null,null,null,null,null,null,null,null,2]
[null,null,null,null,null,null,null,null,null,null,3]
[null,null,null,null,null,null,null,null,null,null,4]
[null,null,null,null,null,null,null,null,null,null,5]

{"sheet":"Lighting","index":27,"n_rows":33,"n_cols":17,"rows_kept":33,"cut":false,"hidden":true,"merged":[[5,3,5,8],[11,1,15,1]]}
[]
[null,null,{"$f":"JobNumber","v":"Copy o"},{"$f":"JOB_TITLE","v":"Project XXXXXXXXXXX"}]
[]
[]
[null,null,null,{"$f":"CONCATENATE(RIGHT(CELL(\"Filename\",D1),LEN(CELL(\"Filename\",D1))-SEARCH(\"]\",CELL(\"Filename\",D1),1))&\" BIM Maturity\")","v":"Lighting BIM Maturity"},null,null,null,null,null,null,null,{"$f":"AVERAGE(L8:L11,L17:L23)","v":0},{"$f":"(SUM(L8:L11,L17:L23)/(5*SUM(M8:M23)))","v":0}]
[]
[null,null,"the Mission, Vision, Goals, and Objectives, along with management support, BIM Champions.","0\nNon-Existent","1\nInitial","2\nManaged","3\nDefined","4\nMeasured","5\nOptimizing","Target Level","Current Level","Adjusted Score","Weighting",null,null,null,0.75]
["EASY WINS","3D Coordination","Model used to inform coordination across disciplines, and during Construction","None considered",null,"Majority of Project 3D, adhoc 3D coordination","Majority of Project 3D, 3D coordination reviews held regularly & recorded",null,"Whole project 3D, all components modelled & coordinated between disciplines",3,0,{"$f":"K8*M8","v":0},0.9,null,{"$f":"IF(OFFSET(D8,0,K8)=\"\",\"Score Not Allowed - Try Again!\",\"\")","v":""},{"$f":"IF(J8=0,$Q$7+J8,J8)","v":3},{"$f":"IF(K8=0,$Q$7+K8,K8)","v":0.75}]
[null,"Drawings","BIMs should be linked to documentation, including drawings","Model not Linked to Drawings","Model partially Linked to Drawings (some 2D)","Model used for some GAs, Sections, etc","Model Used for majority of GAs, Sections etc","Model used for all GAs, Sections, etc","Models used for all GAs, Sections and Schedules",1,0,0,0.9,null,"",{"$f":"IF(J9=0,$Q$7+J9,J9)","v":1},0.75]
[null,"Level of Development","LOD represents how developed elements within a model are.  This also conveys to others, via a BEP, what it can be used for.","No LODs considered",null,"Consistent LODs for some similar elements, but other elements over/under modelled",null,"Consistent LODs for most similar elements, aligned with BIM Execution Plan","All elements in model comply with stated LODs in BEP",4,0,0,1,null,"",4,0.75]
[null,"Discipline Model Reviews","A significant step-change is required in verification and reviewing of models, as they become standard deliverables.","No checking of models","Self-checking of models by technicians only","Engineer checking of parts of models","Engineer-led reviewing of whole of models","Full checking and QA verification of models","Full QA cross checking of model and any documentation including verfication signoff",5,0,0,1,null,"",5,0.75]
[null,"Discipline Specific Target & Current Level to be\nfilledin for all lines\nLine below provides average of section","To be determined",null,null,null,null,null,null,null,null,{"$f":"IF(K12=\"\",\"\",K12)","v":""},null,null,null,{"$f":"IF(J17=0,$Q$7+J17,J17)","v":0.75},{"$f":"IF(K17=0,$Q$7+K17,K17)","v":0.75}]
[null,null,"To be determined",null,null,null,null,null,null,null,null,"",null,null,null,{"$f":"IF(J18=0,$Q$7+J18,J18)","v":3},0.75]
[null,null,"To be determined",null,null,null,null,null,null,null,null,"",null,null,null,0.75,0.75]
[null,null,"To be determined",null,null,null,null,null,null,null,null,"",null,null,null,1,0.75]
[null,null,"To be determined",null,null,null,null,null,null,null,null,"",null,null,null,2,0.75]
[null,"Embedded Data, Schedules and Specifications","The 'I' in BIM, the ability to embed all relevant data into the model, to extract and use for all design and documentation aspects.",null,null,null,"Expand node on the left to fill in Embedded Data, Schedules and Specifications section",null,null,{"$f":"IF(ISERROR(AVERAGE(J12:J16)),0,AVERAGE(J12:J16))","v":0},{"$f":"IF(ISERROR(AVERAGE(K12:K16)),0,AVERAGE(K12:K16))","v":0},{"$f":"IF(ISERROR(AVERAGE(L12:L16)),0,AVERAGE(L12:L16))","v":0},1,null,null,2,0.75]
[null,"Visualisation","To assist with Coordination and Client/Contractor understanding of the model.","None considered","Basic screenshots taken from Model for reports etc","Model used to inform Design team through basic visualisations.","Model used to inform Design team through 3D walkthroughs.","Model used to inform Client through 3D presentations","Advanced photorealistic renderings/animations taken from Model",3,0,{"$f":"K18*M18","v":0},0.7,null,"",2,0.75]
[null,"4D (Construction Sequencing)","Construction Sequencing, or analysis from the model","None considered","Model used for simplified phasing using hide/show only","Design Model used for sequencing by internal project team only",null,"Majority of Design Model used or evolved by Contractor to inform 4D","Design model used by internal project team to inform Contractor/Client",0,0,0,0.7,null,""]
[null,"5D (Quantity and Cost)","The ability to extract cost and quantity information is truly collaborative.","Model not suitable for costing","Model used for some internal quantity information/checking","Schedules produced from Model, and Model informally shared with QS with caveat",null,"Model formally issued to QS and cross-checked by internal project team","Cost optimisation by linking cost data directly to the model",1,0,0,0.7,null,""]
[null,"Links to Engineering Analysis Tools","An essential efficiency gain","None considered",null,"One way export to or from Analysis & Design Tools",null,"Whole model linked bi-directionally to Analysis & Design Tools","Full round-tripping between Model and Analysis/Design tools, to optimise design",2,0,0,1,null,""]
[null,"Handover to Contractor","Part of the collaborative process involves sharing the model with the Contractor","Not possible","Model for design team internal use only","Informal issue of model to Contractor with disclaimer","Formal issue of Model to Contractor with disclaimer","Formal issue of Model to Contractor, with signed BIM contract","Formal handover of Model to Contractor for use in Construction and FM.",2,0,0,0.9,null,""]
["HARDER!","Use in Operations and FM","An early understanding of the downstream uses of the model is essential to gain the maximum benefits for the Client.","None considered","Employers Information Requirements not implemented",null,"Employers Information Requirements implemented but Model not used for FM",null,"Employers Information Requirements considered from outset and model used for FM",2,0,0,0.9,null,""]
[]
[]
[]
[null,null,null,null,null,null,null,null,null,null,"Scores"]
[null,null,null,null,null,null,null,null,null,null,0]
[null,null,null,null,null,null,null,null,null,null,1]
[null,null,null,null,null,null,null,null,null,null,2]
[null,null,null,null,null,null,null,null,null,null,3]
[null,null,null,null,null,null,null,null,null,null,4]
[null,null,null,null,null,null,null,null,null,null,5]

{"sheet":"Logistics","index":28,"n_rows":33,"n_cols":17,"rows_kept":33,"cut":false,"hidden":true,"merged":[[5,3,5,8],[11,1,15,1]]}
[]
[null,null,{"$f":"JobNumber","v":"Copy o"},{"$f":"JOB_TITLE","v":"Project XXXXXXXXXXX"}]
[]
[]
[null,null,null,{"$f":"CONCATENATE(RIGHT(CELL(\"Filename\",D1),LEN(CELL(\"Filename\",D1))-SEARCH(\"]\",CELL(\"Filename\",D1),1))&\" BIM Maturity\")","v":"Logistics BIM Maturity"},null,null,null,null,null,null,null,{"$f":"AVERAGE(L8:L11,L17:L23)","v":0},{"$f":"(SUM(L8:L11,L17:L23)/(5*SUM(M8:M23)))","v":0}]
[]
[null,null,"the Mission, Vision, Goals, and Objectives, along with management support, BIM Champions.","0\nNon-Existent","1\nInitial","2\nManaged","3\nDefined","4\nMeasured","5\nOptimizing","Target Level","Current Level","Adjusted Score","Weighting",null,null,null,0.75]
["EASY WINS","3D Coordination","Model used to inform coordination across disciplines, and during Construction","None considered",null,"Majority of Project 3D, adhoc 3D coordination","Majority of Project 3D, 3D coordination reviews held regularly & recorded",null,"Whole project 3D, all components modelled & coordinated between disciplines",3,0,{"$f":"K8*M8","v":0},0.9,null,{"$f":"IF(OFFSET(D8,0,K8)=\"\",\"Score Not Allowed - Try Again!\",\"\")","v":""},{"$f":"IF(J8=0,$Q$7+J8,J8)","v":3},{"$f":"IF(K8=0,$Q$7+K8,K8)","v":0.75}]
[null,"Drawings","BIMs should be linked to documentation, including drawings","Model not Linked to Drawings","Model partially Linked to Drawings (some 2D)","Model used for some GAs, Sections, etc","Model Used for majority of GAs, Sections etc","Model used for all GAs, Sections, etc","Models used for all GAs, Sections and Schedules",1,0,0,0.9,null,"",{"$f":"IF(J9=0,$Q$7+J9,J9)","v":1},0.75]
[null,"Level of Development","LOD represents how developed elements within a model are.  This also conveys to others, via a BEP, what it can be used for.","No LODs considered",null,"Consistent LODs for some similar elements, but other elements over/under modelled",null,"Consistent LODs for most similar elements, aligned with BIM Execution Plan","All elements in model comply with stated LODs in BEP",4,0,0,1,null,"",4,0.75]
[null,"Discipline Model Reviews","A significant step-change is required in verification and reviewing of models, as they become standard deliverables.","No checking of models","Self-checking of models by technicians only","Engineer checking of parts of models","Engineer-led reviewing of whole of models","Full checking and QA verification of models","Full QA cross checking of model and any documentation including verfication signoff",5,0,0,1,null,"",5,0.75]
[null,"Discipline Specific Target & Current Level to be\nfilledin for all lines\nLine below provides average of section","To be determined",null,null,null,null,null,null,null,null,{"$f":"IF(K12=\"\",\"\",K12)","v":""},null,null,null,{"$f":"IF(J17=0,$Q$7+J17,J17)","v":0.75},{"$f":"IF(K17=0,$Q$7+K17,K17)","v":0.75}]
[null,null,"To be determined",null,null,null,null,null,null,null,null,"",null,null,null,{"$f":"IF(J18=0,$Q$7+J18,J18)","v":3},0.75]
[null,null,"To be determined",null,null,null,null,null,null,null,null,"",null,null,null,0.75,0.75]
[null,null,"To be determined",null,null,null,null,null,null,null,null,"",null,null,null,1,0.75]
[null,null,"To be determined",null,null,null,null,null,null,null,null,"",null,null,null,2,0.75]
[null,"Embedded Data, Schedules and Specifications","The 'I' in BIM, the ability to embed all relevant data into the model, to extract and use for all design and documentation aspects.",null,null,null,"Expand node on the left to fill in Embedded Data, Schedules and Specifications section",null,null,{"$f":"IF(ISERROR(AVERAGE(J12:J16)),0,AVERAGE(J12:J16))","v":0},{"$f":"IF(ISERROR(AVERAGE(K12:K16)),0,AVERAGE(K12:K16))","v":0},{"$f":"IF(ISERROR(AVERAGE(L12:L16)),0,AVERAGE(L12:L16))","v":0},1,null,null,2,0.75]
[null,"Visualisation","To assist with Coordination and Client/Contractor understanding of the model.","None considered","Basic screenshots taken from Model for reports etc","Model used to inform Design team through basic visualisations.","Model used to inform Design team through 3D walkthroughs.","Model used to inform Client through 3D presentations","Advanced photorealistic renderings/animations taken from Model",3,0,{"$f":"K18*M18","v":0},0.7,null,"",2,0.75]
[null,"4D (Construction Sequencing)","Construction Sequencing, or analysis from the model","None considered","Model used for simplified phasing using hide/show only","Design Model used for sequencing by internal project team only",null,"Majority of Design Model used or evolved by Contractor to inform 4D","Design model used by internal project team to inform Contractor/Client",0,0,0,0.7,null,""]
[null,"5D (Quantity and Cost)","The ability to extract cost and quantity information is truly collaborative.","Model not suitable for costing","Model used for some internal quantity information/checking","Schedules produced from Model, and Model informally shared with QS with caveat",null,"Model formally issued to QS and cross-checked by internal project team","Cost optimisation by linking cost data directly to the model",1,0,0,0.7,null,""]
[null,"Links to Engineering Analysis Tools","An essential efficiency gain","None considered",null,"One way export to or from Analysis & Design Tools",null,"Whole model linked bi-directionally to Analysis & Design Tools","Full round-tripping between Model and Analysis/Design tools, to optimise design",2,0,0,1,null,""]
[null,"Handover to Contractor","Part of the collaborative process involves sharing the model with the Contractor","Not possible","Model for design team internal use only","Informal issue of model to Contractor with disclaimer","Formal issue of Model to Contractor with disclaimer","Formal issue of Model to Contractor, with signed BIM contract","Formal handover of Model to Contractor for use in Construction and FM.",2,0,0,0.9,null,""]
["HARDER!","Use in Operations and FM","An early understanding of the downstream uses of the model is essential to gain the maximum benefits for the Client.","None considered","Employers Information Requirements not implemented",null,"Employers Information Requirements implemented but Model not used for FM",null,"Employers Information Requirements considered from outset and model used for FM",2,0,0,0.9,null,""]
[]
[]
[]
[null,null,null,null,null,null,null,null,null,null,"Scores"]
[null,null,null,null,null,null,null,null,null,null,0]
[null,null,null,null,null,null,null,null,null,null,1]
[null,null,null,null,null,null,null,null,null,null,2]
[null,null,null,null,null,null,null,null,null,null,3]
[null,null,null,null,null,null,null,null,null,null,4]
[null,null,null,null,null,null,null,null,null,null,5]

{"sheet":"Mgmt Consulting","index":29,"n_rows":33,"n_cols":17,"rows_kept":33,"cut":false,"hidden":true,"merged":[[5,3,5,8],[11,1,15,1]]}
[]
[null,null,{"$f":"JobNumber","v":"Copy o"},{"$f":"JOB_TITLE","v":"Project XXXXXXXXXXX"}]
[]
[]
[null,null,null,{"$f":"CONCATENATE(RIGHT(CELL(\"Filename\",D1),LEN(CELL(\"Filename\",D1))-SEARCH(\"]\",CELL(\"Filename\",D1),1))&\" BIM Maturity\")","v":"Mgmt Consulting BIM Maturity"},null,null,null,null,null,null,null,{"$f":"AVERAGE(L8:L11,L17:L23)","v":0},{"$f":"(SUM(L8:L11,L17:L23)/(5*SUM(M8:M23)))","v":0}]
[]
[null,null,"the Mission, Vision, Goals, and Objectives, along with management support, BIM Champions.","0\nNon-Existent","1\nInitial","2\nManaged","3\nDefined","4\nMeasured","5\nOptimizing","Target Level","Current Level","Adjusted Score","Weighting",null,null,null,0.75]
["EASY WINS","3D Coordination","Model used to inform coordination across disciplines, and during Construction","None considered",null,"Majority of Project 3D, adhoc 3D coordination","Majority of Project 3D, 3D coordination reviews held regularly & recorded",null,"Whole project 3D, all components modelled & coordinated between disciplines",3,0,{"$f":"K8*M8","v":0},0.9,null,{"$f":"IF(OFFSET(D8,0,K8)=\"\",\"Score Not Allowed - Try Again!\",\"\")","v":""},{"$f":"IF(J8=0,$Q$7+J8,J8)","v":3},{"$f":"IF(K8=0,$Q$7+K8,K8)","v":0.75}]
[null,"Drawings","BIMs should be linked to documentation, including drawings","Model not Linked to Drawings","Model partially Linked to Drawings (some 2D)","Model used for some GAs, Sections, etc","Model Used for majority of GAs, Sections etc","Model used for all GAs, Sections, etc","Models used for all GAs, Sections and Schedules",1,0,0,0.9,null,"",{"$f":"IF(J9=0,$Q$7+J9,J9)","v":1},0.75]
[null,"Level of Development","LOD represents how developed elements within a model are.  This also conveys to others, via a BEP, what it can be used for.","No LODs considered",null,"Consistent LODs for some similar elements, but other elements over/under modelled",null,"Consistent LODs for most similar elements, aligned with BIM Execution Plan","All elements in model comply with stated LODs in BEP",4,0,0,1,null,"",4,0.75]
[null,"Discipline Model Reviews","A significant step-change is required in verification and reviewing of models, as they become standard deliverables.","No checking of models","Self-checking of models by technicians only","Engineer checking of parts of models","Engineer-led reviewing of whole of models","Full checking and QA verification of models","Full QA cross checking of model and any documentation including verfication signoff",5,0,0,1,null,"",5,0.75]
[null,"Discipline Specific Target & Current Level to be\nfilledin for all lines\nLine below provides average of section","To be determined",null,null,null,null,null,null,null,null,{"$f":"IF(K12=\"\",\"\",K12)","v":""},null,null,null,{"$f":"IF(J17=0,$Q$7+J17,J17)","v":0.75},{"$f":"IF(K17=0,$Q$7+K17,K17)","v":0.75}]
[null,null,"To be determined",null,null,null,null,null,null,null,null,"",null,null,null,{"$f":"IF(J18=0,$Q$7+J18,J18)","v":3},0.75]
[null,null,"To be determined",null,null,null,null,null,null,null,null,"",null,null,null,0.75,0.75]
[null,null,"To be determined",null,null,null,null,null,null,null,null,"",null,null,null,1,0.75]
[null,null,"To be determined",null,null,null,null,null,null,null,null,"",null,null,null,2,0.75]
[null,"Embedded Data, Schedules and Specifications","The 'I' in BIM, the ability to embed all relevant data into the model, to extract and use for all design and documentation aspects.",null,null,null,"Expand node on the left to fill in Embedded Data, Schedules and Specifications section",null,null,{"$f":"IF(ISERROR(AVERAGE(J12:J16)),0,AVERAGE(J12:J16))","v":0},{"$f":"IF(ISERROR(AVERAGE(K12:K16)),0,AVERAGE(K12:K16))","v":0},{"$f":"IF(ISERROR(AVERAGE(L12:L16)),0,AVERAGE(L12:L16))","v":0},1,null,null,2,0.75]
[null,"Visualisation","To assist with Coordination and Client/Contractor understanding of the model.","None considered","Basic screenshots taken from Model for reports etc","Model used to inform Design team through basic visualisations.","Model used to inform Design team through 3D walkthroughs.","Model used to inform Client through 3D presentations","Advanced photorealistic renderings/animations taken from Model",3,0,{"$f":"K18*M18","v":0},0.7,null,"",2,0.75]
[null,"4D (Construction Sequencing)","Construction Sequencing, or analysis from the model","None considered","Model used for simplified phasing using hide/show only","Design Model used for sequencing by internal project team only",null,"Majority of Design Model used or evolved by Contractor to inform 4D","Design model used by internal project team to inform Contractor/Client",0,0,0,0.7,null,""]
[null,"5D (Quantity and Cost)","The ability to extract cost and quantity information is truly collaborative.","Model not suitable for costing","Model used for some internal quantity information/checking","Schedules produced from Model, and Model informally shared with QS with caveat",null,"Model formally issued to QS and cross-checked by internal project team","Cost optimisation by linking cost data directly to the model",1,0,0,0.7,null,""]
[null,"Links to Engineering Analysis Tools","An essential efficiency gain","None considered",null,"One way export to or from Analysis & Design Tools",null,"Whole model linked bi-directionally to Analysis & Design Tools","Full round-tripping between Model and Analysis/Design tools, to optimise design",2,0,0,1,null,""]
[null,"Handover to Contractor","Part of the collaborative process involves sharing the model with the Contractor","Not possible","Model for design team internal use only","Informal issue of model to Contractor with disclaimer","Formal issue of Model to Contractor with disclaimer","Formal issue of Model to Contractor, with signed BIM contract","Formal handover of Model to Contractor for use in Construction and FM.",2,0,0,0.9,null,""]
["HARDER!","Use in Operations and FM","An early understanding of the downstream uses of the model is essential to gain the maximum benefits for the Client.","None considered","Employers Information Requirements not implemented",null,"Employers Information Requirements implemented but Model not used for FM",null,"Employers Information Requirements considered from outset and model used for FM",2,0,0,0.9,null,""]
[]
[]
[]
[null,null,null,null,null,null,null,null,null,null,"Scores"]
[null,null,null,null,null,null,null,null,null,null,0]
[null,null,null,null,null,null,null,null,null,null,1]
[null,null,null,null,null,null,null,null,null,null,2]
[null,null,null,null,null,null,null,null,null,null,3]
[null,null,null,null,null,null,null,null,null,null,4]
[null,null,null,null,null,null,null,null,null,null,5]

{"sheet":"Maritime","index":30,"n_rows":33,"n_cols":17,"rows_kept":33,"cut":false,"hidden":true,"merged":[[5,3,5,8],[11,1,15,1]]}
[]
[null,null,{"$f":"JobNumber","v":"Copy o"},{"$f":"JOB_TITLE","v":"Project XXXXXXXXXXX"}]
[]
[]
[null,null,null,{"$f":"CONCATENATE(RIGHT(CELL(\"Filename\",D1),LEN(CELL(\"Filename\",D1))-SEARCH(\"]\",CELL(\"Filename\",D1),1))&\" BIM Maturity\")","v":"Maritime BIM Maturity"},null,null,null,null,null,null,null,{"$f":"AVERAGE(L8:L11,L17:L23)","v":0},{"$f":"(SUM(L8:L11,L17:L23)/(5*SUM(M8:M23)))","v":0}]
[]
[null,null,"the Mission, Vision, Goals, and Objectives, along with management support, BIM Champions.","0\nNon-Existent","1\nInitial","2\nManaged","3\nDefined","4\nMeasured","5\nOptimizing","Target Level","Current Level","Adjusted Score","Weighting",null,null,null,0.75]
["EASY WINS","3D Coordination","Model used to inform coordination across disciplines, and during Construction","None considered",null,"Majority of Project 3D, adhoc 3D coordination","Majority of Project 3D, 3D coordination reviews held regularly & recorded",null,"Whole project 3D, all components modelled & coordinated between disciplines",3,0,{"$f":"K8*M8","v":0},0.9,null,{"$f":"IF(OFFSET(D8,0,K8)=\"\",\"Score Not Allowed - Try Again!\",\"\")","v":""},{"$f":"IF(J8=0,$Q$7+J8,J8)","v":3},{"$f":"IF(K8=0,$Q$7+K8,K8)","v":0.75}]
[null,"Drawings","BIMs should be linked to documentation, including drawings","Model not Linked to Drawings","Model partially Linked to Drawings (some 2D)","Model used for some GAs, Sections, etc","Model Used for majority of GAs, Sections etc","Model used for all GAs, Sections, etc","Models used for all GAs, Sections and Schedules",1,0,0,0.9,null,"",{"$f":"IF(J9=0,$Q$7+J9,J9)","v":1},0.75]
[null,"Level of Development","LOD represents how developed elements within a model are.  This also conveys to others, via a BEP, what it can be used for.","No LODs considered",null,"Consistent LODs for some similar elements, but other elements over/under modelled",null,"Consistent LODs for most similar elements, aligned with BIM Execution Plan","All elements in model comply with stated LODs in BEP",4,0,0,1,null,"",4,0.75]
[null,"Discipline Model Reviews","A significant step-change is required in verification and reviewing of models, as they become standard deliverables.","No checking of models","Self-checking of models by technicians only","Engineer checking of parts of models","Engineer-led reviewing of whole of models","Full checking and QA verification of models","Full QA cross checking of model and any documentation including verfication signoff",5,0,0,1,null,"",5,0.75]
[null,"Discipline Specific Target & Current Level to be\nfilledin for all lines\nLine below provides average of section","To be determined",null,null,null,null,null,null,null,null,{"$f":"IF(K12=\"\",\"\",K12)","v":""},null,null,null,{"$f":"IF(J17=0,$Q$7+J17,J17)","v":0.75},{"$f":"IF(K17=0,$Q$7+K17,K17)","v":0.75}]
[null,null,"To be determined",null,null,null,null,null,null,null,null,"",null,null,null,{"$f":"IF(J18=0,$Q$7+J18,J18)","v":3},0.75]
[null,null,"To be determined",null,null,null,null,null,null,null,null,"",null,null,null,0.75,0.75]
[null,null,"To be determined",null,null,null,null,null,null,null,null,"",null,null,null,1,0.75]
[null,null,"To be determined",null,null,null,null,null,null,null,null,"",null,null,null,2,0.75]
[null,"Embedded Data, Schedules and Specifications","The 'I' in BIM, the ability to embed all relevant data into the model, to extract and use for all design and documentation aspects.",null,null,null,"Expand node on the left to fill in Embedded Data, Schedules and Specifications section",null,null,{"$f":"IF(ISERROR(AVERAGE(J12:J16)),0,AVERAGE(J12:J16))","v":0},{"$f":"IF(ISERROR(AVERAGE(K12:K16)),0,AVERAGE(K12:K16))","v":0},{"$f":"IF(ISERROR(AVERAGE(L12:L16)),0,AVERAGE(L12:L16))","v":0},1,null,null,2,0.75]
[null,"Visualisation","To assist with Coordination and Client/Contractor understanding of the model.","None considered","Basic screenshots taken from Model for reports etc","Model used to inform Design team through basic visualisations.","Model used to inform Design team through 3D walkthroughs.","Model used to inform Client through 3D presentations","Advanced photorealistic renderings/animations taken from Model",3,0,{"$f":"K18*M18","v":0},0.7,null,"",2,0.75]
[null,"4D (Construction Sequencing)","Construction Sequencing, or analysis from the model","None considered","Model used for simplified phasing using hide/show only","Design Model used for sequencing by internal project team only",null,"Majority of Design Model used or evolved by Contractor to inform 4D","Design model used by internal project team to inform Contractor/Client",0,0,0,0.7,null,""]
[null,"5D (Quantity and Cost)","The ability to extract cost and quantity information is truly collaborative.","Model not suitable for costing","Model used for some internal quantity information/checking","Schedules produced from Model, and Model informally shared with QS with caveat",null,"Model formally issued to QS and cross-checked by internal project team","Cost optimisation by linking cost data directly to the model",1,0,0,0.7,null,""]
[null,"Links to Engineering Analysis Tools","An essential efficiency gain","None considered",null,"One way export to or from Analysis & Design Tools",null,"Whole model linked bi-directionally to Analysis & Design Tools","Full round-tripping between Model and Analysis/Design tools, to optimise design",2,0,0,1,null,""]
[null,"Handover to Contractor","Part of the collaborative process involves sharing the model with the Contractor","Not possible","Model for design team internal use only","Informal issue of model to Contractor with disclaimer","Formal issue of Model to Contractor with disclaimer","Formal issue of Model to Contractor, with signed BIM contract","Formal handover of Model to Contractor for use in Construction and FM.",2,0,0,0.9,null,""]
["HARDER!","Use in Operations and FM","An early understanding of the downstream uses of the model is essential to gain the maximum benefits for the Client.","None considered","Employers Information Requirements not implemented",null,"Employers Information Requirements implemented but Model not used for FM",null,"Employers Information Requirements considered from outset and model used for FM",2,0,0,0.9,null,""]
[]
[]
[]
[null,null,null,null,null,null,null,null,null,null,"Scores"]
[null,null,null,null,null,null,null,null,null,null,0]
[null,null,null,null,null,null,null,null,null,null,1]
[null,null,null,null,null,null,null,null,null,null,2]
[null,null,null,null,null,null,null,null,null,null,3]
[null,null,null,null,null,null,null,null,null,null,4]
[null,null,null,null,null,null,null,null,null,null,5]

{"sheet":"Masterplanning","index":31,"n_rows":33,"n_cols":17,"rows_kept":33,"cut":false,"hidden":true,"merged":[[5,3,5,8],[11,1,15,1]]}
[]
[null,null,{"$f":"JobNumber","v":"Copy o"},{"$f":"JOB_TITLE","v":"Project XXXXXXXXXXX"}]
[]
[]
[null,null,null,{"$f":"CONCATENATE(RIGHT(CELL(\"Filename\",D1),LEN(CELL(\"Filename\",D1))-SEARCH(\"]\",CELL(\"Filename\",D1),1))&\" BIM Maturity\")","v":"Masterplanning BIM Maturity"},null,null,null,null,null,null,null,{"$f":"AVERAGE(L8:L11,L17:L23)","v":0},{"$f":"(SUM(L8:L11,L17:L23)/(5*SUM(M8:M23)))","v":0}]
[]
[null,null,"the Mission, Vision, Goals, and Objectives, along with management support, BIM Champions.","0\nNon-Existent","1\nInitial","2\nManaged","3\nDefined","4\nMeasured","5\nOptimizing","Target Level","Current Level","Adjusted Score","Weighting",null,null,null,0.75]
["EASY WINS","3D Coordination","Model used to inform coordination across disciplines, and during Construction","None considered",null,"Majority of Project 3D, adhoc 3D coordination","Majority of Project 3D, 3D coordination reviews held regularly & recorded",null,"Whole project 3D, all components modelled & coordinated between disciplines",3,0,{"$f":"K8*M8","v":0},0.9,null,{"$f":"IF(OFFSET(D8,0,K8)=\"\",\"Score Not Allowed - Try Again!\",\"\")","v":""},{"$f":"IF(J8=0,$Q$7+J8,J8)","v":3},{"$f":"IF(K8=0,$Q$7+K8,K8)","v":0.75}]
[null,"Drawings","BIMs should be linked to documentation, including drawings","Model not Linked to Drawings","Model partially Linked to Drawings (some 2D)","Model used for some GAs, Sections, etc","Model Used for majority of GAs, Sections etc","Model used for all GAs, Sections, etc","Models used for all GAs, Sections and Schedules",1,0,0,0.9,null,"",{"$f":"IF(J9=0,$Q$7+J9,J9)","v":1},0.75]
[null,"Level of Development","LOD represents how developed elements within a model are.  This also conveys to others, via a BEP, what it can be used for.","No LODs considered",null,"Consistent LODs for some similar elements, but other elements over/under modelled",null,"Consistent LODs for most similar elements, aligned with BIM Execution Plan","All elements in model comply with stated LODs in BEP",4,0,0,1,null,"",4,0.75]
[null,"Discipline Model Reviews","A significant step-change is required in verification and reviewing of models, as they become standard deliverables.","No checking of models","Self-checking of models by technicians only","Engineer checking of parts of models","Engineer-led reviewing of whole of models","Full checking and QA verification of models","Full QA cross checking of model and any documentation including verfication signoff",5,0,0,1,null,"",5,0.75]
[null,"Discipline Specific Target & Current Level to be\nfilledin for all lines\nLine below provides average of section","To be determined",null,null,null,null,null,null,null,null,{"$f":"IF(K12=\"\",\"\",K12)","v":""},null,null,null,{"$f":"IF(J17=0,$Q$7+J17,J17)","v":0.75},{"$f":"IF(K17=0,$Q$7+K17,K17)","v":0.75}]
[null,null,"To be determined",null,null,null,null,null,null,null,null,"",null,null,null,{"$f":"IF(J18=0,$Q$7+J18,J18)","v":3},0.75]
[null,null,"To be determined",null,null,null,null,null,null,null,null,"",null,null,null,0.75,0.75]
[null,null,"To be determined",null,null,null,null,null,null,null,null,"",null,null,null,1,0.75]
[null,null,"To be determined",null,null,null,null,null,null,null,null,"",null,null,null,2,0.75]
[null,"Embedded Data, Schedules and Specifications","The 'I' in BIM, the ability to embed all relevant data into the model, to extract and use for all design and documentation aspects.",null,null,null,"Expand node on the left to fill in Embedded Data, Schedules and Specifications section",null,null,{"$f":"IF(ISERROR(AVERAGE(J12:J16)),0,AVERAGE(J12:J16))","v":0},{"$f":"IF(ISERROR(AVERAGE(K12:K16)),0,AVERAGE(K12:K16))","v":0},{"$f":"IF(ISERROR(AVERAGE(L12:L16)),0,AVERAGE(L12:L16))","v":0},1,null,null,2,0.75]
[null,"Visualisation","To assist with Coordination and Client/Contractor understanding of the model.","None considered","Basic screenshots taken from Model for reports etc","Model used to inform Design team through basic visualisations.","Model used to inform Design team through 3D walkthroughs.","Model used to inform Client through 3D presentations","Advanced photorealistic renderings/animations taken from Model",3,0,{"$f":"K18*M18","v":0},0.7,null,"",2,0.75]
[null,"4D (Construction Sequencing)","Construction Sequencing, or analysis from the model","None considered","Model used for simplified phasing using hide/show only","Design Model used for sequencing by internal project team only",null,"Majority of Design Model used or evolved by Contractor to inform 4D","Design model used by internal project team to inform Contractor/Client",0,0,0,0.7,null,""]
[null,"5D (Quantity and Cost)","The ability to extract cost and quantity information is truly collaborative.","Model not suitable for costing","Model used for some internal quantity information/checking","Schedules produced from Model, and Model informally shared with QS with caveat",null,"Model formally issued to QS and cross-checked by internal project team","Cost optimisation by linking cost data directly to the model",1,0,0,0.7,null,""]
[null,"Links to Engineering Analysis Tools","An essential efficiency gain","None considered",null,"One way export to or from Analysis & Design Tools",null,"Whole model linked bi-directionally to Analysis & Design Tools","Full round-tripping between Model and Analysis/Design tools, to optimise design",2,0,0,1,null,""]
[null,"Handover to Contractor","Part of the collaborative process involves sharing the model with the Contractor","Not possible","Model for design team internal use only","Informal issue of model to Contractor with disclaimer","Formal issue of Model to Contractor with disclaimer","Formal issue of Model to Contractor, with signed BIM contract","Formal handover of Model to Contractor for use in Construction and FM.",2,0,0,0.9,null,""]
["HARDER!","Use in Operations and FM","An early understanding of the downstream uses of the model is essential to gain the maximum benefits for the Client.","None considered","Employers Information Requirements not implemented",null,"Employers Information Requirements implemented but Model not used for FM",null,"Employers Information Requirements considered from outset and model used for FM",2,0,0,0.9,null,""]
[]
[]
[]
[null,null,null,null,null,null,null,null,null,null,"Scores"]
[null,null,null,null,null,null,null,null,null,null,0]
[null,null,null,null,null,null,null,null,null,null,1]
[null,null,null,null,null,null,null,null,null,null,2]
[null,null,null,null,null,null,null,null,null,null,3]
[null,null,null,null,null,null,null,null,null,null,4]
[null,null,null,null,null,null,null,null,null,null,5]

{"sheet":"Planning","index":32,"n_rows":33,"n_cols":17,"rows_kept":33,"cut":false,"hidden":true,"merged":[[5,3,5,8],[11,1,15,1]]}
[]
[null,null,{"$f":"JobNumber","v":"Copy o"},{"$f":"JOB_TITLE","v":"Project XXXXXXXXXXX"}]
[]
[]
[null,null,null,{"$f":"CONCATENATE(RIGHT(CELL(\"Filename\",D1),LEN(CELL(\"Filename\",D1))-SEARCH(\"]\",CELL(\"Filename\",D1),1))&\" BIM Maturity\")","v":"Planning BIM Maturity"},null,null,null,null,null,null,null,{"$f":"AVERAGE(L8:L11,L17:L23)","v":0},{"$f":"(SUM(L8:L11,L17:L23)/(5*SUM(M8:M23)))","v":0}]
[]
[null,null,"the Mission, Vision, Goals, and Objectives, along with management support, BIM Champions.","0\nNon-Existent","1\nInitial","2\nManaged","3\nDefined","4\nMeasured","5\nOptimizing","Target Level","Current Level","Adjusted Score","Weighting",null,null,null,0.75]
["EASY WINS","3D Coordination","Model used to inform coordination across disciplines, and during Construction","None considered",null,"Majority of Project 3D, adhoc 3D coordination","Majority of Project 3D, 3D coordination reviews held regularly & recorded",null,"Whole project 3D, all components modelled & coordinated between disciplines",3,0,{"$f":"K8*M8","v":0},0.9,null,{"$f":"IF(OFFSET(D8,0,K8)=\"\",\"Score Not Allowed - Try Again!\",\"\")","v":""},{"$f":"IF(J8=0,$Q$7+J8,J8)","v":3},{"$f":"IF(K8=0,$Q$7+K8,K8)","v":0.75}]
[null,"Drawings","BIMs should be linked to documentation, including drawings","Model not Linked to Drawings","Model partially Linked to Drawings (some 2D)","Model used for some GAs, Sections, etc","Model Used for majority of GAs, Sections etc","Model used for all GAs, Sections, etc","Models used for all GAs, Sections and Schedules",1,0,0,0.9,null,"",{"$f":"IF(J9=0,$Q$7+J9,J9)","v":1},0.75]
[null,"Level of Development","LOD represents how developed elements within a model are.  This also conveys to others, via a BEP, what it can be used for.","No LODs considered",null,"Consistent LODs for some similar elements, but other elements over/under modelled",null,"Consistent LODs for most similar elements, aligned with BIM Execution Plan","All elements in model comply with stated LODs in BEP",4,0,0,1,null,"",4,0.75]
[null,"Discipline Model Reviews","A significant step-change is required in verification and reviewing of models, as they become standard deliverables.","No checking of models","Self-checking of models by technicians only","Engineer checking of parts of models","Engineer-led reviewing of whole of models","Full checking and QA verification of models","Full QA cross checking of model and any documentation including verfication signoff",5,0,0,1,null,"",5,0.75]
[null,"Discipline Specific Target & Current Level to be\nfilledin for all lines\nLine below provides average of section","To be determined",null,null,null,null,null,null,null,null,{"$f":"IF(K12=\"\",\"\",K12)","v":""},null,null,null,{"$f":"IF(J17=0,$Q$7+J17,J17)","v":0.75},{"$f":"IF(K17=0,$Q$7+K17,K17)","v":0.75}]
[null,null,"To be determined",null,null,null,null,null,null,null,null,"",null,null,null,{"$f":"IF(J18=0,$Q$7+J18,J18)","v":3},0.75]
[null,null,"To be determined",null,null,null,null,null,null,null,null,"",null,null,null,0.75,0.75]
[null,null,"To be determined",null,null,null,null,null,null,null,null,"",null,null,null,1,0.75]
[null,null,"To be determined",null,null,null,null,null,null,null,null,"",null,null,null,2,0.75]
[null,"Embedded Data, Schedules and Specifications","The 'I' in BIM, the ability to embed all relevant data into the model, to extract and use for all design and documentation aspects.",null,null,null,"Expand node on the left to fill in Embedded Data, Schedules and Specifications section",null,null,{"$f":"IF(ISERROR(AVERAGE(J12:J16)),0,AVERAGE(J12:J16))","v":0},{"$f":"IF(ISERROR(AVERAGE(K12:K16)),0,AVERAGE(K12:K16))","v":0},{"$f":"IF(ISERROR(AVERAGE(L12:L16)),0,AVERAGE(L12:L16))","v":0},1,null,null,2,0.75]
[null,"Visualisation","To assist with Coordination and Client/Contractor understanding of the model.","None considered","Basic screenshots taken from Model for reports etc","Model used to inform Design team through basic visualisations.","Model used to inform Design team through 3D walkthroughs.","Model used to inform Client through 3D presentations","Advanced photorealistic renderings/animations taken from Model",3,0,{"$f":"K18*M18","v":0},0.7,null,"",2,0.75]
[null,"4D (Construction Sequencing)","Construction Sequencing, or analysis from the model","None considered","Model used for simplified phasing using hide/show only","Design Model used for sequencing by internal project team only",null,"Majority of Design Model used or evolved by Contractor to inform 4D","Design model used by internal project team to inform Contractor/Client",0,0,0,0.7,null,""]
[null,"5D (Quantity and Cost)","The ability to extract cost and quantity information is truly collaborative.","Model not suitable for costing","Model used for some internal quantity information/checking","Schedules produced from Model, and Model informally shared with QS with caveat",null,"Model formally issued to QS and cross-checked by internal project team","Cost optimisation by linking cost data directly to the model",1,0,0,0.7,null,""]
[null,"Links to Engineering Analysis Tools","An essential efficiency gain","None considered",null,"One way export to or from Analysis & Design Tools",null,"Whole model linked bi-directionally to Analysis & Design Tools","Full round-tripping between Model and Analysis/Design tools, to optimise design",2,0,0,1,null,""]
[null,"Handover to Contractor","Part of the collaborative process involves sharing the model with the Contractor","Not possible","Model for design team internal use only","Informal issue of model to Contractor with disclaimer","Formal issue of Model to Contractor with disclaimer","Formal issue of Model to Contractor, with signed BIM contract","Formal handover of Model to Contractor for use in Construction and FM.",2,0,0,0.9,null,""]
["HARDER!","Use in Operations and FM","An early understanding of the downstream uses of the model is essential to gain the maximum benefits for the Client.","None considered","Employers Information Requirements not implemented",null,"Employers Information Requirements implemented but Model not used for FM",null,"Employers Information Requirements considered from outset and model used for FM",2,0,0,0.9,null,""]
[]
[]
[]
[null,null,null,null,null,null,null,null,null,null,"Scores"]
[null,null,null,null,null,null,null,null,null,null,0]
[null,null,null,null,null,null,null,null,null,null,1]
[null,null,null,null,null,null,null,null,null,null,2]
[null,null,null,null,null,null,null,null,null,null,3]
[null,null,null,null,null,null,null,null,null,null,4]
[null,null,null,null,null,null,null,null,null,null,5]

{"sheet":"Rail","index":33,"n_rows":33,"n_cols":17,"rows_kept":33,"cut":false,"hidden":true,"merged":[[5,3,5,8],[11,1,15,1]]}
[]
[null,null,{"$f":"JobNumber","v":"Copy o"},{"$f":"JOB_TITLE","v":"Project XXXXXXXXXXX"}]
[]
[]
[null,null,null,{"$f":"CONCATENATE(RIGHT(CELL(\"Filename\",D1),LEN(CELL(\"Filename\",D1))-SEARCH(\"]\",CELL(\"Filename\",D1),1))&\" BIM Maturity\")","v":"Rail BIM Maturity"},null,null,null,null,null,null,null,{"$f":"AVERAGE(L8:L11,L17:L23)","v":0},{"$f":"(SUM(L8:L11,L17:L23)/(5*SUM(M8:M23)))","v":0}]
[]
[null,null,"the Mission, Vision, Goals, and Objectives, along with management support, BIM Champions.","0\nNon-Existent","1\nInitial","2\nManaged","3\nDefined","4\nMeasured","5\nOptimizing","Target Level","Current Level","Adjusted Score","Weighting",null,null,null,0.75]
["EASY WINS","3D Coordination","Model used to inform coordination across disciplines, and during Construction","None considered",null,"Majority of Project 3D, adhoc 3D coordination","Majority of Project 3D, 3D coordination reviews held regularly & recorded",null,"Whole project 3D, all components modelled & coordinated between disciplines",3,0,{"$f":"K8*M8","v":0},0.9,null,{"$f":"IF(OFFSET(D8,0,K8)=\"\",\"Score Not Allowed - Try Again!\",\"\")","v":""},{"$f":"IF(J8=0,$Q$7+J8,J8)","v":3},{"$f":"IF(K8=0,$Q$7+K8,K8)","v":0.75}]
[null,"Drawings","BIMs should be linked to documentation, including drawings","Model not Linked to Drawings","Model partially Linked to Drawings (some 2D)","Model used for some GAs, Sections, etc","Model Used for majority of GAs, Sections etc","Model used for all GAs, Sections, etc","Models used for all GAs, Sections and Schedules",1,0,0,0.9,null,"",{"$f":"IF(J9=0,$Q$7+J9,J9)","v":1},0.75]
[null,"Level of Development","LOD represents how developed elements within a model are.  This also conveys to others, via a BEP, what it can be used for.","No LODs considered",null,"Consistent LODs for some similar elements, but other elements over/under modelled",null,"Consistent LODs for most similar elements, aligned with BIM Execution Plan","All elements in model comply with stated LODs in BEP",4,0,0,1,null,"",4,0.75]
[null,"Discipline Model Reviews","A significant step-change is required in verification and reviewing of models, as they become standard deliverables.","No checking of models","Self-checking of models by technicians only","Engineer checking of parts of models","Engineer-led reviewing of whole of models","Full checking and QA verification of models","Full QA cross checking of model and any documentation including verfication signoff",5,0,0,1,null,"",5,0.75]
[null,"Discipline Specific Target & Current Level to be\nfilledin for all lines\nLine below provides average of section","To be determined",null,null,null,null,null,null,null,null,{"$f":"IF(K12=\"\",\"\",K12)","v":""},null,null,null,{"$f":"IF(J17=0,$Q$7+J17,J17)","v":0.75},{"$f":"IF(K17=0,$Q$7+K17,K17)","v":0.75}]
[null,null,"To be determined",null,null,null,null,null,null,null,null,"",null,null,null,{"$f":"IF(J18=0,$Q$7+J18,J18)","v":3},0.75]
[null,null,"To be determined",null,null,null,null,null,null,null,null,"",null,null,null,0.75,0.75]
[null,null,"To be determined",null,null,null,null,null,null,null,null,"",null,null,null,1,0.75]
[null,null,"To be determined",null,null,null,null,null,null,null,null,"",null,null,null,2,0.75]
[null,"Embedded Data, Schedules and Specifications","The 'I' in BIM, the ability to embed all relevant data into the model, to extract and use for all design and documentation aspects.",null,null,null,"Expand node on the left to fill in Embedded Data, Schedules and Specifications section",null,null,{"$f":"IF(ISERROR(AVERAGE(J12:J16)),0,AVERAGE(J12:J16))","v":0},{"$f":"IF(ISERROR(AVERAGE(K12:K16)),0,AVERAGE(K12:K16))","v":0},{"$f":"IF(ISERROR(AVERAGE(L12:L16)),0,AVERAGE(L12:L16))","v":0},1,null,null,2,0.75]
[null,"Visualisation","To assist with Coordination and Client/Contractor understanding of the model.","None considered","Basic screenshots taken from Model for reports etc","Model used to inform Design team through basic visualisations.","Model used to inform Design team through 3D walkthroughs.","Model used to inform Client through 3D presentations","Advanced photorealistic renderings/animations taken from Model",3,0,{"$f":"K18*M18","v":0},0.7,null,"",2,0.75]
[null,"4D (Construction Sequencing)","Construction Sequencing, or analysis from the model","None considered","Model used for simplified phasing using hide/show only","Design Model used for sequencing by internal project team only",null,"Majority of Design Model used or evolved by Contractor to inform 4D","Design model used by internal project team to inform Contractor/Client",0,0,0,0.7,null,""]
[null,"5D (Quantity and Cost)","The ability to extract cost and quantity information is truly collaborative.","Model not suitable for costing","Model used for some internal quantity information/checking","Schedules produced from Model, and Model informally shared with QS with caveat",null,"Model formally issued to QS and cross-checked by internal project team","Cost optimisation by linking cost data directly to the model",1,0,0,0.7,null,""]
[null,"Links to Engineering Analysis Tools","An essential efficiency gain","None considered",null,"One way export to or from Analysis & Design Tools",null,"Whole model linked bi-directionally to Analysis & Design Tools","Full round-tripping between Model and Analysis/Design tools, to optimise design",2,0,0,1,null,""]
[null,"Handover to Contractor","Part of the collaborative process involves sharing the model with the Contractor","Not possible","Model for design team internal use only","Informal issue of model to Contractor with disclaimer","Formal issue of Model to Contractor with disclaimer","Formal issue of Model to Contractor, with signed BIM contract","Formal handover of Model to Contractor for use in Construction and FM.",2,0,0,0.9,null,""]
["HARDER!","Use in Operations and FM","An early understanding of the downstream uses of the model is essential to gain the maximum benefits for the Client.","None considered","Employers Information Requirements not implemented",null,"Employers Information Requirements implemented but Model not used for FM",null,"Employers Information Requirements considered from outset and model used for FM",2,0,0,0.9,null,""]
[]
[]
[]
[null,null,null,null,null,null,null,null,null,null,"Scores"]
[null,null,null,null,null,null,null,null,null,null,0]
[null,null,null,null,null,null,null,null,null,null,1]
[null,null,null,null,null,null,null,null,null,null,2]
[null,null,null,null,null,null,null,null,null,null,3]
[null,null,null,null,null,null,null,null,null,null,4]
[null,null,null,null,null,null,null,null,null,null,5]

{"sheet":"Security","index":34,"n_rows":33,"n_cols":17,"rows_kept":33,"cut":false,"hidden":true,"merged":[[5,3,5,8],[11,1,15,1]]}
[]
[null,null,{"$f":"JobNumber","v":"Copy o"},{"$f":"JOB_TITLE","v":"Project XXXXXXXXXXX"}]
[]
[]
[null,null,null,{"$f":"CONCATENATE(RIGHT(CELL(\"Filename\",D1),LEN(CELL(\"Filename\",D1))-SEARCH(\"]\",CELL(\"Filename\",D1),1))&\" BIM Maturity\")","v":"Security BIM Maturity"},null,null,null,null,null,null,null,{"$f":"AVERAGE(L8:L11,L17:L23)","v":0},{"$f":"(SUM(L8:L11,L17:L23)/(5*SUM(M8:M23)))","v":0}]
[]
[null,null,"the Mission, Vision, Goals, and Objectives, along with management support, BIM Champions.","0\nNon-Existent","1\nInitial","2\nManaged","3\nDefined","4\nMeasured","5\nOptimizing","Target Level","Current Level","Adjusted Score","Weighting",null,null,null,0.75]
["EASY WINS","3D Coordination","Model used to inform coordination across disciplines, and during Construction","None considered",null,"Majority of Project 3D, adhoc 3D coordination","Majority of Project 3D, 3D coordination reviews held regularly & recorded",null,"Whole project 3D, all components modelled & coordinated between disciplines",3,0,{"$f":"K8*M8","v":0},0.9,null,{"$f":"IF(OFFSET(D8,0,K8)=\"\",\"Score Not Allowed - Try Again!\",\"\")","v":""},{"$f":"IF(J8=0,$Q$7+J8,J8)","v":3},{"$f":"IF(K8=0,$Q$7+K8,K8)","v":0.75}]
[null,"Drawings","BIMs should be linked to documentation, including drawings","Model not Linked to Drawings","Model partially Linked to Drawings (some 2D)","Model used for some GAs, Sections, etc","Model Used for majority of GAs, Sections etc","Model used for all GAs, Sections, etc","Models used for all GAs, Sections and Schedules",1,0,0,0.9,null,"",{"$f":"IF(J9=0,$Q$7+J9,J9)","v":1},0.75]
[null,"Level of Development","LOD represents how developed elements within a model are.  This also conveys to others, via a BEP, what it can be used for.","No LODs considered",null,"Consistent LODs for some similar elements, but other elements over/under modelled",null,"Consistent LODs for most similar elements, aligned with BIM Execution Plan","All elements in model comply with stated LODs in BEP",4,0,0,1,null,"",4,0.75]
[null,"Discipline Model Reviews","A significant step-change is required in verification and reviewing of models, as they become standard deliverables.","No checking of models","Self-checking of models by technicians only","Engineer checking of parts of models","Engineer-led reviewing of whole of models","Full checking and QA verification of models","Full QA cross checking of model and any documentation including verfication signoff",5,0,0,1,null,"",5,0.75]
[null,"Discipline Specific Target & Current Level to be\nfilledin for all lines\nLine below provides average of section","To be determined",null,null,null,null,null,null,null,null,{"$f":"IF(K12=\"\",\"\",K12)","v":""},null,null,null,{"$f":"IF(J17=0,$Q$7+J17,J17)","v":0.75},{"$f":"IF(K17=0,$Q$7+K17,K17)","v":0.75}]
[null,null,"To be determined",null,null,null,null,null,null,null,null,"",null,null,null,{"$f":"IF(J18=0,$Q$7+J18,J18)","v":3},0.75]
[null,null,"To be determined",null,null,null,null,null,null,null,null,"",null,null,null,0.75,0.75]
[null,null,"To be determined",null,null,null,null,null,null,null,null,"",null,null,null,1,0.75]
[null,null,"To be determined",null,null,null,null,null,null,null,null,"",null,null,null,2,0.75]
[null,"Embedded Data, Schedules and Specifications","The 'I' in BIM, the ability to embed all relevant data into the model, to extract and use for all design and documentation aspects.",null,null,null,"Expand node on the left to fill in Embedded Data, Schedules and Specifications section",null,null,{"$f":"IF(ISERROR(AVERAGE(J12:J16)),0,AVERAGE(J12:J16))","v":0},{"$f":"IF(ISERROR(AVERAGE(K12:K16)),0,AVERAGE(K12:K16))","v":0},{"$f":"IF(ISERROR(AVERAGE(L12:L16)),0,AVERAGE(L12:L16))","v":0},1,null,null,2,0.75]
[null,"Visualisation","To assist with Coordination and Client/Contractor understanding of the model.","None considered","Basic screenshots taken from Model for reports etc","Model used to inform Design team through basic visualisations.","Model used to inform Design team through 3D walkthroughs.","Model used to inform Client through 3D presentations","Advanced photorealistic renderings/animations taken from Model",3,0,{"$f":"K18*M18","v":0},0.7,null,"",2,0.75]
[null,"4D (Construction Sequencing)","Construction Sequencing, or analysis from the model","None considered","Model used for simplified phasing using hide/show only","Design Model used for sequencing by internal project team only",null,"Majority of Design Model used or evolved by Contractor to inform 4D","Design model used by internal project team to inform Contractor/Client",0,0,0,0.7,null,""]
[null,"5D (Quantity and Cost)","The ability to extract cost and quantity information is truly collaborative.","Model not suitable for costing","Model used for some internal quantity information/checking","Schedules produced from Model, and Model informally shared with QS with caveat",null,"Model formally issued to QS and cross-checked by internal project team","Cost optimisation by linking cost data directly to the model",1,0,0,0.7,null,""]
[null,"Links to Engineering Analysis Tools","An essential efficiency gain","None considered",null,"One way export to or from Analysis & Design Tools",null,"Whole model linked bi-directionally to Analysis & Design Tools","Full round-tripping between Model and Analysis/Design tools, to optimise design",2,0,0,1,null,""]
[null,"Handover to Contractor","Part of the collaborative process involves sharing the model with the Contractor","Not possible","Model for design team internal use only","Informal issue of model to Contractor with disclaimer","Formal issue of Model to Contractor with disclaimer","Formal issue of Model to Contractor, with signed BIM contract","Formal handover of Model to Contractor for use in Construction and FM.",2,0,0,0.9,null,""]
["HARDER!","Use in Operations and FM","An early understanding of the downstream uses of the model is essential to gain the maximum benefits for the Client.","None considered","Employers Information Requirements not implemented",null,"Employers Information Requirements implemented but Model not used for FM",null,"Employers Information Requirements considered from outset and model used for FM",2,0,0,0.9,null,""]
[]
[]
[]
[null,null,null,null,null,null,null,null,null,null,"Scores"]
[null,null,null,null,null,null,null,null,null,null,0]
[null,null,null,null,null,null,null,null,null,null,1]
[null,null,null,null,null,null,null,null,null,null,2]
[null,null,null,null,null,null,null,null,null,null,3]
[null,null,null,null,null,null,null,null,null,null,4]
[null,null,null,null,null,null,null,null,null,null,5]

{"sheet":"Tunnels","index":35,"n_rows":33,"n_cols":17,"rows_kept":33,"cut":false,"hidden":true,"merged":[[5,3,5,8],[11,1,15,1]]}
[]
[null,null,{"$f":"JobNumber","v":"Copy o"},{"$f":"JOB_TITLE","v":"Project XXXXXXXXXXX"}]
[]
[]
[null,null,null,{"$f":"CONCATENATE(RIGHT(CELL(\"Filename\",D1),LEN(CELL(\"Filename\",D1))-SEARCH(\"]\",CELL(\"Filename\",D1),1))&\" BIM Maturity\")","v":"Tunnels BIM Maturity"},null,null,null,null,null,null,null,{"$f":"AVERAGE(L8:L11,L17:L23)","v":0},{"$f":"(SUM(L8:L11,L17:L23)/(5*SUM(M8:M23)))","v":0}]
[]
[null,null,"the Mission, Vision, Goals, and Objectives, along with management support, BIM Champions.","0\nNon-Existent","1\nInitial","2\nManaged","3\nDefined","4\nMeasured","5\nOptimizing","Target Level","Current Level","Adjusted Score","Weighting",null,null,null,0.75]
["EASY WINS","3D Coordination","Model used to inform coordination across disciplines, and during Construction","None considered",null,"Majority of Project 3D, adhoc 3D coordination","Majority of Project 3D, 3D coordination reviews held regularly & recorded",null,"Whole project 3D, all components modelled & coordinated between disciplines",3,0,{"$f":"K8*M8","v":0},0.9,null,{"$f":"IF(OFFSET(D8,0,K8)=\"\",\"Score Not Allowed - Try Again!\",\"\")","v":""},{"$f":"IF(J8=0,$Q$7+J8,J8)","v":3},{"$f":"IF(K8=0,$Q$7+K8,K8)","v":0.75}]
[null,"Drawings","BIMs should be linked to documentation, including drawings","Model not Linked to Drawings","Model partially Linked to Drawings (some 2D)","Model used for some GAs, Sections, etc","Model Used for majority of GAs, Sections etc","Model used for all GAs, Sections, etc","Models used for all GAs, Sections and Schedules",1,0,0,0.9,null,"",{"$f":"IF(J9=0,$Q$7+J9,J9)","v":1},0.75]
[null,"Level of Development","LOD represents how developed elements within a model are.  This also conveys to others, via a BEP, what it can be used for.","No LODs considered",null,"Consistent LODs for some similar elements, but other elements over/under modelled",null,"Consistent LODs for most similar elements, aligned with BIM Execution Plan","All elements in model comply with stated LODs in BEP",4,0,0,1,null,"",4,0.75]
[null,"Discipline Model Reviews","A significant step-change is required in verification and reviewing of models, as they become standard deliverables.","No checking of models","Self-checking of models by technicians only","Engineer checking of parts of models","Engineer-led reviewing of whole of models","Full checking and QA verification of models","Full QA cross checking of model and any documentation including verfication signoff",5,0,0,1,null,"",5,0.75]
[null,"Discipline Specific Target & Current Level to be\nfilledin for all lines\nLine below provides average of section","To be determined",null,null,null,null,null,null,null,null,{"$f":"IF(K12=\"\",\"\",K12)","v":""},null,null,null,{"$f":"IF(J17=0,$Q$7+J17,J17)","v":0.75},{"$f":"IF(K17=0,$Q$7+K17,K17)","v":0.75}]
[null,null,"To be determined",null,null,null,null,null,null,null,null,"",null,null,null,{"$f":"IF(J18=0,$Q$7+J18,J18)","v":3},0.75]
[null,null,"To be determined",null,null,null,null,null,null,null,null,"",null,null,null,0.75,0.75]
[null,null,"To be determined",null,null,null,null,null,null,null,null,"",null,null,null,1,0.75]
[null,null,"To be determined",null,null,null,null,null,null,null,null,"",null,null,null,2,0.75]
[null,"Embedded Data, Schedules and Specifications","The 'I' in BIM, the ability to embed all relevant data into the model, to extract and use for all design and documentation aspects.",null,null,null,"Expand node on the left to fill in Embedded Data, Schedules and Specifications section",null,null,{"$f":"IF(ISERROR(AVERAGE(J12:J16)),0,AVERAGE(J12:J16))","v":0},{"$f":"IF(ISERROR(AVERAGE(K12:K16)),0,AVERAGE(K12:K16))","v":0},{"$f":"IF(ISERROR(AVERAGE(L12:L16)),0,AVERAGE(L12:L16))","v":0},1,null,null,2,0.75]
[null,"Visualisation","To assist with Coordination and Client/Contractor understanding of the model.","None considered","Basic screenshots taken from Model for reports etc","Model used to inform Design team through basic visualisations.","Model used to inform Design team through 3D walkthroughs.","Model used to inform Client through 3D presentations","Advanced photorealistic renderings/animations taken from Model",3,0,{"$f":"K18*M18","v":0},0.7,null,"",2,0.75]
[null,"4D (Construction Sequencing)","Construction Sequencing, or analysis from the model","None considered","Model used for simplified phasing using hide/show only","Design Model used for sequencing by internal project team only",null,"Majority of Design Model used or evolved by Contractor to inform 4D","Design model used by internal project team to inform Contractor/Client",0,0,0,0.7,null,""]
[null,"5D (Quantity and Cost)","The ability to extract cost and quantity information is truly collaborative.","Model not suitable for costing","Model used for some internal quantity information/checking","Schedules produced from Model, and Model informally shared with QS with caveat",null,"Model formally issued to QS and cross-checked by internal project team","Cost optimisation by linking cost data directly to the model",1,0,0,0.7,null,""]
[null,"Links to Engineering Analysis Tools","An essential efficiency gain","None considered",null,"One way export to or from Analysis & Design Tools",null,"Whole model linked bi-directionally to Analysis & Design Tools","Full round-tripping between Model and Analysis/Design tools, to optimise design",2,0,0,1,null,""]
[null,"Handover to Contractor","Part of the collaborative process involves sharing the model with the Contractor","Not possible","Model for design team internal use only","Informal issue of model to Contractor with disclaimer","Formal issue of Model to Contractor with disclaimer","Formal issue of Model to Contractor, with signed BIM contract","Formal handover of Model to Contractor for use in Construction and FM.",2,0,0,0.9,null,""]
["HARDER!","Use in Operations and FM","An early understanding of the downstream uses of the model is essential to gain the maximum benefits for the Client.","None considered","Employers Information Requirements not implemented",null,"Employers Information Requirements implemented but Model not used for FM",null,"Employers Information Requirements considered from outset and model used for FM",2,0,0,0.9,null,""]
[]
[]
[]
[null,null,null,null,null,null,null,null,null,null,"Scores"]
[null,null,null,null,null,null,null,null,null,null,0]
[null,null,null,null,null,null,null,null,null,null,1]
[null,null,null,null,null,null,null,null,null,null,2]
[null,null,null,null,null,null,null,null,null,null,3]
[null,null,null,null,null,null,null,null,null,null,4]
[null,null,null,null,null,null,null,null,null,null,5]

{"sheet":"Water","index":36,"n_rows":33,"n_cols":17,"rows_kept":33,"cut":false,"hidden":true,"merged":[[5,3,5,8],[11,1,15,1]]}
[]
[null,null,{"$f":"JobNumber","v":"Copy o"},{"$f":"JOB_TITLE","v":"Project XXXXXXXXXXX"}]
[]
[]
[null,null,null,{"$f":"CONCATENATE(RIGHT(CELL(\"Filename\",D1),LEN(CELL(\"Filename\",D1))-SEARCH(\"]\",CELL(\"Filename\",D1),1))&\" BIM Maturity\")","v":"Water BIM Maturity"},null,null,null,null,null,null,null,{"$f":"AVERAGE(L8:L11,L17:L23)","v":0},{"$f":"(SUM(L8:L11,L17:L23)/(5*SUM(M8:M23)))","v":0}]
[]
[null,null,"the Mission, Vision, Goals, and Objectives, along with management support, BIM Champions.","0\nNon-Existent","1\nInitial","2\nManaged","3\nDefined","4\nMeasured","5\nOptimizing","Target Level","Current Level","Adjusted Score","Weighting",null,null,null,0.75]
["EASY WINS","3D Coordination","Model used to inform coordination across disciplines, and during Construction","None considered",null,"Majority of Project 3D, adhoc 3D coordination","Majority of Project 3D, 3D coordination reviews held regularly & recorded",null,"Whole project 3D, all components modelled & coordinated between disciplines",3,0,{"$f":"K8*M8","v":0},0.9,null,{"$f":"IF(OFFSET(D8,0,K8)=\"\",\"Score Not Allowed - Try Again!\",\"\")","v":""},{"$f":"IF(J8=0,$Q$7+J8,J8)","v":3},{"$f":"IF(K8=0,$Q$7+K8,K8)","v":0.75}]
[null,"Drawings","BIMs should be linked to documentation, including drawings","Model not Linked to Drawings","Model partially Linked to Drawings (some 2D)","Model used for some GAs, Sections, etc","Model Used for majority of GAs, Sections etc","Model used for all GAs, Sections, etc","Models used for all GAs, Sections and Schedules",1,0,0,0.9,null,"",{"$f":"IF(J9=0,$Q$7+J9,J9)","v":1},0.75]
[null,"Level of Development","LOD represents how developed elements within a model are.  This also conveys to others, via a BEP, what it can be used for.","No LODs considered",null,"Consistent LODs for some similar elements, but other elements over/under modelled",null,"Consistent LODs for most similar elements, aligned with BIM Execution Plan","All elements in model comply with stated LODs in BEP",4,0,0,1,null,"",4,0.75]
[null,"Discipline Model Reviews","A significant step-change is required in verification and reviewing of models, as they become standard deliverables.","No checking of models","Self-checking of models by technicians only","Engineer checking of parts of models","Engineer-led reviewing of whole of models","Full checking and QA verification of models","Full QA cross checking of model and any documentation including verfication signoff",5,0,0,1,null,"",5,0.75]
[null,"Discipline Specific Target & Current Level to be\nfilledin for all lines\nLine below provides average of section","To be determined",null,null,null,null,null,null,null,null,{"$f":"IF(K12=\"\",\"\",K12)","v":""},null,null,null,{"$f":"IF(J17=0,$Q$7+J17,J17)","v":0.75},{"$f":"IF(K17=0,$Q$7+K17,K17)","v":0.75}]
[null,null,"To be determined",null,null,null,null,null,null,null,null,"",null,null,null,{"$f":"IF(J18=0,$Q$7+J18,J18)","v":3},0.75]
[null,null,"To be determined",null,null,null,null,null,null,null,null,"",null,null,null,0.75,0.75]
[null,null,"To be determined",null,null,null,null,null,null,null,null,"",null,null,null,1,0.75]
[null,null,"To be determined",null,null,null,null,null,null,null,null,"",null,null,null,2,0.75]
[null,"Embedded Data, Schedules and Specifications","The 'I' in BIM, the ability to embed all relevant data into the model, to extract and use for all design and documentation aspects.",null,null,null,"Expand node on the left to fill in Embedded Data, Schedules and Specifications section",null,null,{"$f":"IF(ISERROR(AVERAGE(J12:J16)),0,AVERAGE(J12:J16))","v":0},{"$f":"IF(ISERROR(AVERAGE(K12:K16)),0,AVERAGE(K12:K16))","v":0},{"$f":"IF(ISERROR(AVERAGE(L12:L16)),0,AVERAGE(L12:L16))","v":0},1,null,null,2,0.75]
[null,"Visualisation","To assist with Coordination and Client/Contractor understanding of the model.","None considered","Basic screenshots taken from Model for reports etc","Model used to inform Design team through basic visualisations.","Model used to inform Design team through 3D walkthroughs.","Model used to inform Client through 3D presentations","Advanced photorealistic renderings/animations taken from Model",3,0,{"$f":"K18*M18","v":0},0.7,null,"",2,0.75]
[null,"4D (Construction Sequencing)","Construction Sequencing, or analysis from the model","None considered","Model used for simplified phasing using hide/show only","Design Model used for sequencing by internal project team only",null,"Majority of Design Model used or evolved by Contractor to inform 4D","Design model used by internal project team to inform Contractor/Client",0,0,0,0.7,null,""]
[null,"5D (Quantity and Cost)","The ability to extract cost and quantity information is truly collaborative.","Model not suitable for costing","Model used for some internal quantity information/checking","Schedules produced from Model, and Model informally shared with QS with caveat",null,"Model formally issued to QS and cross-checked by internal project team","Cost optimisation by linking cost data directly to the model",1,0,0,0.7,null,""]
[null,"Links to Engineering Analysis Tools","An essential efficiency gain","None considered",null,"One way export to or from Analysis & Design Tools",null,"Whole model linked bi-directionally to Analysis & Design Tools","Full round-tripping between Model and Analysis/Design tools, to optimise design",2,0,0,1,null,""]
[null,"Handover to Contractor","Part of the collaborative process involves sharing the model with the Contractor","Not possible","Model for design team internal use only","Informal issue of model to Contractor with disclaimer","Formal issue of Model to Contractor with disclaimer","Formal issue of Model to Contractor, with signed BIM contract","Formal handover of Model to Contractor for use in Construction and FM.",2,0,0,0.9,null,""]
["HARDER!","Use in Operations and FM","An early understanding of the downstream uses of the model is essential to gain the maximum benefits for the Client.","None considered","Employers Information Requirements not implemented",null,"Employers Information Requirements implemented but Model not used for FM",null,"Employers Information Requirements considered from outset and model used for FM",2,0,0,0.9,null,""]
[]
[]
[]
[null,null,null,null,null,null,null,null,null,null,"Scores"]
[null,null,null,null,null,null,null,null,null,null,0]
[null,null,null,null,null,null,null,null,null,null,1]
[null,null,null,null,null,null,null,null,null,null,2]
[null,null,null,null,null,null,null,null,null,null,3]
[null,null,null,null,null,null,null,null,null,null,4]
[null,null,null,null,null,null,null,null,null,null,5]

{"sheet":"Wind","index":37,"n_rows":33,"n_cols":17,"rows_kept":33,"cut":false,"hidden":true,"merged":[[5,3,5,8],[11,1,15,1]]}
[]
[null,null,{"$f":"JobNumber","v":"Copy o"},{"$f":"JOB_TITLE","v":"Project XXXXXXXXXXX"}]
[]
[]
[null,null,null,{"$f":"CONCATENATE(RIGHT(CELL(\"Filename\",D1),LEN(CELL(\"Filename\",D1))-SEARCH(\"]\",CELL(\"Filename\",D1),1))&\" BIM Maturity\")","v":"Wind BIM Maturity"},null,null,null,null,null,null,null,{"$f":"AVERAGE(L8:L11,L17:L23)","v":0},{"$f":"(SUM(L8:L11,L17:L23)/(5*SUM(M8:M23)))","v":0}]
[]
[null,null,"the Mission, Vision, Goals, and Objectives, along with management support, BIM Champions.","0\nNon-Existent","1\nInitial","2\nManaged","3\nDefined","4\nMeasured","5\nOptimizing","Target Level","Current Level","Adjusted Score","Weighting",null,null,null,0.75]
["EASY WINS","3D Coordination","Model used to inform coordination across disciplines, and during Construction","None considered",null,"Majority of Project 3D, adhoc 3D coordination","Majority of Project 3D, 3D coordination reviews held regularly & recorded",null,"Whole project 3D, all components modelled & coordinated between disciplines",3,0,{"$f":"K8*M8","v":0},0.9,null,{"$f":"IF(OFFSET(D8,0,K8)=\"\",\"Score Not Allowed - Try Again!\",\"\")","v":""},{"$f":"IF(J8=0,$Q$7+J8,J8)","v":3},{"$f":"IF(K8=0,$Q$7+K8,K8)","v":0.75}]
[null,"Drawings","BIMs should be linked to documentation, including drawings","Model not Linked to Drawings","Model partially Linked to Drawings (some 2D)","Model used for some GAs, Sections, etc","Model Used for majority of GAs, Sections etc","Model used for all GAs, Sections, etc","Models used for all GAs, Sections and Schedules",1,0,0,0.9,null,"",{"$f":"IF(J9=0,$Q$7+J9,J9)","v":1},0.75]
[null,"Level of Development","LOD represents how developed elements within a model are.  This also conveys to others, via a BEP, what it can be used for.","No LODs considered",null,"Consistent LODs for some similar elements, but other elements over/under modelled",null,"Consistent LODs for most similar elements, aligned with BIM Execution Plan","All elements in model comply with stated LODs in BEP",4,0,0,1,null,"",4,0.75]
[null,"Discipline Model Reviews","A significant step-change is required in verification and reviewing of models, as they become standard deliverables.","No checking of models","Self-checking of models by technicians only","Engineer checking of parts of models","Engineer-led reviewing of whole of models","Full checking and QA verification of models","Full QA cross checking of model and any documentation including verfication signoff",5,0,0,1,null,"",5,0.75]
[null,"Discipline Specific Target & Current Level to be\nfilledin for all lines\nLine below provides average of section","To be determined",null,null,null,null,null,null,null,null,{"$f":"IF(K12=\"\",\"\",K12)","v":""},null,null,null,{"$f":"IF(J17=0,$Q$7+J17,J17)","v":0.75},{"$f":"IF(K17=0,$Q$7+K17,K17)","v":0.75}]
[null,null,"To be determined",null,null,null,null,null,null,null,null,"",null,null,null,{"$f":"IF(J18=0,$Q$7+J18,J18)","v":3},0.75]
[null,null,"To be determined",null,null,null,null,null,null,null,null,"",null,null,null,0.75,0.75]
[null,null,"To be determined",null,null,null,null,null,null,null,null,"",null,null,null,1,0.75]
[null,null,"To be determined",null,null,null,null,null,null,null,null,"",null,null,null,2,0.75]
[null,"Embedded Data, Schedules and Specifications","The 'I' in BIM, the ability to embed all relevant data into the model, to extract and use for all design and documentation aspects.",null,null,null,"Expand node on the left to fill in Embedded Data, Schedules and Specifications section",null,null,{"$f":"IF(ISERROR(AVERAGE(J12:J16)),0,AVERAGE(J12:J16))","v":0},{"$f":"IF(ISERROR(AVERAGE(K12:K16)),0,AVERAGE(K12:K16))","v":0},{"$f":"IF(ISERROR(AVERAGE(L12:L16)),0,AVERAGE(L12:L16))","v":0},1,null,null,2,0.75]
[null,"Visualisation","To assist with Coordination and Client/Contractor understanding of the model.","None considered","Basic screenshots taken from Model for reports etc","Model used to inform Design team through basic visualisations.","Model used to inform Design team through 3D walkthroughs.","Model used to inform Client through 3D presentations","Advanced photorealistic renderings/animations taken from Model",3,0,{"$f":"K18*M18","v":0},0.7,null,"",2,0.75]
[null,"4D (Construction Sequencing)","Construction Sequencing, or analysis from the model","None considered","Model used for simplified phasing using hide/show only","Design Model used for sequencing by internal project team only",null,"Majority of Design Model used or evolved by Contractor to inform 4D","Design model used by internal project team to inform Contractor/Client",0,0,0,0.7,null,""]
[null,"5D (Quantity and Cost)","The ability to extract cost and quantity information is truly collaborative.","Model not suitable for costing","Model used for some internal quantity information/checking","Schedules produced from Model, and Model informally shared with QS with caveat",null,"Model formally issued to QS and cross-checked by internal project team","Cost optimisation by linking cost data directly to the model",1,0,0,0.7,null,""]
[null,"Links to Engineering Analysis Tools","An essential efficiency gain","None considered",null,"One way export to or from Analysis & Design Tools",null,"Whole model linked bi-directionally to Analysis & Design Tools","Full round-tripping between Model and Analysis/Design tools, to optimise design",2,0,0,1,null,""]
[null,"Handover to Contractor","Part of the collaborative process involves sharing the model with the Contractor","Not possible","Model for design team internal use only","Informal issue of model to Contractor with disclaimer","Formal issue of Model to Contractor with disclaimer","Formal issue of Model to Contractor, with signed BIM contract","Formal handover of Model to Contractor for use in Construction and FM.",2,0,0,0.9,null,""]
["HARDER!","Use in Operations and FM","An early understanding of the downstream uses of the model is essential to gain the maximum benefits for the Client.","None considered","Employers Information Requirements not implemented",null,"Employers Information Requirements implemented but Model not used for FM",null,"Employers Information Requirements considered from outset and model used for FM",2,0,0,0.9,null,""]
[]
[]
[]
[null,null,null,null,null,null,null,null,null,null,"Scores"]
[null,null,null,null,null,null,null,null,null,null,0]
[null,null,null,null,null,null,null,null,null,null,1]
[null,null,null,null,null,null,null,null,null,null,2]
[null,null,null,null,null,null,null,null,null,null,3]
[null,null,null,null,null,null,null,null,null,null,4]
[null,null,null,null,null,null,null,null,null,null,5]